Workbook

Sheet Resumo
A1: PLANILHA DE CUSTO E FORMAÇÃO DE PREÇOS
A2: Tipo de serviço / posto | D2: Valor proposto por empregado (R$) | E2: Qtde de empregados por posto | F2: Valor proposto por posto (R$) | G2: Qtde de postos | H2: Valor total do serviço (R$)
A3: Item | B3: CBO | C3: (A) | D3: (B) | E3: (C) | F3: (D) = (B x C) | G3: (E) | H3: (F) = (D x E)
A4: 1 | B4: 2142-05 | C4: Engenheiro | D4: ='1.Enge'!D109 -> 29165.82 | E4: 1 | F4: =D4*E4 -> 29165.82 | G4: 1 | H4: =F4*G4 -> 29165.82
A5: 2 | B5: 7102-05 | C5: Encarregado | D5: ='2.Enca'!D109 -> 10244.14677 | E5: 1 | F5: 10244.14677 | G5: 1 | H5: 10244.14677
A6: 3 | B6: 9511-05 | C6: Técnico Eletricista | D6: ='3.Elet'!D109 -> 10256.15448 | E6: 1 | F6: 10256.15448 | G6: 1 | H6: 10256.15448
A7: 4 | B7: 7156-15 | C7: Ajudante Eletricista | D7: ='4.Aju-3'!D109 -> 7762.16727 | E7: 1 | F7: 7762.16727 | G7: 1 | H7: 7762.16727
A8: 5 | B8: 7257-05 | C8: Técnico em Refrigeração | D8: ='5.Refr'!D109 -> 10256.15448 | E8: 1 | F8: 10256.15448 | G8: 1 | H8: 10256.15448
A9: 6 | B9: 7156-15 | C9: Ajudante em Refrigeração | D9: ='6.Aju-5'!D109 -> 7762.16727 | E9: 1 | F9: 7762.16727 | G9: 1 | H9: 7762.16727
A10: 7 | B10: 7711-05 | C10: Técnico Marceneiro | D10: ='7.Marc'!D109 -> 8364.794724 | E10: 1 | F10: 8364.794724 | G10: 1 | H10: 8364.794724
A11: 8 | B11: 7170-20 | C11: Ajudante Marceneiro | D11: ='8.Aju-7'!D109 -> 6446.28699 | E11: 1 | F11: 6446.28699 | G11: 1 | H11: 6446.28699
A12: 9 | B12: 7241-10 | C12: Técnico em Manutenção e Hidráulica | D12: ='9.Enca'!D109 -> 10628.74098 | E12: 1 | F12: 10628.74098 | G12: 1 | H12: 10628.74098
A13: 10 | B13: 7170-20 | C13: Ajudante em Manutenção e Pintura | D13: ='10.Aju-9'!D109 -> 6765.45012 | E13: 1 | F13: 6765.45012 | G13: 1 | H13: 6765.45012
A14: VALOR MENSAL DOS SERVIÇOS | G14: 1 | H14: =SUM(H4:H13) -> 107651.8831
A15: VALOR ANUAL DOS SERVIÇOS | G15: 12 | H15: =$H$14*G15 -> 1291822.597
A16: VALOR TOTAL DOS SERVIÇOS | G16: 36 | H16: =$H$14*G16 -> 3875467.791
A17: VALOR MENSAL DOS MATERIAIS | G17: 1 | H17: =ROUND(H18/12,2) -> 55756.02
A18: VALOR ANUAL DOS MATERIAIS | G18: 12 | H18: =MAT!J5 -> 669072.18
A19: VALOR TOTAL DOS MATERIAIS | G19: 36 | H19: =H18*3 -> 2007216.54
A20: VALOR MENSAL DO CONTRATO | G20: 1 | H20: =H14+H17 -> 163407.9031
A21: VALOR ANUAL DO CONTRATO | G21: 12 | H21: =H15+H18 -> 1960894.777
A22: VALOR TOTAL DO CONTRATO | G22: 36 | H22: 5882684.331

Sheet 1.Enge
A1: PLANILHAS DE CUSTOS E FORMAÇÃO DE PREÇOS
A2: Discriminação dos serviços
A3: A | B3: Data da Apresentação da Proposta: | D3: 2024-08-26
A4: B | B4: Munícipio/UF: | D4: Brasília/DF
A5: C | B5: Ano do Acordo, Convenção ou Dissídio Coletivo: | C5: SENGE/DF | D5: 2023/25
A6: D | B6: Número de meses de execução contratual: | D6: =12*5 -> 60
A7: E | B7: Tipo de serviço: | D7: Continuado
A8: F | B8: Unidade de medida | D8: Posto
A9: G | B9: Quantidade total a contratar (em função da unidade de medida): | D9: 1
A11: Mão de obra vinculada à execução contratual
A12: Dados complementares para composição dos custos referente à mão de obra
A13: 1 | B13: Tipo de serviço | C13: Coordenação de Engenharia
A14: 2 | B14: Classificação Brasileira de Ocupações (CBO) | C14: 2142-05
A15: 3 | B15: Categoria profissional (vinculada à execução contratual) | C15: Engenheiro civil
A16: 4 | B16: Data base CCT | C16: 2023-05-01
A17: 5 | B17: Vigência CCT | C17: 2025-04-30
A18: 6 | B18: Carga horia semanal | C18: 44 horas/semana
A19: 7 | B19: Piso normativo da categoria profissional | C19: 10800
A20: 8 | B20: Salário proposto no contrato | C20: 12960
A22: MÓDULO 1: Composição da remuneração (M1)
A23: 1 | B23: Composição da Remuneração | D23: Valor (R$)
A24: A | B24: Salário Base | C24: 1 | D24: =C20 -> 12960
A25: B | B25: Adicional de periculosidade | C25: 0 | D25: =ROUNDUP($D$24*C25,2) -> 0
A26: C | B26: Adicional de Insalubridade | C26: 0 | D26: =ROUNDUP($D$24*C26,2) -> 0
A27: D | B27: Adicional Noturno | C27: 0 | D27: 0
A28: E | B28: Hora Noturna Adicional | C28: 0 | D28: 0
A29: F | B29: Adicional de Hora Extra | C29: 0 | D29: 0
A30: G | B30: Outros (especificar) | C30: 0 | D30: 0
A31: Total do Módulo 1 | D31: =SUM(D24:D30) -> 12960
A33: MÓDULO 2: Encargos e benefícios anuais, mensais e diários (M2)
A34: 2.1 | B34: 13º (décimo terceiro) salário, férias e adicional de férias | C34: Porcentagem (%) | D34: Valor (R$)
A35: A | B35: 13º salário | C35: 0.0833 | D35: =ROUNDUP($D$31/12,2) -> 1080
A36: B | B36: Férias | C36: 0.0833 | D36: =ROUNDUP($D$31/12,2) -> 1080
A37: C | B37: Adicional de Férias (1/3 Constitucional) | C37: =C36/3 -> 0.02776666667 | D37: =ROUNDUP($D$31/3/12,2) -> 360
A38: Total submódulo 2.1 | D38: =SUM(D35:D37) -> 2520
A40: 2.2 | B40: GPS, FGTS e outras contribuições | D40: Valor (R$)
A41: A | B41: INSS (com/sem desoneração) | C41: 0 | D41: =ROUNDUP($D$31*C41,2) -> 0
A42: B | B42: Salário Educação | C42: 0.025 | D42: =ROUNDUP($D$31*C42,2) -> 324
A43: C | B43: SAT | C43: 0.03 | D43: 388.8
A44: D | B44: SESC - SESI | C44: 0.015 | D44: 194.4
A45: E | B45: SENAI - SENAC | C45: 0.01 | D45: 129.6
A46: F | B46: SEBRAE | C46: 0.006 | D46: 77.76
A47: G | B47: INCRA | C47: 0.002 | D47: 25.92
A48: H | B48: FGTS | C48: 0.08 | D48: 1036.8
A49: I | B49: SECONCI | C49: 0.01 | D49: 129.6
B50: Total submódulo 2.2 | C50: =SUM(C41:C49) -> 0.178 | D50: =SUM(D41:D49) -> 2306.88
A52: 2.3 | B52: Benefícios mensais e diários | C52: Referência | D52: Valor (R$)
A53: A | B53: Vale transporte | C53: CLT | D53: =ROUND(IF((22*5.5*2)-(D31*0.06*22/30)>0,(22*5.5*2)-(D31*0.06*22/30),0),2) -> 0
A54: B | B54: Vale alimentação | C54: CCT | D54: =35*22 -> 770
A55: C | B55: Assistência Médica-Odontológica e Familiar | C55: SICRO | D55: 287.48
A56: D | B56: Auxílio Creche | C56: CCT | D56: =ROUNDUP(350*1.67/2*6/40,2) -> 43.84
A57: E | B57: Seguro de Vida e Assistência Funeral | C57: SICRO | D57: 9.98
B58: Total submódulo 2.3 | D58: =SUM(D53:D57) -> 1111.3
A59: Total do Módulo 2 | D59: =D38+D50+D58 -> 5938.18
A61: MÓDULO 3: Provisão para rescisão (M3)
A62: A | B62: Aviso Prévio Indenizado | C62: 0.0324 | D62: =ROUNDUP($D$31*C62,2) -> 419.91
A63: B | B63: Aviso Prévio Trabalhado | C63: 0.0008 | D63: =ROUNDUP($D$31*C63,2) -> 10.37
A64: C | B64: Incidência dos encargos sobre o Aviso Prévio | C64: 0.0029 | D64: 37.59
A65: D | B65: Incidencia dos encargos sobre 13o-ferias (submodulo 2.2 sobre 2.1) | C65: 0.0612 | D65: 793.16
A66: E | B66: Multa sobre saldo FGTS | C66: =0.08*0.4 -> 0.032 | D66: 414.72
A67: Total do Módulo 3 | D67: =SUM(D62:D66) -> 1675.75
A69: MÓDULO 4: Custo mensal de reposição do profissional ausente (M4)
A70: X | B70: Custo diário do empregado substituto | C70: Dias | D70: =ROUNDUP((D31+D59+D67)/30,2) -> 685.8
A71: A | B71: Férias | C71: =ROUND(30/12,2) -> 2.5 | D71: =ROUNDUP($D$70*C71,2) -> 1714.5
A72: B | B72: Ausências por enfermidade | C72: =ROUNDUP(0.66/100*360/12,2) -> 0.2 | D72: =ROUNDUP($D$70*C72,2) -> 137.16
A73: C | B73: Faltas Justificadas | C73: =ROUNDUP(0.56/100*360/12,2) -> 0.17 | D73: 116.59
A74: D | B74: Ausência por acidente de trabalho | C74: =ROUNDUP(0.08/100*360/12,2) -> 0.03 | D74: 20.58
A75: E | B75: Afastamento Parentalidade | C75: =ROUNDUP((0.05+0.03)/100*360/12,2) -> 0.03 | D75: 20.58
A76: F | B76: Outros (especificar) | C76: 0 | D76: 0
A77: Total do Módulo 4 | D77: =SUM(D71:D76) -> 2009.41
A79: MÓDULO 5: Insumos de mão de obra (M5)
A80: A | B80: EPI e Uniforme | C80: SINAPI Engenheiro | D80: =EPI!M5 -> 76.22
A81: B | B81: Materiais e ferramentas | C81: SINAPI Engenheiro | D81: =FER!M5 -> 2.3
A82: Total do Módulo 5 | D82: =SUM(D80:D81) -> 78.52
A83: Nota: Valores mensais por empregado.
A85: MÓDULO 6: Custos indiretos, tributos e lucro (M6)
A86: A | B86: Custos Indiretos | C86: SINAPI | D86: =BDI!C2 -> 0.048
A87: A.1 | B87: Administração Central | C87: SINAPI | D87: =BDI!C3 -> 0.03
A88: A.2 | B88: Seguros e Garantias Contratuais | C88: SINAPI | D88: =BDI!C4 -> 0.008
A89: A.3 | B89: Riscos | C89: SINAPI | D89: =BDI!C5 -> 0.01
A90: B | B90: Despesas Financeiras | C90: SINAPI | D90: =BDI!C6 -> 0.0062
A91: C | B91: Lucro | C91: SINAPI | D91: =BDI!C7 -> 0.06
A92: D | B92: Tributos Federais e Estaduais/Municipais | C92: SINAPI | D92: =BDI!C8 -> 0.1315
A93: D.1 | B93: COFINS | C93: SINAPI | D93: =BDI!C9 -> 0.03
A94: D.2 | B94: PIS | C94: SINAPI | D94: =BDI!C10 -> 0.0065
A95: D.3 | B95: CPRB - (com/sem desoneração) | C95: SINAPI | D95: =BDI!C11 -> 0.045
A96: D.4 | B96: ISSQN | C96: SINAPI | D96: =BDI!C12 -> 0.05
A97: Total | D97: =BDI!C13 -> 0.287
A98: Total do Módulo 6 | D98: =ROUNDUP(D107*(D97),2) -> 6503.96
A100: QUADRO-RESUMO CUSTO POR EMPREGADO
A101: Mão-de-obra vinculada à execução contratual (valor por empregado)
A102: A | B102: MÓDULO 1: Composição da remuneração (M1) | D102: =D31 -> 12960
A103: B | B103: MÓDULO 2: Encargos e benefícios anuais, mensais e diários (M2) | D103: =D59 -> 5938.18
A104: C | B104: MÓDULO 3: Provisão para rescisão (M3) | D104: =D67 -> 1675.75
A105: D | B105: MÓDULO 4: Custo de reposição do profissional ausente (M4) | D105: =D77 -> 2009.41
A106: E | B106: MÓDULO 5: Insumos de mão de obra (M5) | D106: =D82 -> 78.52
A107: Subtotal (A + B + C + D + E) | D107: =SUM(D102:D106) -> 22661.86
A108: F | B108: MÓDULO 6: Custos indiretos, tributos e lucro (M6) | D108: =D98 -> 6503.96
A109: Custo mensal do posto | D109: =D107+D108 -> 29165.82
A110: G | B110: RESERVA MENSAL CONTA VINCULADA | D110: =D38+D67 -> 4195.75
A111: H | B111: RESERVA MENSAL REPOSIÇÃO | D111: =D77 -> 2009.41
A112: I | B112: CUSTO MENSAL ORDINÁRIO | D112: =D109-D110-D111 -> 22960.66

Sheet 2.Enca
A1: PLANILHAS DE CUSTOS E FORMAÇÃO DE PREÇOS
A2: Discriminação dos serviços
A3: A | B3: Data da Apresentação da Proposta: | D3: 2024-08-26
A4: B | B4: Munícipio/UF: | D4: Brasília/DF
A5: C | B5: Ano do Acordo, Convenção ou Dissídio Coletivo: | C5: SINDISERVICOS/DF | D5: 2024
A6: D | B6: Número de meses de execução contratual: | D6: =12*5 -> 60
A7: E | B7: Tipo de serviço: | D7: Continuado
A8: F | B8: Unidade de medida | D8: Posto
A9: G | B9: Quantidade total a contratar (em função da unidade de medida): | D9: 1
A11: Mão de obra vinculada à execução contratual
A12: Dados complementares para composição dos custos referente à mão de obra
A13: 1 | B13: Tipo de serviço | C13: Encarregado de manutenção
A14: 2 | B14: Classificação Brasileira de Ocupações (CBO) | C14: 7102-05
A15: 3 | B15: Categoria profissional (vinculada à execução contratual) | C15: Encarregado de manutenção de prédios
A16: 4 | B16: Data base CCT | C16: 2024-01-01
A17: 5 | B17: Vigência CCT | C17: 2024-12-31
A18: 6 | B18: Carga horia semanal | C18: 44 horas/semana
A19: 7 | B19: Piso normativo da categoria profissional | C19: 3222.38
A20: 8 | B20: Salário proposto no contrato | C20: 3866.85
A22: MÓDULO 1: Composição da remuneração (M1)
A23: 1 | B23: Composição da Remuneração | D23: Valor (R$)
A24: A | B24: Salário Base | C24: 1 | D24: =C20 -> 3866.85
A25: B | B25: Adicional de periculosidade | C25: 0 | D25: =ROUNDUP($D$24*C25,2) -> 0
A26: C | B26: Adicional de Insalubridade | C26: 0 | D26: =ROUNDUP($D$24*C26,2) -> 0
A27: D | B27: Adicional Noturno | C27: 0 | D27: 0
A28: E | B28: Hora Noturna Adicional | C28: 0 | D28: 0
A29: F | B29: Adicional de Hora Extra | C29: 0 | D29: 0
A30: G | B30: Outros (especificar) | C30: 0 | D30: 0
A31: Total do Módulo 1 | D31: =SUM(D24:D30) -> 3866.85
A33: MÓDULO 2: Encargos e benefícios anuais, mensais e diários (M2)
A34: 2.1 | B34: 13º (décimo terceiro) salário, férias e adicional de férias | C34: Porcentagem (%) | D34: Valor (R$)
A35: A | B35: 13º salário | C35: 0.0833 | D35: =ROUNDUP($D$31/12,2) -> 322.24
A36: B | B36: Férias | C36: 0.0833 | D36: =ROUNDUP($D$31/12,2) -> 322.24
A37: C | B37: Adicional de Férias (1/3 Constitucional) | C37: =C36/3 -> 0.02776666667 | D37: =ROUNDUP($D$31/3/12,2) -> 107.42
A38: Total submódulo 2.1 | D38: =SUM(D35:D37) -> 751.9
A40: 2.2 | B40: GPS, FGTS e outras contribuições | D40: Valor (R$)
A41: A | B41: INSS (com/sem desoneração) | C41: 0 | D41: =ROUNDUP($D$31*C41,2) -> 0
A42: B | B42: Salário Educação | C42: 0.025 | D42: =ROUNDUP($D$31*C42,2) -> 96.68
A43: C | B43: SAT | C43: 0.03 | D43: 116.01
A44: D | B44: SESC - SESI | C44: 0.015 | D44: 58.01
A45: E | B45: SENAI - SENAC | C45: 0.01 | D45: 38.67
A46: F | B46: SEBRAE | C46: 0.006 | D46: 23.21
A47: G | B47: INCRA | C47: 0.002 | D47: 7.74
A48: H | B48: FGTS | C48: 0.08 | D48: 309.35
A49: I | B49: SECONCI | C49: 0.01 | D49: 38.67
B50: Total submódulo 2.2 | C50: =SUM(C41:C49) -> 0.178 | D50: =SUM(D41:D49) -> 688.34
A52: 2.3 | B52: Benefícios mensais e diários | C52: Referência | D52: Valor (R$)
A53: A | B53: Vale transporte | C53: CLT | D53: =ROUND(IF((22*5.5*2)-(D31*0.06*22/30)>0,(22*5.5*2)-(D31*0.06*22/30),0),2) -> 71.86
A54: B | B54: Vale alimentação | C54: CCT | D54: =42.2*22 -> 928.4
A55: C | B55: Assistência Médica-Odontológica e Familiar | C55: SICRO | D55: 287.48
A56: D | B56: Auxílio Creche | C56: CCT | D56: 0
A57: E | B57: Seguro de Vida e Assistência Funeral | C57: SICRO | D57: 9.98
B58: Total submódulo 2.3 | D58: =SUM(D53:D57) -> 1297.72
A59: Total do Módulo 2 | D59: =D38+D50+D58 -> 2737.96
A61: MÓDULO 3: Provisão para rescisão (M3)
A62: A | B62: Aviso Prévio Indenizado | C62: 0.0324 | D62: =ROUNDUP($D$31*C62,2) -> 125.29
A63: B | B63: Aviso Prévio Trabalhado | C63: 0.0008 | D63: =ROUNDUP($D$31*C63,2) -> 3.1
A64: C | B64: Incidência dos encargos sobre o Aviso Prévio | C64: 0.0029 | D64: 11.22
A65: D | B65: Incidencia dos encargos sobre 13o-ferias (submodulo 2.2 sobre 2.1) | C65: 0.0612 | D65: 236.66
A66: E | B66: Multa sobre saldo FGTS | C66: =0.08*0.4 -> 0.032 | D66: 123.74
A67: Total do Módulo 3 | D67: =SUM(D62:D66) -> 500.01
A69: MÓDULO 4: Custo mensal de reposição do profissional ausente (M4)
A70: X | B70: Custo diário do empregado substituto | C70: Dias | D70: =ROUNDUP((D31+D59+D67)/30,2) -> 236.83
A71: A | B71: Férias | C71: =ROUND(30/12,2) -> 2.5 | D71: =ROUNDUP($D$70*C71,2) -> 592.08
A72: B | B72: Ausências por enfermidade | C72: =ROUNDUP(0.66/100*360/12,2) -> 0.2 | D72: =ROUNDUP($D$70*C72,2) -> 47.37
A73: C | B73: Faltas Justificadas | C73: =ROUNDUP(0.56/100*360/12,2) -> 0.17 | D73: 40.27
A74: D | B74: Ausência por acidente de trabalho | C74: =ROUNDUP(0.08/100*360/12,2) -> 0.03 | D74: 7.11
A75: E | B75: Afastamento Parentalidade | C75: =ROUNDUP((0.05+0.03)/100*360/12,2) -> 0.03 | D75: 7.11
A76: F | B76: Outros (especificar) | C76: 0 | D76: 0
A77: Total do Módulo 4 | D77: =SUM(D71:D76) -> 693.94
A79: MÓDULO 5: Insumos de mão de obra (M5)
A80: A | B80: EPI e Uniforme | C80: SINAPI Encarregado | D80: =EPI!M6 -> 142.21
A81: B | B81: Materiais e ferramentas | C81: SINAPI Encarregado | D81: =FER!M6 -> 18.74
A82: Total do Módulo 5 | D82: =SUM(D80:D81) -> 160.95
A83: Nota: Valores mensais por empregado.
A85: MÓDULO 6: Custos indiretos, tributos e lucro (M6)
A86: A | B86: Custos Indiretos | C86: SINAPI | D86: =BDI!C2 -> 0.048
A87: A.1 | B87: Administração Central | C87: SINAPI | D87: =BDI!C3 -> 0.03
A88: A.2 | B88: Seguros e Garantias Contratuais | C88: SINAPI | D88: =BDI!C4 -> 0.008
A89: A.3 | B89: Riscos | C89: SINAPI | D89: =BDI!C5 -> 0.01
A90: B | B90: Despesas Financeiras | C90: SINAPI | D90: =BDI!C6 -> 0.0062
A91: C | B91: Lucro | C91: SINAPI | D91: =BDI!C7 -> 0.06
A92: D | B92: Tributos Federais e Estaduais/Municipais | C92: SINAPI | D92: =BDI!C8 -> 0.1315
A93: D.1 | B93: COFINS | C93: SINAPI | D93: =BDI!C9 -> 0.03
A94: D.2 | B94: PIS | C94: SINAPI | D94: =BDI!C10 -> 0.0065
A95: D.3 | B95: CPRB - (com/sem desoneração) | C95: SINAPI | D95: =BDI!C11 -> 0.045
A96: D.4 | B96: ISSQN | C96: SINAPI | D96: =BDI!C12 -> 0.05
A97: Total | D97: =BDI!C13 -> 0.287
A98: Total do Módulo 6 | D98: =D107*(D97) -> 2284.43677
A100: QUADRO-RESUMO CUSTO POR EMPREGADO
A101: Mão-de-obra vinculada à execução contratual (valor por empregado)
A102: A | B102: MÓDULO 1: Composição da remuneração (M1) | D102: =D31 -> 3866.85
A103: B | B103: MÓDULO 2: Encargos e benefícios anuais, mensais e diários (M2) | D103: =D59 -> 2737.96
A104: C | B104: MÓDULO 3: Provisão para rescisão (M3) | D104: =D67 -> 500.01
A105: D | B105: MÓDULO 4: Custo de reposição do profissional ausente (M4) | D105: =D77 -> 693.94
A106: E | B106: MÓDULO 5: Insumos de mão de obra (M5) | D106: =D82 -> 160.95
A107: Subtotal (A + B + C + D + E) | D107: =SUM(D102:D106) -> 7959.71
A108: F | B108: MÓDULO 6: Custos indiretos, tributos e lucro (M6) | D108: =D98 -> 2284.43677
A109: Custo mensal do posto | D109: =D107+D108 -> 10244.14677
A110: G | B110: RESERVA MENSAL CONTA VINCULADA | D110: =D38+D67 -> 1251.91
A111: H | B111: RESERVA MENSAL REPOSIÇÃO | D111: =D77 -> 693.94
A112: I | B112: CUSTO MENSAL ORDINÁRIO | D112: =D109-D110-D111 -> 8298.29677

Sheet 3.Elet
A1: PLANILHAS DE CUSTOS E FORMAÇÃO DE PREÇOS
A2: Discriminação dos serviços
A3: A | B3: Data da Apresentação da Proposta: | D3: 2024-08-26
A4: B | B4: Munícipio/UF: | D4: Brasília/DF
A5: C | B5: Ano do Acordo, Convenção ou Dissídio Coletivo: | C5: SINDISERVICOS/DF | D5: 2024
A6: D | B6: Número de meses de execução contratual: | D6: =12*5 -> 60
A7: E | B7: Tipo de serviço: | D7: Continuado
A8: F | B8: Unidade de medida | D8: Posto
A9: G | B9: Quantidade total a contratar (em função da unidade de medida): | D9: 1
A11: Mão de obra vinculada à execução contratual
A12: Dados complementares para composição dos custos referente à mão de obra
A13: 1 | B13: Tipo de serviço | C13: Técnico Eletricista
A14: 2 | B14: Classificação Brasileira de Ocupações (CBO) | C14: 9511-05
A15: 3 | B15: Categoria profissional (vinculada à execução contratual) | C15: Eletricista de manutenção em geral
A16: 4 | B16: Data base CCT | C16: 2024-01-01
A17: 5 | B17: Vigência CCT | C17: 2024-12-31
A18: 6 | B18: Carga horia semanal | C18: 44 horas/semana
A19: 7 | B19: Piso normativo da categoria profissional | C19: 2405.96
A20: 8 | B20: Salário proposto no contrato | C20: 2887.15
A22: MÓDULO 1: Composição da remuneração (M1)
A23: 1 | B23: Composição da Remuneração | D23: Valor (R$)
A24: A | B24: Salário Base | C24: 1 | D24: =C20 -> 2887.15
A25: B | B25: Adicional de periculosidade | C25: 0.3 | D25: =ROUNDUP($D$24*C25,2) -> 866.15
A26: C | B26: Adicional de Insalubridade | C26: 0 | D26: =ROUNDUP($D$24*C26,2) -> 0
A27: D | B27: Adicional Noturno | C27: 0 | D27: 0
A28: E | B28: Hora Noturna Adicional | C28: 0 | D28: 0
A29: F | B29: Adicional de Hora Extra | C29: 0 | D29: 0
A30: G | B30: Outros (especificar) | C30: 0 | D30: 0
A31: Total do Módulo 1 | D31: =SUM(D24:D30) -> 3753.3
A33: MÓDULO 2: Encargos e benefícios anuais, mensais e diários (M2)
A34: 2.1 | B34: 13º (décimo terceiro) salário, férias e adicional de férias | C34: Porcentagem (%) | D34: Valor (R$)
A35: A | B35: 13º salário | C35: 0.0833 | D35: =ROUNDUP($D$31/12,2) -> 312.78
A36: B | B36: Férias | C36: 0.0833 | D36: =ROUNDUP($D$31/12,2) -> 312.78
A37: C | B37: Adicional de Férias (1/3 Constitucional) | C37: =C36/3 -> 0.02776666667 | D37: =ROUNDUP($D$31/3/12,2) -> 104.26
A38: Total submódulo 2.1 | D38: =SUM(D35:D37) -> 729.82
A40: 2.2 | B40: GPS, FGTS e outras contribuições | D40: Valor (R$)
A41: A | B41: INSS (com/sem desoneração) | C41: 0 | D41: =ROUNDUP($D$31*C41,2) -> 0
A42: B | B42: Salário Educação | C42: 0.025 | D42: =ROUNDUP($D$31*C42,2) -> 93.84
A43: C | B43: SAT | C43: 0.03 | D43: 112.6
A44: D | B44: SESC - SESI | C44: 0.015 | D44: 56.3
A45: E | B45: SENAI - SENAC | C45: 0.01 | D45: 37.54
A46: F | B46: SEBRAE | C46: 0.006 | D46: 22.52
A47: G | B47: INCRA | C47: 0.002 | D47: 7.51
A48: H | B48: FGTS | C48: 0.08 | D48: 300.27
A49: I | B49: SECONCI | C49: 0.01 | D49: 37.54
B50: Total submódulo 2.2 | C50: =SUM(C41:C49) -> 0.178 | D50: =SUM(D41:D49) -> 668.12
A52: 2.3 | B52: Benefícios mensais e diários | C52: Referência | D52: Valor (R$)
A53: A | B53: Vale transporte | C53: CLT | D53: =ROUND(IF((22*5.5*2)-(D31*0.06*22/30)>0,(22*5.5*2)-(D31*0.06*22/30),0),2) -> 76.85
A54: B | B54: Vale alimentação | C54: CCT | D54: =42.2*22 -> 928.4
A55: C | B55: Assistência Médica-Odontológica e Familiar | C55: SICRO | D55: 287.48
A56: D | B56: Auxílio Creche | C56: CCT | D56: 0
A57: E | B57: Seguro de Vida e Assistência Funeral | C57: SICRO | D57: 9.98
B58: Total submódulo 2.3 | D58: =SUM(D53:D57) -> 1302.71
A59: Total do Módulo 2 | D59: =D38+D50+D58 -> 2700.65
A61: MÓDULO 3: Provisão para rescisão (M3)
A62: A | B62: Aviso Prévio Indenizado | C62: 0.0324 | D62: =ROUNDUP($D$31*C62,2) -> 121.61
A63: B | B63: Aviso Prévio Trabalhado | C63: 0.0008 | D63: =ROUNDUP($D$31*C63,2) -> 3.01
A64: C | B64: Incidência dos encargos sobre o Aviso Prévio | C64: 0.0029 | D64: 10.89
A65: D | B65: Incidencia dos encargos sobre 13o-ferias (submodulo 2.2 sobre 2.1) | C65: 0.0612 | D65: 229.71
A66: E | B66: Multa sobre saldo FGTS | C66: =0.08*0.4 -> 0.032 | D66: 120.11
A67: Total do Módulo 3 | D67: =SUM(D62:D66) -> 485.33
A69: MÓDULO 4: Custo mensal de reposição do profissional ausente (M4)
A70: X | B70: Custo diário do empregado substituto | C70: Dias | D70: =ROUNDUP((D31+D59+D67)/30,2) -> 231.31
A71: A | B71: Férias | C71: =ROUND(30/12,2) -> 2.5 | D71: =ROUNDUP($D$70*C71,2) -> 578.28
A72: B | B72: Ausências por enfermidade | C72: =ROUNDUP(0.66/100*360/12,2) -> 0.2 | D72: =ROUNDUP($D$70*C72,2) -> 46.27
A73: C | B73: Faltas Justificadas | C73: =ROUNDUP(0.56/100*360/12,2) -> 0.17 | D73: 39.33
A74: D | B74: Ausência por acidente de trabalho | C74: =ROUNDUP(0.08/100*360/12,2) -> 0.03 | D74: 6.94
A75: E | B75: Afastamento Parentalidade | C75: =ROUNDUP((0.05+0.03)/100*360/12,2) -> 0.03 | D75: 6.94
A76: F | B76: Outros (especificar) | C76: 0 | D76: 0
A77: Total do Módulo 4 | D77: =SUM(D71:D76) -> 677.76
A79: MÓDULO 5: Insumos de mão de obra (M5)
A80: A | B80: EPI e Uniforme | C80: SINAPI Eletricista | D80: =EPI!M3 -> 192.29
A81: B | B81: Materiais e ferramentas | C81: SINAPI Eletricista | D81: =FER!M3 -> 159.71
A82: Total do Módulo 5 | D82: =SUM(D80:D81) -> 352
A83: Nota: Valores mensais por empregado.
A85: MÓDULO 6: Custos indiretos, tributos e lucro (M6)
A86: A | B86: Custos Indiretos | C86: SINAPI | D86: =BDI!C2 -> 0.048
A87: A.1 | B87: Administração Central | C87: SINAPI | D87: =BDI!C3 -> 0.03
A88: A.2 | B88: Seguros e Garantias Contratuais | C88: SINAPI | D88: =BDI!C4 -> 0.008
A89: A.3 | B89: Riscos | C89: SINAPI | D89: =BDI!C5 -> 0.01
A90: B | B90: Despesas Financeiras | C90: SINAPI | D90: =BDI!C6 -> 0.0062
A91: C | B91: Lucro | C91: SINAPI | D91: =BDI!C7 -> 0.06
A92: D | B92: Tributos Federais e Estaduais/Municipais | C92: SINAPI | D92: =BDI!C8 -> 0.1315
A93: D.1 | B93: COFINS | C93: SINAPI | D93: =BDI!C9 -> 0.03
A94: D.2 | B94: PIS | C94: SINAPI | D94: =BDI!C10 -> 0.0065
A95: D.3 | B95: CPRB - (com/sem desoneração) | C95: SINAPI | D95: =BDI!C11 -> 0.045
A96: D.4 | B96: ISSQN | C96: SINAPI | D96: =BDI!C12 -> 0.05
A97: Total | D97: =BDI!C13 -> 0.287
A98: Total do Módulo 6 | D98: =D107*(D97) -> 2287.11448
A100: QUADRO-RESUMO CUSTO POR EMPREGADO
A101: Mão-de-obra vinculada à execução contratual (valor por empregado)
A102: A | B102: MÓDULO 1: Composição da remuneração (M1) | D102: =D31 -> 3753.3
A103: B | B103: MÓDULO 2: Encargos e benefícios anuais, mensais e diários (M2) | D103: =D59 -> 2700.65
A104: C | B104: MÓDULO 3: Provisão para rescisão (M3) | D104: =D67 -> 485.33
A105: D | B105: MÓDULO 4: Custo de reposição do profissional ausente (M4) | D105: =D77 -> 677.76
A106: E | B106: MÓDULO 5: Insumos de mão de obra (M5) | D106: =D82 -> 352
A107: Subtotal (A + B + C + D + E) | D107: =SUM(D102:D106) -> 7969.04
A108: F | B108: MÓDULO 6: Custos indiretos, tributos e lucro (M6) | D108: =D98 -> 2287.11448
A109: Custo mensal do posto | D109: =D107+D108 -> 10256.15448
A110: G | B110: RESERVA MENSAL CONTA VINCULADA | D110: =D38+D67 -> 1215.15
A111: H | B111: RESERVA MENSAL REPOSIÇÃO | D111: =D77 -> 677.76
A112: I | B112: CUSTO MENSAL ORDINÁRIO | D112: =D109-D110-D111 -> 8363.24448

Sheet 4.Aju-3
A1: PLANILHAS DE CUSTOS E FORMAÇÃO DE PREÇOS
A2: Discriminação dos serviços
A3: A | B3: Data da Apresentação da Proposta: | D3: 2024-08-26
A4: B | B4: Munícipio/UF: | D4: Brasília/DF
A5: C | B5: Ano do Acordo, Convenção ou Dissídio Coletivo: | C5: SINDISERVICOS/DF | D5: 2024
A6: D | B6: Número de meses de execução contratual: | D6: =12*5 -> 60
A7: E | B7: Tipo de serviço: | D7: Continuado
A8: F | B8: Unidade de medida | D8: Posto
A9: G | B9: Quantidade total a contratar (em função da unidade de medida): | D9: 1
A11: Mão de obra vinculada à execução contratual
A12: Dados complementares para composição dos custos referente à mão de obra
A13: 1 | B13: Tipo de serviço | C13: Ajudante de Eletricista
A14: 2 | B14: Classificação Brasileira de Ocupações (CBO) | C14: 7156-15
A15: 3 | B15: Categoria profissional (vinculada à execução contratual) | C15: Ajudante de eletricista
A16: 4 | B16: Data base CCT | C16: 2024-01-01
A17: 5 | B17: Vigência CCT | C17: 2024-12-31
A18: 6 | B18: Carga horia semanal | C18: 44 horas/semana
A19: 7 | B19: Piso normativo da categoria profissional | C19: 1629.62
A20: 8 | B20: Salário proposto no contrato | C20: 1955.54
A22: MÓDULO 1: Composição da remuneração (M1)
A23: 1 | B23: Composição da Remuneração | D23: Valor (R$)
A24: A | B24: Salário Base | C24: 1 | D24: =C20 -> 1955.54
A25: B | B25: Adicional de periculosidade | C25: 0.3 | D25: =ROUNDUP($D$24*C25,2) -> 586.67
A26: C | B26: Adicional de Insalubridade | C26: 0 | D26: =ROUNDUP($D$24*C26,2) -> 0
A27: D | B27: Adicional Noturno | C27: 0 | D27: 0
A28: E | B28: Hora Noturna Adicional | C28: 0 | D28: 0
A29: F | B29: Adicional de Hora Extra | C29: 0 | D29: 0
A30: G | B30: Outros (especificar) | C30: 0 | D30: 0
A31: Total do Módulo 1 | D31: =SUM(D24:D30) -> 2542.21
A33: MÓDULO 2: Encargos e benefícios anuais, mensais e diários (M2)
A34: 2.1 | B34: 13º (décimo terceiro) salário, férias e adicional de férias | C34: Porcentagem (%) | D34: Valor (R$)
A35: A | B35: 13º salário | C35: 0.0833 | D35: =ROUNDUP($D$31/12,2) -> 211.86
A36: B | B36: Férias | C36: 0.0833 | D36: =ROUNDUP($D$31/12,2) -> 211.86
A37: C | B37: Adicional de Férias (1/3 Constitucional) | C37: =C36/3 -> 0.02776666667 | D37: =ROUNDUP($D$31/3/12,2) -> 70.62
A38: Total submódulo 2.1 | D38: =SUM(D35:D37) -> 494.34
A40: 2.2 | B40: GPS, FGTS e outras contribuições | D40: Valor (R$)
A41: A | B41: INSS (com/sem desoneração) | C41: 0 | D41: =ROUNDUP($D$31*C41,2) -> 0
A42: B | B42: Salário Educação | C42: 0.025 | D42: =ROUNDUP($D$31*C42,2) -> 63.56
A43: C | B43: SAT | C43: 0.03 | D43: 76.27
A44: D | B44: SESC - SESI | C44: 0.015 | D44: 38.14
A45: E | B45: SENAI - SENAC | C45: 0.01 | D45: 25.43
A46: F | B46: SEBRAE | C46: 0.006 | D46: 15.26
A47: G | B47: INCRA | C47: 0.002 | D47: 5.09
A48: H | B48: FGTS | C48: 0.08 | D48: 203.38
A49: I | B49: SECONCI | C49: 0.01 | D49: 25.43
B50: Total submódulo 2.2 | C50: =SUM(C41:C49) -> 0.178 | D50: =SUM(D41:D49) -> 452.56
A52: 2.3 | B52: Benefícios mensais e diários | C52: Referência | D52: Valor (R$)
A53: A | B53: Vale transporte | C53: CLT | D53: =ROUND(IF((22*5.5*2)-(D31*0.06*22/30)>0,(22*5.5*2)-(D31*0.06*22/30),0),2) -> 130.14
A54: B | B54: Vale alimentação | C54: CCT | D54: =42.2*22 -> 928.4
A55: C | B55: Assistência Médica-Odontológica e Familiar | C55: SICRO | D55: 287.48
A56: D | B56: Auxílio Creche | C56: CCT | D56: 0
A57: E | B57: Seguro de Vida e Assistência Funeral | C57: SICRO | D57: 9.98
B58: Total submódulo 2.3 | D58: =SUM(D53:D57) -> 1356
A59: Total do Módulo 2 | D59: =D38+D50+D58 -> 2302.9
A61: MÓDULO 3: Provisão para rescisão (M3)
A62: A | B62: Aviso Prévio Indenizado | C62: 0.0324 | D62: =ROUNDUP($D$31*C62,2) -> 82.37
A63: B | B63: Aviso Prévio Trabalhado | C63: 0.0008 | D63: =ROUNDUP($D$31*C63,2) -> 2.04
A64: C | B64: Incidência dos encargos sobre o Aviso Prévio | C64: 0.0029 | D64: 7.38
A65: D | B65: Incidencia dos encargos sobre 13o-ferias (submodulo 2.2 sobre 2.1) | C65: 0.0612 | D65: 155.59
A66: E | B66: Multa sobre saldo FGTS | C66: =0.08*0.4 -> 0.032 | D66: 81.36
A67: Total do Módulo 3 | D67: =SUM(D62:D66) -> 328.74
A69: MÓDULO 4: Custo mensal de reposição do profissional ausente (M4)
A70: X | B70: Custo diário do empregado substituto | C70: Dias | D70: =ROUNDUP((D31+D59+D67)/30,2) -> 172.47
A71: A | B71: Férias | C71: =ROUND(30/12,2) -> 2.5 | D71: =ROUNDUP($D$70*C71,2) -> 431.18
A72: B | B72: Ausências por enfermidade | C72: =ROUNDUP(0.66/100*360/12,2) -> 0.2 | D72: =ROUNDUP($D$70*C72,2) -> 34.5
A73: C | B73: Faltas Justificadas | C73: =ROUNDUP(0.56/100*360/12,2) -> 0.17 | D73: 29.32
A74: D | B74: Ausência por acidente de trabalho | C74: =ROUNDUP(0.08/100*360/12,2) -> 0.03 | D74: 5.18
A75: E | B75: Afastamento Parentalidade | C75: =ROUNDUP((0.05+0.03)/100*360/12,2) -> 0.03 | D75: 5.18
A76: F | B76: Outros (especificar) | C76: 0 | D76: 0
A77: Total do Módulo 4 | D77: =SUM(D71:D76) -> 505.36
A79: MÓDULO 5: Insumos de mão de obra (M5)
A80: A | B80: EPI e Uniforme | C80: SINAPI Eletricista | D80: =EPI!M3 -> 192.29
A81: B | B81: Materiais e ferramentas | C81: SINAPI Eletricista | D81: =FER!M3 -> 159.71
A82: Total do Módulo 5 | D82: =SUM(D80:D81) -> 352
A83: Nota: Valores mensais por empregado.
A85: MÓDULO 6: Custos indiretos, tributos e lucro (M6)
A86: A | B86: Custos Indiretos | C86: SINAPI | D86: =BDI!C2 -> 0.048
A87: A.1 | B87: Administração Central | C87: SINAPI | D87: =BDI!C3 -> 0.03
A88: A.2 | B88: Seguros e Garantias Contratuais | C88: SINAPI | D88: =BDI!C4 -> 0.008
A89: A.3 | B89: Riscos | C89: SINAPI | D89: =BDI!C5 -> 0.01
A90: B | B90: Despesas Financeiras | C90: SINAPI | D90: =BDI!C6 -> 0.0062
A91: C | B91: Lucro | C91: SINAPI | D91: =BDI!C7 -> 0.06
A92: D | B92: Tributos Federais e Estaduais/Municipais | C92: SINAPI | D92: =BDI!C8 -> 0.1315
A93: D.1 | B93: COFINS | C93: SINAPI | D93: =BDI!C9 -> 0.03
A94: D.2 | B94: PIS | C94: SINAPI | D94: =BDI!C10 -> 0.0065
A95: D.3 | B95: CPRB - (com/sem desoneração) | C95: SINAPI | D95: =BDI!C11 -> 0.045
A96: D.4 | B96: ISSQN | C96: SINAPI | D96: =BDI!C12 -> 0.05
A97: Total | D97: =BDI!C13 -> 0.287
A98: Total do Módulo 6 | D98: =D107*(D97) -> 1730.95727
A100: QUADRO-RESUMO CUSTO POR EMPREGADO
A101: Mão-de-obra vinculada à execução contratual (valor por empregado)
A102: A | B102: MÓDULO 1: Composição da remuneração (M1) | D102: =D31 -> 2542.21
A103: B | B103: MÓDULO 2: Encargos e benefícios anuais, mensais e diários (M2) | D103: =D59 -> 2302.9
A104: C | B104: MÓDULO 3: Provisão para rescisão (M3) | D104: =D67 -> 328.74
A105: D | B105: MÓDULO 4: Custo de reposição do profissional ausente (M4) | D105: =D77 -> 505.36
A106: E | B106: MÓDULO 5: Insumos de mão de obra (M5) | D106: =D82 -> 352
A107: Subtotal (A + B + C + D + E) | D107: =SUM(D102:D106) -> 6031.21
A108: F | B108: MÓDULO 6: Custos indiretos, tributos e lucro (M6) | D108: =D98 -> 1730.95727
A109: Custo mensal do posto | D109: =D107+D108 -> 7762.16727
A110: G | B110: RESERVA MENSAL CONTA VINCULADA | D110: =D38+D67 -> 823.08
A111: H | B111: RESERVA MENSAL REPOSIÇÃO | D111: =D77 -> 505.36
A112: I | B112: CUSTO MENSAL ORDINÁRIO | D112: =D109-D110-D111 -> 6433.72727

Sheet 5.Refr
A1: PLANILHAS DE CUSTOS E FORMAÇÃO DE PREÇOS
A2: Discriminação dos serviços
A3: A | B3: Data da Apresentação da Proposta: | D3: 2024-08-26
A4: B | B4: Munícipio/UF: | D4: Brasília/DF
A5: C | B5: Ano do Acordo, Convenção ou Dissídio Coletivo: | C5: SINDISERVICOS/DF | D5: 2024
A6: D | B6: Número de meses de execução contratual: | D6: =12*5 -> 60
A7: E | B7: Tipo de serviço: | D7: Continuado
A8: F | B8: Unidade de medida | D8: Posto
A9: G | B9: Quantidade total a contratar (em função da unidade de medida): | D9: 1
A11: Mão de obra vinculada à execução contratual
A12: Dados complementares para composição dos custos referente à mão de obra
A13: 1 | B13: Tipo de serviço | C13: Técnico em Refrigeração
A14: 2 | B14: Classificação Brasileira de Ocupações (CBO) | C14: 7257-05
A15: 3 | B15: Categoria profissional (vinculada à execução contratual) | C15: Mecânico de refrigeração
A16: 4 | B16: Data base CCT | C16: 2024-01-01
A17: 5 | B17: Vigência CCT | C17: 2024-12-31
A18: 6 | B18: Carga horia semanal | C18: 44 horas/semana
A19: 7 | B19: Piso normativo da categoria profissional | C19: 2405.96
A20: 8 | B20: Salário proposto no contrato | C20: 2887.15
A22: MÓDULO 1: Composição da remuneração (M1)
A23: 1 | B23: Composição da Remuneração | D23: Valor (R$)
A24: A | B24: Salário Base | C24: 1 | D24: =C20 -> 2887.15
A25: B | B25: Adicional de periculosidade | C25: 0.3 | D25: =ROUNDUP($D$24*C25,2) -> 866.15
A26: C | B26: Adicional de Insalubridade | C26: 0 | D26: =ROUNDUP($D$24*C26,2) -> 0
A27: D | B27: Adicional Noturno | C27: 0 | D27: 0
A28: E | B28: Hora Noturna Adicional | C28: 0 | D28: 0
A29: F | B29: Adicional de Hora Extra | C29: 0 | D29: 0
A30: G | B30: Outros (especificar) | C30: 0 | D30: 0
A31: Total do Módulo 1 | D31: =SUM(D24:D30) -> 3753.3
A33: MÓDULO 2: Encargos e benefícios anuais, mensais e diários (M2)
A34: 2.1 | B34: 13º (décimo terceiro) salário, férias e adicional de férias | C34: Porcentagem (%) | D34: Valor (R$)
A35: A | B35: 13º salário | C35: 0.0833 | D35: =ROUNDUP($D$31/12,2) -> 312.78
A36: B | B36: Férias | C36: 0.0833 | D36: =ROUNDUP($D$31/12,2) -> 312.78
A37: C | B37: Adicional de Férias (1/3 Constitucional) | C37: =C36/3 -> 0.02776666667 | D37: =ROUNDUP($D$31/3/12,2) -> 104.26
A38: Total submódulo 2.1 | D38: =SUM(D35:D37) -> 729.82
A40: 2.2 | B40: GPS, FGTS e outras contribuições | D40: Valor (R$)
A41: A | B41: INSS (com/sem desoneração) | C41: 0 | D41: =ROUNDUP($D$31*C41,2) -> 0
A42: B | B42: Salário Educação | C42: 0.025 | D42: =ROUNDUP($D$31*C42,2) -> 93.84
A43: C | B43: SAT | C43: 0.03 | D43: 112.6
A44: D | B44: SESC - SESI | C44: 0.015 | D44: 56.3
A45: E | B45: SENAI - SENAC | C45: 0.01 | D45: 37.54
A46: F | B46: SEBRAE | C46: 0.006 | D46: 22.52
A47: G | B47: INCRA | C47: 0.002 | D47: 7.51
A48: H | B48: FGTS | C48: 0.08 | D48: 300.27
A49: I | B49: SECONCI | C49: 0.01 | D49: 37.54
B50: Total submódulo 2.2 | C50: =SUM(C41:C49) -> 0.178 | D50: =SUM(D41:D49) -> 668.12
A52: 2.3 | B52: Benefícios mensais e diários | C52: Referência | D52: Valor (R$)
A53: A | B53: Vale transporte | C53: CLT | D53: =ROUND(IF((22*5.5*2)-(D31*0.06*22/30)>0,(22*5.5*2)-(D31*0.06*22/30),0),2) -> 76.85
A54: B | B54: Vale alimentação | C54: CCT | D54: =42.2*22 -> 928.4
A55: C | B55: Assistência Médica-Odontológica e Familiar | C55: SICRO | D55: 287.48
A56: D | B56: Auxílio Creche | C56: CCT | D56: 0
A57: E | B57: Seguro de Vida e Assistência Funeral | C57: SICRO | D57: 9.98
B58: Total submódulo 2.3 | D58: =SUM(D53:D57) -> 1302.71
A59: Total do Módulo 2 | D59: =D38+D50+D58 -> 2700.65
A61: MÓDULO 3: Provisão para rescisão (M3)
A62: A | B62: Aviso Prévio Indenizado | C62: 0.0324 | D62: =ROUNDUP($D$31*C62,2) -> 121.61
A63: B | B63: Aviso Prévio Trabalhado | C63: 0.0008 | D63: =ROUNDUP($D$31*C63,2) -> 3.01
A64: C | B64: Incidência dos encargos sobre o Aviso Prévio | C64: 0.0029 | D64: 10.89
A65: D | B65: Incidencia dos encargos sobre 13o-ferias (submodulo 2.2 sobre 2.1) | C65: 0.0612 | D65: 229.71
A66: E | B66: Multa sobre saldo FGTS | C66: =0.08*0.4 -> 0.032 | D66: 120.11
A67: Total do Módulo 3 | D67: =SUM(D62:D66) -> 485.33
A69: MÓDULO 4: Custo mensal de reposição do profissional ausente (M4)
A70: X | B70: Custo diário do empregado substituto | C70: Dias | D70: =ROUNDUP((D31+D59+D67)/30,2) -> 231.31
A71: A | B71: Férias | C71: =ROUND(30/12,2) -> 2.5 | D71: =ROUNDUP($D$70*C71,2) -> 578.28
A72: B | B72: Ausências por enfermidade | C72: =ROUNDUP(0.66/100*360/12,2) -> 0.2 | D72: =ROUNDUP($D$70*C72,2) -> 46.27
A73: C | B73: Faltas Justificadas | C73: =ROUNDUP(0.56/100*360/12,2) -> 0.17 | D73: 39.33
A74: D | B74: Ausência por acidente de trabalho | C74: =ROUNDUP(0.08/100*360/12,2) -> 0.03 | D74: 6.94
A75: E | B75: Afastamento Parentalidade | C75: =ROUNDUP((0.05+0.03)/100*360/12,2) -> 0.03 | D75: 6.94
A76: F | B76: Outros (especificar) | C76: 0 | D76: 0
A77: Total do Módulo 4 | D77: =SUM(D71:D76) -> 677.76
A79: MÓDULO 5: Insumos de mão de obra (M5)
A80: A | B80: EPI e Uniforme | C80: SINAPI Eletricista | D80: =EPI!M3 -> 192.29
A81: B | B81: Materiais e ferramentas | C81: SINAPI Eletricista | D81: =FER!M3 -> 159.71
A82: Total do Módulo 5 | D82: =SUM(D80:D81) -> 352
A83: Nota: Valores mensais por empregado.
A85: MÓDULO 6: Custos indiretos, tributos e lucro (M6)
A86: A | B86: Custos Indiretos | C86: SINAPI | D86: =BDI!C2 -> 0.048
A87: A.1 | B87: Administração Central | C87: SINAPI | D87: =BDI!C3 -> 0.03
A88: A.2 | B88: Seguros e Garantias Contratuais | C88: SINAPI | D88: =BDI!C4 -> 0.008
A89: A.3 | B89: Riscos | C89: SINAPI | D89: =BDI!C5 -> 0.01
A90: B | B90: Despesas Financeiras | C90: SINAPI | D90: =BDI!C6 -> 0.0062
A91: C | B91: Lucro | C91: SINAPI | D91: =BDI!C7 -> 0.06
A92: D | B92: Tributos Federais e Estaduais/Municipais | C92: SINAPI | D92: =BDI!C8 -> 0.1315
A93: D.1 | B93: COFINS | C93: SINAPI | D93: =BDI!C9 -> 0.03
A94: D.2 | B94: PIS | C94: SINAPI | D94: =BDI!C10 -> 0.0065
A95: D.3 | B95: CPRB - (com/sem desoneração) | C95: SINAPI | D95: =BDI!C11 -> 0.045
A96: D.4 | B96: ISSQN | C96: SINAPI | D96: =BDI!C12 -> 0.05
A97: Total | D97: =BDI!C13 -> 0.287
A98: Total do Módulo 6 | D98: =D107*(D97) -> 2287.11448
A100: QUADRO-RESUMO CUSTO POR EMPREGADO
A101: Mão-de-obra vinculada à execução contratual (valor por empregado)
A102: A | B102: MÓDULO 1: Composição da remuneração (M1) | D102: =D31 -> 3753.3
A103: B | B103: MÓDULO 2: Encargos e benefícios anuais, mensais e diários (M2) | D103: =D59 -> 2700.65
A104: C | B104: MÓDULO 3: Provisão para rescisão (M3) | D104: =D67 -> 485.33
A105: D | B105: MÓDULO 4: Custo de reposição do profissional ausente (M4) | D105: =D77 -> 677.76
A106: E | B106: MÓDULO 5: Insumos de mão de obra (M5) | D106: =D82 -> 352
A107: Subtotal (A + B + C + D + E) | D107: =SUM(D102:D106) -> 7969.04
A108: F | B108: MÓDULO 6: Custos indiretos, tributos e lucro (M6) | D108: =D98 -> 2287.11448
A109: Custo mensal do posto | D109: =D107+D108 -> 10256.15448
A110: G | B110: RESERVA MENSAL CONTA VINCULADA | D110: =D38+D67 -> 1215.15
A111: H | B111: RESERVA MENSAL REPOSIÇÃO | D111: =D77 -> 677.76
A112: I | B112: CUSTO MENSAL ORDINÁRIO | D112: =D109-D110-D111 -> 8363.24448

Sheet 6.Aju-5
A1: PLANILHAS DE CUSTOS E FORMAÇÃO DE PREÇOS
A2: Discriminação dos serviços
A3: A | B3: Data da Apresentação da Proposta: | D3: 2024-08-26
A4: B | B4: Munícipio/UF: | D4: Brasília/DF
A5: C | B5: Ano do Acordo, Convenção ou Dissídio Coletivo: | C5: SINDISERVICOS/DF | D5: 2024
A6: D | B6: Número de meses de execução contratual: | D6: =12*5 -> 60
A7: E | B7: Tipo de serviço: | D7: Continuado
A8: F | B8: Unidade de medida | D8: Posto
A9: G | B9: Quantidade total a contratar (em função da unidade de medida): | D9: 1
A11: Mão de obra vinculada à execução contratual
A12: Dados complementares para composição dos custos referente à mão de obra
A13: 1 | B13: Tipo de serviço | C13: Ajudante de Refrigeração
A14: 2 | B14: Classificação Brasileira de Ocupações (CBO) | C14: 7156-15
A15: 3 | B15: Categoria profissional (vinculada à execução contratual) | C15: Ajudante de eletricista
A16: 4 | B16: Data base CCT | C16: 2024-01-01
A17: 5 | B17: Vigência CCT | C17: 2024-12-31
A18: 6 | B18: Carga horia semanal | C18: 44 horas/semana
A19: 7 | B19: Piso normativo da categoria profissional | C19: 1629.62
A20: 8 | B20: Salário proposto no contrato | C20: 1955.54
A22: MÓDULO 1: Composição da remuneração (M1)
A23: 1 | B23: Composição da Remuneração | D23: Valor (R$)
A24: A | B24: Salário Base | C24: 1 | D24: =C20 -> 1955.54
A25: B | B25: Adicional de periculosidade | C25: 0.3 | D25: =ROUNDUP($D$24*C25,2) -> 586.67
A26: C | B26: Adicional de Insalubridade | C26: 0 | D26: =ROUNDUP($D$24*C26,2) -> 0
A27: D | B27: Adicional Noturno | C27: 0 | D27: 0
A28: E | B28: Hora Noturna Adicional | C28: 0 | D28: 0
A29: F | B29: Adicional de Hora Extra | C29: 0 | D29: 0
A30: G | B30: Outros (especificar) | C30: 0 | D30: 0
A31: Total do Módulo 1 | D31: =SUM(D24:D30) -> 2542.21
A33: MÓDULO 2: Encargos e benefícios anuais, mensais e diários (M2)
A34: 2.1 | B34: 13º (décimo terceiro) salário, férias e adicional de férias | C34: Porcentagem (%) | D34: Valor (R$)
A35: A | B35: 13º salário | C35: 0.0833 | D35: =ROUNDUP($D$31/12,2) -> 211.86
A36: B | B36: Férias | C36: 0.0833 | D36: =ROUNDUP($D$31/12,2) -> 211.86
A37: C | B37: Adicional de Férias (1/3 Constitucional) | C37: =C36/3 -> 0.02776666667 | D37: =ROUNDUP($D$31/3/12,2) -> 70.62
A38: Total submódulo 2.1 | D38: =SUM(D35:D37) -> 494.34
A40: 2.2 | B40: GPS, FGTS e outras contribuições | D40: Valor (R$)
A41: A | B41: INSS (com/sem desoneração) | C41: 0 | D41: =ROUNDUP($D$31*C41,2) -> 0
A42: B | B42: Salário Educação | C42: 0.025 | D42: =ROUNDUP($D$31*C42,2) -> 63.56
A43: C | B43: SAT | C43: 0.03 | D43: 76.27
A44: D | B44: SESC - SESI | C44: 0.015 | D44: 38.14
A45: E | B45: SENAI - SENAC | C45: 0.01 | D45: 25.43
A46: F | B46: SEBRAE | C46: 0.006 | D46: 15.26
A47: G | B47: INCRA | C47: 0.002 | D47: 5.09
A48: H | B48: FGTS | C48: 0.08 | D48: 203.38
A49: I | B49: SECONCI | C49: 0.01 | D49: 25.43
B50: Total submódulo 2.2 | C50: =SUM(C41:C49) -> 0.178 | D50: =SUM(D41:D49) -> 452.56
A52: 2.3 | B52: Benefícios mensais e diários | C52: Referência | D52: Valor (R$)
A53: A | B53: Vale transporte | C53: CLT | D53: =ROUND(IF((22*5.5*2)-(D31*0.06*22/30)>0,(22*5.5*2)-(D31*0.06*22/30),0),2) -> 130.14
A54: B | B54: Vale alimentação | C54: CCT | D54: =42.2*22 -> 928.4
A55: C | B55: Assistência Médica-Odontológica e Familiar | C55: SICRO | D55: 287.48
A56: D | B56: Auxílio Creche | C56: CCT | D56: 0
A57: E | B57: Seguro de Vida e Assistência Funeral | C57: SICRO | D57: 9.98
B58: Total submódulo 2.3 | D58: =SUM(D53:D57) -> 1356
A59: Total do Módulo 2 | D59: =D38+D50+D58 -> 2302.9
A61: MÓDULO 3: Provisão para rescisão (M3)
A62: A | B62: Aviso Prévio Indenizado | C62: 0.0324 | D62: =ROUNDUP($D$31*C62,2) -> 82.37
A63: B | B63: Aviso Prévio Trabalhado | C63: 0.0008 | D63: =ROUNDUP($D$31*C63,2) -> 2.04
A64: C | B64: Incidência dos encargos sobre o Aviso Prévio | C64: 0.0029 | D64: 7.38
A65: D | B65: Incidencia dos encargos sobre 13o-ferias (submodulo 2.2 sobre 2.1) | C65: 0.0612 | D65: 155.59
A66: E | B66: Multa sobre saldo FGTS | C66: =0.08*0.4 -> 0.032 | D66: 81.36
A67: Total do Módulo 3 | D67: =SUM(D62:D66) -> 328.74
A69: MÓDULO 4: Custo mensal de reposição do profissional ausente (M4)
A70: X | B70: Custo diário do empregado substituto | C70: Dias | D70: =ROUNDUP((D31+D59+D67)/30,2) -> 172.47
A71: A | B71: Férias | C71: =ROUND(30/12,2) -> 2.5 | D71: =ROUNDUP($D$70*C71,2) -> 431.18
A72: B | B72: Ausências por enfermidade | C72: =ROUNDUP(0.66/100*360/12,2) -> 0.2 | D72: =ROUNDUP($D$70*C72,2) -> 34.5
A73: C | B73: Faltas Justificadas | C73: =ROUNDUP(0.56/100*360/12,2) -> 0.17 | D73: 29.32
A74: D | B74: Ausência por acidente de trabalho | C74: =ROUNDUP(0.08/100*360/12,2) -> 0.03 | D74: 5.18
A75: E | B75: Afastamento Parentalidade | C75: =ROUNDUP((0.05+0.03)/100*360/12,2) -> 0.03 | D75: 5.18
A76: F | B76: Outros (especificar) | C76: 0 | D76: 0
A77: Total do Módulo 4 | D77: =SUM(D71:D76) -> 505.36
A79: MÓDULO 5: Insumos de mão de obra (M5)
A80: A | B80: EPI e Uniforme | C80: SINAPI Eletricista | D80: =EPI!M3 -> 192.29
A81: B | B81: Materiais e ferramentas | C81: SINAPI Eletricista | D81: =FER!M3 -> 159.71
A82: Total do Módulo 5 | D82: =SUM(D80:D81) -> 352
A83: Nota: Valores mensais por empregado.
A85: MÓDULO 6: Custos indiretos, tributos e lucro (M6)
A86: A | B86: Custos Indiretos | C86: SINAPI | D86: =BDI!C2 -> 0.048
A87: A.1 | B87: Administração Central | C87: SINAPI | D87: =BDI!C3 -> 0.03
A88: A.2 | B88: Seguros e Garantias Contratuais | C88: SINAPI | D88: =BDI!C4 -> 0.008
A89: A.3 | B89: Riscos | C89: SINAPI | D89: =BDI!C5 -> 0.01
A90: B | B90: Despesas Financeiras | C90: SINAPI | D90: =BDI!C6 -> 0.0062
A91: C | B91: Lucro | C91: SINAPI | D91: =BDI!C7 -> 0.06
A92: D | B92: Tributos Federais e Estaduais/Municipais | C92: SINAPI | D92: =BDI!C8 -> 0.1315
A93: D.1 | B93: COFINS | C93: SINAPI | D93: =BDI!C9 -> 0.03
A94: D.2 | B94: PIS | C94: SINAPI | D94: =BDI!C10 -> 0.0065
A95: D.3 | B95: CPRB - (com/sem desoneração) | C95: SINAPI | D95: =BDI!C11 -> 0.045
A96: D.4 | B96: ISSQN | C96: SINAPI | D96: =BDI!C12 -> 0.05
A97: Total | D97: =BDI!C13 -> 0.287
A98: Total do Módulo 6 | D98: =D107*(D97) -> 1730.95727
A100: QUADRO-RESUMO CUSTO POR EMPREGADO
A101: Mão-de-obra vinculada à execução contratual (valor por empregado)
A102: A | B102: MÓDULO 1: Composição da remuneração (M1) | D102: =D31 -> 2542.21
A103: B | B103: MÓDULO 2: Encargos e benefícios anuais, mensais e diários (M2) | D103: =D59 -> 2302.9
A104: C | B104: MÓDULO 3: Provisão para rescisão (M3) | D104: =D67 -> 328.74
A105: D | B105: MÓDULO 4: Custo de reposição do profissional ausente (M4) | D105: =D77 -> 505.36
A106: E | B106: MÓDULO 5: Insumos de mão de obra (M5) | D106: =D82 -> 352
A107: Subtotal (A + B + C + D + E) | D107: =SUM(D102:D106) -> 6031.21
A108: F | B108: MÓDULO 6: Custos indiretos, tributos e lucro (M6) | D108: =D98 -> 1730.95727
A109: Custo mensal do posto | D109: =D107+D108 -> 7762.16727
A110: G | B110: RESERVA MENSAL CONTA VINCULADA | D110: =D38+D67 -> 823.08
A111: H | B111: RESERVA MENSAL REPOSIÇÃO | D111: =D77 -> 505.36
A112: I | B112: CUSTO MENSAL ORDINÁRIO | D112: =D109-D110-D111 -> 6433.72727

Sheet 7.Marc
A1: PLANILHAS DE CUSTOS E FORMAÇÃO DE PREÇOS
A2: Discriminação dos serviços
A3: A | B3: Data da Apresentação da Proposta: | D3: 2024-08-26
A4: B | B4: Munícipio/UF: | D4: Brasília/DF
A5: C | B5: Ano do Acordo, Convenção ou Dissídio Coletivo: | C5: SINDISERVICOS/DF | D5: 2024
A6: D | B6: Número de meses de execução contratual: | D6: =12*5 -> 60
A7: E | B7: Tipo de serviço: | D7: Continuado
A8: F | B8: Unidade de medida | D8: Posto
A9: G | B9: Quantidade total a contratar (em função da unidade de medida): | D9: 1
A11: Mão de obra vinculada à execução contratual
A12: Dados complementares para composição dos custos referente à mão de obra
A13: 1 | B13: Tipo de serviço | C13: Técnico Marceneiro
A14: 2 | B14: Classificação Brasileira de Ocupações (CBO) | C14: 7711-05
A15: 3 | B15: Categoria profissional (vinculada à execução contratual) | C15: Marceneiro
A16: 4 | B16: Data base CCT | C16: 2024-01-01
A17: 5 | B17: Vigência CCT | C17: 2024-12-31
A18: 6 | B18: Carga horia semanal | C18: 44 horas/semana
A19: 7 | B19: Piso normativo da categoria profissional | C19: 2405.96
A20: 8 | B20: Salário proposto no contrato | C20: 2887.152
A22: MÓDULO 1: Composição da remuneração (M1)
A23: 1 | B23: Composição da Remuneração | D23: Valor (R$)
A24: A | B24: Salário Base | C24: 1 | D24: =C20 -> 2887.152
A25: B | B25: Adicional de periculosidade | C25: 0 | D25: =ROUNDUP($D$24*C25,2) -> 0
A26: C | B26: Adicional de Insalubridade | C26: 0 | D26: =ROUNDUP($D$24*C26,2) -> 0
A27: D | B27: Adicional Noturno | C27: 0 | D27: 0
A28: E | B28: Hora Noturna Adicional | C28: 0 | D28: 0
A29: F | B29: Adicional de Hora Extra | C29: 0 | D29: 0
A30: G | B30: Outros (especificar) | C30: 0 | D30: 0
A31: Total do Módulo 1 | D31: =SUM(D24:D30) -> 2887.152
A33: MÓDULO 2: Encargos e benefícios anuais, mensais e diários (M2)
A34: 2.1 | B34: 13º (décimo terceiro) salário, férias e adicional de férias | C34: Porcentagem (%) | D34: Valor (R$)
A35: A | B35: 13º salário | C35: 0.0833 | D35: =ROUNDUP($D$31/12,2) -> 240.6
A36: B | B36: Férias | C36: 0.0833 | D36: =ROUNDUP($D$31/12,2) -> 240.6
A37: C | B37: Adicional de Férias (1/3 Constitucional) | C37: =C36/3 -> 0.02776666667 | D37: =ROUNDUP($D$31/3/12,2) -> 80.2
A38: Total submódulo 2.1 | D38: =SUM(D35:D37) -> 561.4
A40: 2.2 | B40: GPS, FGTS e outras contribuições | D40: Valor (R$)
A41: A | B41: INSS (com/sem desoneração) | C41: 0 | D41: =ROUNDUP($D$31*C41,2) -> 0
A42: B | B42: Salário Educação | C42: 0.025 | D42: =ROUNDUP($D$31*C42,2) -> 72.18
A43: C | B43: SAT | C43: 0.03 | D43: 86.62
A44: D | B44: SESC - SESI | C44: 0.015 | D44: 43.31
A45: E | B45: SENAI - SENAC | C45: 0.01 | D45: 28.88
A46: F | B46: SEBRAE | C46: 0.006 | D46: 17.33
A47: G | B47: INCRA | C47: 0.002 | D47: 5.78
A48: H | B48: FGTS | C48: 0.08 | D48: 230.98
A49: I | B49: SECONCI | C49: 0.01 | D49: 28.88
B50: Total submódulo 2.2 | C50: =SUM(C41:C49) -> 0.178 | D50: =SUM(D41:D49) -> 513.96
A52: 2.3 | B52: Benefícios mensais e diários | C52: Referência | D52: Valor (R$)
A53: A | B53: Vale transporte | C53: CLT | D53: =ROUND(IF((22*5.5*2)-(D31*0.06*22/30)>0,(22*5.5*2)-(D31*0.06*22/30),0),2) -> 114.97
A54: B | B54: Vale alimentação | C54: CCT | D54: =42.2*22 -> 928.4
A55: C | B55: Assistência Médica-Odontológica e Familiar | C55: SICRO | D55: 287.48
A56: D | B56: Auxílio Creche | C56: CCT | D56: 0
A57: E | B57: Seguro de Vida e Assistência Funeral | C57: SICRO | D57: 9.98
B58: Total submódulo 2.3 | D58: =SUM(D53:D57) -> 1340.83
A59: Total do Módulo 2 | D59: =D38+D50+D58 -> 2416.19
A61: MÓDULO 3: Provisão para rescisão (M3)
A62: A | B62: Aviso Prévio Indenizado | C62: 0.0324 | D62: =ROUNDUP($D$31*C62,2) -> 93.55
A63: B | B63: Aviso Prévio Trabalhado | C63: 0.0008 | D63: =ROUNDUP($D$31*C63,2) -> 2.31
A64: C | B64: Incidência dos encargos sobre o Aviso Prévio | C64: 0.0029 | D64: 8.38
A65: D | B65: Incidencia dos encargos sobre 13o-ferias (submodulo 2.2 sobre 2.1) | C65: 0.0612 | D65: 176.7
A66: E | B66: Multa sobre saldo FGTS | C66: =0.08*0.4 -> 0.032 | D66: 92.39
A67: Total do Módulo 3 | D67: =SUM(D62:D66) -> 373.33
A69: MÓDULO 4: Custo mensal de reposição do profissional ausente (M4)
A70: X | B70: Custo diário do empregado substituto | C70: Dias | D70: =ROUNDUP((D31+D59+D67)/30,2) -> 189.23
A71: A | B71: Férias | C71: =ROUND(30/12,2) -> 2.5 | D71: =ROUNDUP($D$70*C71,2) -> 473.08
A72: B | B72: Ausências por enfermidade | C72: =ROUNDUP(0.66/100*360/12,2) -> 0.2 | D72: =ROUNDUP($D$70*C72,2) -> 37.85
A73: C | B73: Faltas Justificadas | C73: =ROUNDUP(0.56/100*360/12,2) -> 0.17 | D73: 32.17
A74: D | B74: Ausência por acidente de trabalho | C74: =ROUNDUP(0.08/100*360/12,2) -> 0.03 | D74: 5.68
A75: E | B75: Afastamento Parentalidade | C75: =ROUNDUP((0.05+0.03)/100*360/12,2) -> 0.03 | D75: 5.68
A76: F | B76: Outros (especificar) | C76: 0 | D76: 0
A77: Total do Módulo 4 | D77: =SUM(D71:D76) -> 554.46
A79: MÓDULO 5: Insumos de mão de obra (M5)
A80: A | B80: EPI e Uniforme | C80: SINAPI Carpinteiro | D80: =EPI!M2 -> 176.04
A81: B | B81: Materiais e ferramentas | C81: SINAPI Carpinteiro | D81: =FER!M2 -> 92.28
A82: Total do Módulo 5 | D82: =SUM(D80:D81) -> 268.32
A83: Nota: Valores mensais por empregado.
A85: MÓDULO 6: Custos indiretos, tributos e lucro (M6)
A86: A | B86: Custos Indiretos | C86: SINAPI | D86: =BDI!C2 -> 0.048
A87: A.1 | B87: Administração Central | C87: SINAPI | D87: =BDI!C3 -> 0.03
A88: A.2 | B88: Seguros e Garantias Contratuais | C88: SINAPI | D88: =BDI!C4 -> 0.008
A89: A.3 | B89: Riscos | C89: SINAPI | D89: =BDI!C5 -> 0.01
A90: B | B90: Despesas Financeiras | C90: SINAPI | D90: =BDI!C6 -> 0.0062
A91: C | B91: Lucro | C91: SINAPI | D91: =BDI!C7 -> 0.06
A92: D | B92: Tributos Federais e Estaduais/Municipais | C92: SINAPI | D92: =BDI!C8 -> 0.1315
A93: D.1 | B93: COFINS | C93: SINAPI | D93: =BDI!C9 -> 0.03
A94: D.2 | B94: PIS | C94: SINAPI | D94: =BDI!C10 -> 0.0065
A95: D.3 | B95: CPRB - (com/sem desoneração) | C95: SINAPI | D95: =BDI!C11 -> 0.045
A96: D.4 | B96: ISSQN | C96: SINAPI | D96: =BDI!C12 -> 0.05
A97: Total | D97: =BDI!C13 -> 0.287
A98: Total do Módulo 6 | D98: =D107*(D97) -> 1865.342724
A100: QUADRO-RESUMO CUSTO POR EMPREGADO
A101: Mão-de-obra vinculada à execução contratual (valor por empregado)
A102: A | B102: MÓDULO 1: Composição da remuneração (M1) | D102: =D31 -> 2887.152
A103: B | B103: MÓDULO 2: Encargos e benefícios anuais, mensais e diários (M2) | D103: =D59 -> 2416.19
A104: C | B104: MÓDULO 3: Provisão para rescisão (M3) | D104: =D67 -> 373.33
A105: D | B105: MÓDULO 4: Custo de reposição do profissional ausente (M4) | D105: =D77 -> 554.46
A106: E | B106: MÓDULO 5: Insumos de mão de obra (M5) | D106: =D82 -> 268.32
A107: Subtotal (A + B + C + D + E) | D107: =SUM(D102:D106) -> 6499.452
A108: F | B108: MÓDULO 6: Custos indiretos, tributos e lucro (M6) | D108: =D98 -> 1865.342724
A109: Custo mensal do posto | D109: =D107+D108 -> 8364.794724
A110: G | B110: RESERVA MENSAL CONTA VINCULADA | D110: =D38+D67 -> 934.73
A111: H | B111: RESERVA MENSAL REPOSIÇÃO | D111: =D77 -> 554.46
A112: I | B112: CUSTO MENSAL ORDINÁRIO | D112: =D109-D110-D111 -> 6875.604724

Sheet 8.Aju-7
A1: PLANILHAS DE CUSTOS E FORMAÇÃO DE PREÇOS
A2: Discriminação dos serviços
A3: A | B3: Data da Apresentação da Proposta: | D3: 2024-08-26
A4: B | B4: Munícipio/UF: | D4: Brasília/DF
A5: C | B5: Ano do Acordo, Convenção ou Dissídio Coletivo: | C5: SINDISERVICOS/DF | D5: 2024
A6: D | B6: Número de meses de execução contratual: | D6: =12*5 -> 60
A7: E | B7: Tipo de serviço: | D7: Continuado
A8: F | B8: Unidade de medida | D8: Posto
A9: G | B9: Quantidade total a contratar (em função da unidade de medida): | D9: 1
A11: Mão de obra vinculada à execução contratual
A12: Dados complementares para composição dos custos referente à mão de obra
A13: 1 | B13: Tipo de serviço | C13: Ajudante Marceneiro
A14: 2 | B14: Classificação Brasileira de Ocupações (CBO) | C14: 7170-20
A15: 3 | B15: Categoria profissional (vinculada à execução contratual) | C15: Ajudante de obras
A16: 4 | B16: Data base CCT | C16: 2024-01-01
A17: 5 | B17: Vigência CCT | C17: 2024-12-31
A18: 6 | B18: Carga horia semanal | C18: 44 horas/semana
A19: 7 | B19: Piso normativo da categoria profissional | C19: 1629.62
A20: 8 | B20: Salário proposto no contrato | C20: 1955.54
A22: MÓDULO 1: Composição da remuneração (M1)
A23: 1 | B23: Composição da Remuneração | D23: Valor (R$)
A24: A | B24: Salário Base | C24: 1 | D24: =C20 -> 1955.54
A25: B | B25: Adicional de periculosidade | C25: 0 | D25: =ROUNDUP($D$24*C25,2) -> 0
A26: C | B26: Adicional de Insalubridade | C26: 0 | D26: =ROUNDUP($D$24*C26,2) -> 0
A27: D | B27: Adicional Noturno | C27: 0 | D27: 0
A28: E | B28: Hora Noturna Adicional | C28: 0 | D28: 0
A29: F | B29: Adicional de Hora Extra | C29: 0 | D29: 0
A30: G | B30: Outros (especificar) | C30: 0 | D30: 0
A31: Total do Módulo 1 | D31: =SUM(D24:D30) -> 1955.54
A33: MÓDULO 2: Encargos e benefícios anuais, mensais e diários (M2)
A34: 2.1 | B34: 13º (décimo terceiro) salário, férias e adicional de férias | C34: Porcentagem (%) | D34: Valor (R$)
A35: A | B35: 13º salário | C35: 0.0833 | D35: =ROUNDUP($D$31/12,2) -> 162.97
A36: B | B36: Férias | C36: 0.0833 | D36: =ROUNDUP($D$31/12,2) -> 162.97
A37: C | B37: Adicional de Férias (1/3 Constitucional) | C37: =C36/3 -> 0.02776666667 | D37: =ROUNDUP($D$31/3/12,2) -> 54.33
A38: Total submódulo 2.1 | D38: =SUM(D35:D37) -> 380.27
A40: 2.2 | B40: GPS, FGTS e outras contribuições | D40: Valor (R$)
A41: A | B41: INSS (com/sem desoneração) | C41: 0 | D41: =ROUNDUP($D$31*C41,2) -> 0
A42: B | B42: Salário Educação | C42: 0.025 | D42: =ROUNDUP($D$31*C42,2) -> 48.89
A43: C | B43: SAT | C43: 0.03 | D43: 58.67
A44: D | B44: SESC - SESI | C44: 0.015 | D44: 29.34
A45: E | B45: SENAI - SENAC | C45: 0.01 | D45: 19.56
A46: F | B46: SEBRAE | C46: 0.006 | D46: 11.74
A47: G | B47: INCRA | C47: 0.002 | D47: 3.92
A48: H | B48: FGTS | C48: 0.08 | D48: 156.45
A49: I | B49: SECONCI | C49: 0.01 | D49: 19.56
B50: Total submódulo 2.2 | C50: =SUM(C41:C49) -> 0.178 | D50: =SUM(D41:D49) -> 348.13
A52: 2.3 | B52: Benefícios mensais e diários | C52: Referência | D52: Valor (R$)
A53: A | B53: Vale transporte | C53: CLT | D53: =ROUND(IF((22*5.5*2)-(D31*0.06*22/30)>0,(22*5.5*2)-(D31*0.06*22/30),0),2) -> 155.96
A54: B | B54: Vale alimentação | C54: CCT | D54: =42.2*22 -> 928.4
A55: C | B55: Assistência Médica-Odontológica e Familiar | C55: SICRO | D55: 287.48
A56: D | B56: Auxílio Creche | C56: CCT | D56: 0
A57: E | B57: Seguro de Vida e Assistência Funeral | C57: SICRO | D57: 9.98
B58: Total submódulo 2.3 | D58: =SUM(D53:D57) -> 1381.82
A59: Total do Módulo 2 | D59: =D38+D50+D58 -> 2110.22
A61: MÓDULO 3: Provisão para rescisão (M3)
A62: A | B62: Aviso Prévio Indenizado | C62: 0.0324 | D62: =ROUNDUP($D$31*C62,2) -> 63.36
A63: B | B63: Aviso Prévio Trabalhado | C63: 0.0008 | D63: =ROUNDUP($D$31*C63,2) -> 1.57
A64: C | B64: Incidência dos encargos sobre o Aviso Prévio | C64: 0.0029 | D64: 5.68
A65: D | B65: Incidencia dos encargos sobre 13o-ferias (submodulo 2.2 sobre 2.1) | C65: 0.0612 | D65: 119.68
A66: E | B66: Multa sobre saldo FGTS | C66: =0.08*0.4 -> 0.032 | D66: 62.58
A67: Total do Módulo 3 | D67: =SUM(D62:D66) -> 252.87
A69: MÓDULO 4: Custo mensal de reposição do profissional ausente (M4)
A70: X | B70: Custo diário do empregado substituto | C70: Dias | D70: =ROUNDUP((D31+D59+D67)/30,2) -> 143.96
A71: A | B71: Férias | C71: =ROUND(30/12,2) -> 2.5 | D71: =ROUNDUP($D$70*C71,2) -> 359.9
A72: B | B72: Ausências por enfermidade | C72: =ROUNDUP(0.66/100*360/12,2) -> 0.2 | D72: =ROUNDUP($D$70*C72,2) -> 28.8
A73: C | B73: Faltas Justificadas | C73: =ROUNDUP(0.56/100*360/12,2) -> 0.17 | D73: 24.48
A74: D | B74: Ausência por acidente de trabalho | C74: =ROUNDUP(0.08/100*360/12,2) -> 0.03 | D74: 4.32
A75: E | B75: Afastamento Parentalidade | C75: =ROUNDUP((0.05+0.03)/100*360/12,2) -> 0.03 | D75: 4.32
A76: F | B76: Outros (especificar) | C76: 0 | D76: 0
A77: Total do Módulo 4 | D77: =SUM(D71:D76) -> 421.82
A79: MÓDULO 5: Insumos de mão de obra (M5)
A80: A | B80: EPI e Uniforme | C80: SINAPI Carpinteiro | D80: =EPI!M2 -> 176.04
A81: B | B81: Materiais e ferramentas | C81: SINAPI Carpinteiro | D81: =FER!M2 -> 92.28
A82: Total do Módulo 5 | D82: =SUM(D80:D81) -> 268.32
A83: Nota: Valores mensais por empregado.
A85: MÓDULO 6: Custos indiretos, tributos e lucro (M6)
A86: A | B86: Custos Indiretos | C86: SINAPI | D86: =BDI!C2 -> 0.048
A87: A.1 | B87: Administração Central | C87: SINAPI | D87: =BDI!C3 -> 0.03
A88: A.2 | B88: Seguros e Garantias Contratuais | C88: SINAPI | D88: =BDI!C4 -> 0.008
A89: A.3 | B89: Riscos | C89: SINAPI | D89: =BDI!C5 -> 0.01
A90: B | B90: Despesas Financeiras | C90: SINAPI | D90: =BDI!C6 -> 0.0062
A91: C | B91: Lucro | C91: SINAPI | D91: =BDI!C7 -> 0.06
A92: D | B92: Tributos Federais e Estaduais/Municipais | C92: SINAPI | D92: =BDI!C8 -> 0.1315
A93: D.1 | B93: COFINS | C93: SINAPI | D93: =BDI!C9 -> 0.03
A94: D.2 | B94: PIS | C94: SINAPI | D94: =BDI!C10 -> 0.0065
A95: D.3 | B95: CPRB - (com/sem desoneração) | C95: SINAPI | D95: =BDI!C11 -> 0.045
A96: D.4 | B96: ISSQN | C96: SINAPI | D96: =BDI!C12 -> 0.05
A97: Total | D97: =BDI!C13 -> 0.287
A98: Total do Módulo 6 | D98: =D107*(D97) -> 1437.51699
A100: QUADRO-RESUMO CUSTO POR EMPREGADO
A101: Mão-de-obra vinculada à execução contratual (valor por empregado)
A102: A | B102: MÓDULO 1: Composição da remuneração (M1) | D102: =D31 -> 1955.54
A103: B | B103: MÓDULO 2: Encargos e benefícios anuais, mensais e diários (M2) | D103: =D59 -> 2110.22
A104: C | B104: MÓDULO 3: Provisão para rescisão (M3) | D104: =D67 -> 252.87
A105: D | B105: MÓDULO 4: Custo de reposição do profissional ausente (M4) | D105: =D77 -> 421.82
A106: E | B106: MÓDULO 5: Insumos de mão de obra (M5) | D106: =D82 -> 268.32
A107: Subtotal (A + B + C + D + E) | D107: =SUM(D102:D106) -> 5008.77
A108: F | B108: MÓDULO 6: Custos indiretos, tributos e lucro (M6) | D108: =D98 -> 1437.51699
A109: Custo mensal do posto | D109: =D107+D108 -> 6446.28699
A110: G | B110: RESERVA MENSAL CONTA VINCULADA | D110: =D38+D67 -> 633.14
A111: H | B111: RESERVA MENSAL REPOSIÇÃO | D111: =D77 -> 421.82
A112: I | B112: CUSTO MENSAL ORDINÁRIO | D112: =D109-D110-D111 -> 5391.32699

Sheet 9.Enca
A1: PLANILHAS DE CUSTOS E FORMAÇÃO DE PREÇOS
A2: Discriminação dos serviços
A3: A | B3: Data da Apresentação da Proposta: | D3: 2024-08-26
A4: B | B4: Munícipio/UF: | D4: Brasília/DF
A5: C | B5: Ano do Acordo, Convenção ou Dissídio Coletivo: | C5: SINDISERVICOS/DF | D5: 2024
A6: D | B6: Número de meses de execução contratual: | D6: =12*5 -> 60
A7: E | B7: Tipo de serviço: | D7: Continuado
A8: F | B8: Unidade de medida | D8: Posto
A9: G | B9: Quantidade total a contratar (em função da unidade de medida): | D9: 1
A11: Mão de obra vinculada à execução contratual
A12: Dados complementares para composição dos custos referente à mão de obra
A13: 1 | B13: Tipo de serviço | C13: Técnico em Manutenção e Hidráulica
A14: 2 | B14: Classificação Brasileira de Ocupações (CBO) | C14: 7241-10
A15: 3 | B15: Categoria profissional (vinculada à execução contratual) | C15: Encanador
A16: 4 | B16: Data base CCT | C16: 2024-01-01
A17: 5 | B17: Vigência CCT | C17: 2024-12-31
A18: 6 | B18: Carga horia semanal | C18: 44 horas/semana
A19: 7 | B19: Piso normativo da categoria profissional | C19: 2405.96
A20: 8 | B20: Salário proposto no contrato | C20: 2887.15
A22: MÓDULO 1: Composição da remuneração (M1)
A23: 1 | B23: Composição da Remuneração | D23: Valor (R$)
A24: A | B24: Salário Base | C24: 1 | D24: =C20 -> 2887.15
A25: B | B25: Adicional de periculosidade | C25: 0 | D25: =ROUNDUP($D$24*C25,2) -> 0
A26: C | B26: Adicional de Insalubridade | C26: 0.4 | D26: =ROUNDUP($D$24*C26,2) -> 1154.86
A27: D | B27: Adicional Noturno | C27: 0 | D27: 0
A28: E | B28: Hora Noturna Adicional | C28: 0 | D28: 0
A29: F | B29: Adicional de Hora Extra | C29: 0 | D29: 0
A30: G | B30: Outros (especificar) | C30: 0 | D30: 0
A31: Total do Módulo 1 | D31: =SUM(D24:D30) -> 4042.01
A33: MÓDULO 2: Encargos e benefícios anuais, mensais e diários (M2)
A34: 2.1 | B34: 13º (décimo terceiro) salário, férias e adicional de férias | C34: Porcentagem (%) | D34: Valor (R$)
A35: A | B35: 13º salário | C35: 0.0833 | D35: =ROUNDUP($D$31/12,2) -> 336.84
A36: B | B36: Férias | C36: 0.0833 | D36: =ROUNDUP($D$31/12,2) -> 336.84
A37: C | B37: Adicional de Férias (1/3 Constitucional) | C37: =C36/3 -> 0.02776666667 | D37: =ROUNDUP($D$31/3/12,2) -> 112.28
A38: Total submódulo 2.1 | D38: =SUM(D35:D37) -> 785.96
A40: 2.2 | B40: GPS, FGTS e outras contribuições | D40: Valor (R$)
A41: A | B41: INSS (com/sem desoneração) | C41: 0 | D41: =ROUNDUP($D$31*C41,2) -> 0
A42: B | B42: Salário Educação | C42: 0.025 | D42: =ROUNDUP($D$31*C42,2) -> 101.06
A43: C | B43: SAT | C43: 0.03 | D43: 121.27
A44: D | B44: SESC - SESI | C44: 0.015 | D44: 60.64
A45: E | B45: SENAI - SENAC | C45: 0.01 | D45: 40.43
A46: F | B46: SEBRAE | C46: 0.006 | D46: 24.26
A47: G | B47: INCRA | C47: 0.002 | D47: 8.09
A48: H | B48: FGTS | C48: 0.08 | D48: 323.37
A49: I | B49: SECONCI | C49: 0.01 | D49: 40.43
B50: Total submódulo 2.2 | C50: =SUM(C41:C49) -> 0.178 | D50: =SUM(D41:D49) -> 719.55
A52: 2.3 | B52: Benefícios mensais e diários | C52: Referência | D52: Valor (R$)
A53: A | B53: Vale transporte | C53: CLT | D53: =ROUND(IF((22*5.5*2)-(D31*0.06*22/30)>0,(22*5.5*2)-(D31*0.06*22/30),0),2) -> 64.15
A54: B | B54: Vale alimentação | C54: CCT | D54: =42.2*22 -> 928.4
A55: C | B55: Assistência Médica-Odontológica e Familiar | C55: SICRO | D55: 287.48
A56: D | B56: Auxílio Creche | C56: CCT | D56: 0
A57: E | B57: Seguro de Vida e Assistência Funeral | C57: SICRO | D57: 9.98
B58: Total submódulo 2.3 | D58: =SUM(D53:D57) -> 1290.01
A59: Total do Módulo 2 | D59: =D38+D50+D58 -> 2795.52
A61: MÓDULO 3: Provisão para rescisão (M3)
A62: A | B62: Aviso Prévio Indenizado | C62: 0.0324 | D62: =ROUNDUP($D$31*C62,2) -> 130.97
A63: B | B63: Aviso Prévio Trabalhado | C63: 0.0008 | D63: =ROUNDUP($D$31*C63,2) -> 3.24
A64: C | B64: Incidência dos encargos sobre o Aviso Prévio | C64: 0.0029 | D64: 11.73
A65: D | B65: Incidencia dos encargos sobre 13o-ferias (submodulo 2.2 sobre 2.1) | C65: 0.0612 | D65: 247.38
A66: E | B66: Multa sobre saldo FGTS | C66: =0.08*0.4 -> 0.032 | D66: 129.35
A67: Total do Módulo 3 | D67: =SUM(D62:D66) -> 522.67
A69: MÓDULO 4: Custo mensal de reposição do profissional ausente (M4)
A70: X | B70: Custo diário do empregado substituto | C70: Dias | D70: =ROUNDUP((D31+D59+D67)/30,2) -> 245.34
A71: A | B71: Férias | C71: =ROUND(30/12,2) -> 2.5 | D71: =ROUNDUP($D$70*C71,2) -> 613.35
A72: B | B72: Ausências por enfermidade | C72: =ROUNDUP(0.66/100*360/12,2) -> 0.2 | D72: =ROUNDUP($D$70*C72,2) -> 49.07
A73: C | B73: Faltas Justificadas | C73: =ROUNDUP(0.56/100*360/12,2) -> 0.17 | D73: 41.71
A74: D | B74: Ausência por acidente de trabalho | C74: =ROUNDUP(0.08/100*360/12,2) -> 0.03 | D74: 7.37
A75: E | B75: Afastamento Parentalidade | C75: =ROUNDUP((0.05+0.03)/100*360/12,2) -> 0.03 | D75: 7.37
A76: F | B76: Outros (especificar) | C76: 0 | D76: 0
A77: Total do Módulo 4 | D77: =SUM(D71:D76) -> 718.87
A79: MÓDULO 5: Insumos de mão de obra (M5)
A80: A | B80: EPI e Uniforme | C80: SINAPI Encanador | D80: =EPI!M4 -> 120.2
A81: B | B81: Materiais e ferramentas | C81: SINAPI Encanador | D81: =FER!M4 -> 59.27
A82: Total do Módulo 5 | D82: =SUM(D80:D81) -> 179.47
A83: Nota: Valores mensais por empregado.
A85: MÓDULO 6: Custos indiretos, tributos e lucro (M6)
A86: A | B86: Custos Indiretos | C86: SINAPI | D86: =BDI!C2 -> 0.048
A87: A.1 | B87: Administração Central | C87: SINAPI | D87: =BDI!C3 -> 0.03
A88: A.2 | B88: Seguros e Garantias Contratuais | C88: SINAPI | D88: =BDI!C4 -> 0.008
A89: A.3 | B89: Riscos | C89: SINAPI | D89: =BDI!C5 -> 0.01
A90: B | B90: Despesas Financeiras | C90: SINAPI | D90: =BDI!C6 -> 0.0062
A91: C | B91: Lucro | C91: SINAPI | D91: =BDI!C7 -> 0.06
A92: D | B92: Tributos Federais e Estaduais/Municipais | C92: SINAPI | D92: =BDI!C8 -> 0.1315
A93: D.1 | B93: COFINS | C93: SINAPI | D93: =BDI!C9 -> 0.03
A94: D.2 | B94: PIS | C94: SINAPI | D94: =BDI!C10 -> 0.0065
A95: D.3 | B95: CPRB - (com/sem desoneração) | C95: SINAPI | D95: =BDI!C11 -> 0.045
A96: D.4 | B96: ISSQN | C96: SINAPI | D96: =BDI!C12 -> 0.05
A97: Total | D97: =BDI!C13 -> 0.287
A98: Total do Módulo 6 | D98: =D107*(D97) -> 2370.20098
A100: QUADRO-RESUMO CUSTO POR EMPREGADO
A101: Mão-de-obra vinculada à execução contratual (valor por empregado)
A102: A | B102: MÓDULO 1: Composição da remuneração (M1) | D102: =D31 -> 4042.01
A103: B | B103: MÓDULO 2: Encargos e benefícios anuais, mensais e diários (M2) | D103: =D59 -> 2795.52
A104: C | B104: MÓDULO 3: Provisão para rescisão (M3) | D104: =D67 -> 522.67
A105: D | B105: MÓDULO 4: Custo de reposição do profissional ausente (M4) | D105: =D77 -> 718.87
A106: E | B106: MÓDULO 5: Insumos de mão de obra (M5) | D106: =D82 -> 179.47
A107: Subtotal (A + B + C + D + E) | D107: =SUM(D102:D106) -> 8258.54
A108: F | B108: MÓDULO 6: Custos indiretos, tributos e lucro (M6) | D108: =D98 -> 2370.20098
A109: Custo mensal do posto | D109: =D107+D108 -> 10628.74098
A110: G | B110: RESERVA MENSAL CONTA VINCULADA | D110: =D38+D67 -> 1308.63
A111: H | B111: RESERVA MENSAL REPOSIÇÃO | D111: =D77 -> 718.87
A112: I | B112: CUSTO MENSAL ORDINÁRIO | D112: =D109-D110-D111 -> 8601.24098

Sheet 10.Aju-9
A1: PLANILHAS DE CUSTOS E FORMAÇÃO DE PREÇOS
A2: Discriminação dos serviços
A3: A | B3: Data da Apresentação da Proposta: | D3: 2024-08-26
A4: B | B4: Munícipio/UF: | D4: Brasília/DF
A5: C | B5: Ano do Acordo, Convenção ou Dissídio Coletivo: | C5: SINDISERVICOS/DF | D5: 2024
A6: D | B6: Número de meses de execução contratual: | D6: =12*5 -> 60
A7: E | B7: Tipo de serviço: | D7: Continuado
A8: F | B8: Unidade de medida | D8: Posto
A9: G | B9: Quantidade total a contratar (em função da unidade de medida): | D9: 1
A11: Mão de obra vinculada à execução contratual
A12: Dados complementares para composição dos custos referente à mão de obra
A13: 1 | B13: Tipo de serviço | C13: Ajudante Geral
A14: 2 | B14: Classificação Brasileira de Ocupações (CBO) | C14: 7170-20
A15: 3 | B15: Categoria profissional (vinculada à execução contratual) | C15: Ajudante de obras
A16: 4 | B16: Data base CCT | C16: 2024-01-01
A17: 5 | B17: Vigência CCT | C17: 2024-12-31
A18: 6 | B18: Carga horia semanal | C18: 44 horas/semana
A19: 7 | B19: Piso normativo da categoria profissional | C19: 1629.62
A20: 8 | B20: Salário proposto no contrato | C20: 1955.54
A22: MÓDULO 1: Composição da remuneração (M1)
A23: 1 | B23: Composição da Remuneração | D23: Valor (R$)
A24: A | B24: Salário Base | C24: 1 | D24: =C20 -> 1955.54
A25: B | B25: Adicional de periculosidade | C25: 0 | D25: =ROUNDUP($D$24*C25,2) -> 0
A26: C | B26: Adicional de Insalubridade | C26: 0 | D26: =ROUNDUP($D$24*C26,2) -> 0
A27: D | B27: Adicional Noturno | C27: 0 | D27: 0
A28: E | B28: Hora Noturna Adicional | C28: 0 | D28: 0
A29: F | B29: Adicional de Hora Extra | C29: 0 | D29: 0
A30: G | B30: Outros (especificar) | C30: 0 | D30: 0
A31: Total do Módulo 1 | D31: =SUM(D24:D30) -> 1955.54
A33: MÓDULO 2: Encargos e benefícios anuais, mensais e diários (M2)
A34: 2.1 | B34: 13º (décimo terceiro) salário, férias e adicional de férias | C34: Porcentagem (%) | D34: Valor (R$)
A35: A | B35: 13º salário | C35: 0.0833 | D35: =ROUNDUP($D$31/12,2) -> 162.97
A36: B | B36: Férias | C36: 0.0833 | D36: =ROUNDUP($D$31/12,2) -> 162.97
A37: C | B37: Adicional de Férias (1/3 Constitucional) | C37: =C36/3 -> 0.02776666667 | D37: =ROUNDUP($D$31/3/12,2) -> 54.33
A38: Total submódulo 2.1 | D38: =SUM(D35:D37) -> 380.27
A40: 2.2 | B40: GPS, FGTS e outras contribuições | D40: Valor (R$)
A41: A | B41: INSS (com/sem desoneração) | C41: 0 | D41: =ROUNDUP($D$31*C41,2) -> 0
A42: B | B42: Salário Educação | C42: 0.025 | D42: =ROUNDUP($D$31*C42,2) -> 48.89
A43: C | B43: SAT | C43: 0.03 | D43: 58.67
A44: D | B44: SESC - SESI | C44: 0.015 | D44: 29.34
A45: E | B45: SENAI - SENAC | C45: 0.01 | D45: 19.56
A46: F | B46: SEBRAE | C46: 0.006 | D46: 11.74
A47: G | B47: INCRA | C47: 0.002 | D47: 3.92
A48: H | B48: FGTS | C48: 0.08 | D48: 156.45
A49: I | B49: SECONCI | C49: 0.01 | D49: 19.56
B50: Total submódulo 2.2 | C50: =SUM(C41:C49) -> 0.178 | D50: =SUM(D41:D49) -> 348.13
A52: 2.3 | B52: Benefícios mensais e diários | C52: Referência | D52: Valor (R$)
A53: A | B53: Vale transporte | C53: CLT | D53: =ROUND(IF((22*5.5*2)-(D31*0.06*22/30)>0,(22*5.5*2)-(D31*0.06*22/30),0),2) -> 155.96
A54: B | B54: Vale alimentação | C54: CCT | D54: =42.2*22 -> 928.4
A55: C | B55: Assistência Médica-Odontológica e Familiar | C55: SICRO | D55: 287.48
A56: D | B56: Auxílio Creche | C56: CCT | D56: 0
A57: E | B57: Seguro de Vida e Assistência Funeral | C57: SICRO | D57: 9.98
B58: Total submódulo 2.3 | D58: =SUM(D53:D57) -> 1381.82
A59: Total do Módulo 2 | D59: =D38+D50+D58 -> 2110.22
A61: MÓDULO 3: Provisão para rescisão (M3)
A62: A | B62: Aviso Prévio Indenizado | C62: 0.0324 | D62: =ROUNDUP($D$31*C62,2) -> 63.36
A63: B | B63: Aviso Prévio Trabalhado | C63: 0.0008 | D63: =ROUNDUP($D$31*C63,2) -> 1.57
A64: C | B64: Incidência dos encargos sobre o Aviso Prévio | C64: 0.0029 | D64: 5.68
A65: D | B65: Incidencia dos encargos sobre 13o-ferias (submodulo 2.2 sobre 2.1) | C65: 0.0612 | D65: 119.68
A66: E | B66: Multa sobre saldo FGTS | C66: =0.08*0.4 -> 0.032 | D66: 62.58
A67: Total do Módulo 3 | D67: =SUM(D62:D66) -> 252.87
A69: MÓDULO 4: Custo mensal de reposição do profissional ausente (M4)
A70: X | B70: Custo diário do empregado substituto | C70: Dias | D70: =ROUNDUP((D31+D59+D67)/30,2) -> 143.96
A71: A | B71: Férias | C71: =ROUND(30/12,2) -> 2.5 | D71: =ROUNDUP($D$70*C71,2) -> 359.9
A72: B | B72: Ausências por enfermidade | C72: =ROUNDUP(0.66/100*360/12,2) -> 0.2 | D72: =ROUNDUP($D$70*C72,2) -> 28.8
A73: C | B73: Faltas Justificadas | C73: =ROUNDUP(0.56/100*360/12,2) -> 0.17 | D73: 24.48
A74: D | B74: Ausência por acidente de trabalho | C74: =ROUNDUP(0.08/100*360/12,2) -> 0.03 | D74: 4.32
A75: E | B75: Afastamento Parentalidade | C75: =ROUNDUP((0.05+0.03)/100*360/12,2) -> 0.03 | D75: 4.32
A76: F | B76: Outros (especificar) | C76: 0 | D76: 0
A77: Total do Módulo 4 | D77: =SUM(D71:D76) -> 421.82
A79: MÓDULO 5: Insumos de mão de obra (M5)
A80: A | B80: EPI e Uniforme | C80: SINAPI Pintor | D80: =EPI!M7 -> 246.5
A81: B | B81: Materiais e ferramentas | C81: SINAPI Pintor | D81: =FER!M7 -> 269.81
A82: Total do Módulo 5 | D82: =SUM(D80:D81) -> 516.31
A83: Nota: Valores mensais por empregado.
A85: MÓDULO 6: Custos indiretos, tributos e lucro (M6)
A86: A | B86: Custos Indiretos | C86: SINAPI | D86: =BDI!C2 -> 0.048
A87: A.1 | B87: Administração Central | C87: SINAPI | D87: =BDI!C3 -> 0.03
A88: A.2 | B88: Seguros e Garantias Contratuais | C88: SINAPI | D88: =BDI!C4 -> 0.008
A89: A.3 | B89: Riscos | C89: SINAPI | D89: =BDI!C5 -> 0.01
A90: B | B90: Despesas Financeiras | C90: SINAPI | D90: =BDI!C6 -> 0.0062
A91: C | B91: Lucro | C91: SINAPI | D91: =BDI!C7 -> 0.06
A92: D | B92: Tributos Federais e Estaduais/Municipais | C92: SINAPI | D92: =BDI!C8 -> 0.1315
A93: D.1 | B93: COFINS | C93: SINAPI | D93: =BDI!C9 -> 0.03
A94: D.2 | B94: PIS | C94: SINAPI | D94: =BDI!C10 -> 0.0065
A95: D.3 | B95: CPRB - (com/sem desoneração) | C95: SINAPI | D95: =BDI!C11 -> 0.045
A96: D.4 | B96: ISSQN | C96: SINAPI | D96: =BDI!C12 -> 0.05
A97: Total | D97: =BDI!C13 -> 0.287
A98: Total do Módulo 6 | D98: =D107*(D97) -> 1508.69012
A100: QUADRO-RESUMO CUSTO POR EMPREGADO
A101: Mão-de-obra vinculada à execução contratual (valor por empregado)
A102: A | B102: MÓDULO 1: Composição da remuneração (M1) | D102: =D31 -> 1955.54
A103: B | B103: MÓDULO 2: Encargos e benefícios anuais, mensais e diários (M2) | D103: =D59 -> 2110.22
A104: C | B104: MÓDULO 3: Provisão para rescisão (M3) | D104: =D67 -> 252.87
A105: D | B105: MÓDULO 4: Custo de reposição do profissional ausente (M4) | D105: =D77 -> 421.82
A106: E | B106: MÓDULO 5: Insumos de mão de obra (M5) | D106: =D82 -> 516.31
A107: Subtotal (A + B + C + D + E) | D107: =SUM(D102:D106) -> 5256.76
A108: F | B108: MÓDULO 6: Custos indiretos, tributos e lucro (M6) | D108: =D98 -> 1508.69012
A109: Custo mensal do posto | D109: =D107+D108 -> 6765.45012
A110: G | B110: RESERVA MENSAL CONTA VINCULADA | D110: =D38+D67 -> 633.14
A111: H | B111: RESERVA MENSAL REPOSIÇÃO | D111: =D77 -> 421.82
A112: I | B112: CUSTO MENSAL ORDINÁRIO | D112: =D109-D110-D111 -> 5710.49012

Sheet BDI
A1: BDI SERVIÇOS
A2: A | B2: Custos Indiretos | C2: =SUM(C3:C5) -> 0.048
A3: A.1 | B3: Administração Central | C3: 0.03
A4: A.2 | B4: Seguros e Garantias Contratuais | C4: 0.008
A5: A.3 | B5: Riscos | C5: 0.01
A6: B | B6: Despesas Financeiras | C6: 0.0062
A7: C | B7: Lucro | C7: 0.06
A8: D | B8: Tributos Federais e Estaduais/Municipais | C8: =SUM(C9:C12) -> 0.1315
A9: D.1 | B9: COFINS | C9: 0.03
A10: D.2 | B10: PIS | C10: 0.0065
A11: D.3 | B11: CPRB - (com/sem desoneração) | C11: 0.045
A12: D.4 | B12: ISSQN | C12: 0.05
A13: Total | C13: =ROUND((1+C2)*(1+C6)*(1+C7)/(1-C8)-1,4) -> 0.287
A16: BDI MATERIAIS
A17: A | B17: Custos Indiretos | C17: =SUM(C18:C20) -> 0.0478
A18: A.1 | B18: Administração Central | C18: 0.0345
A19: A.2 | B19: Seguros e Garantias Contratuais | C19: 0.0048
A20: A.3 | B20: Riscos | C20: 0.0085
A21: B | B21: Despesas Financeiras | C21: 0.0085
A22: C | B22: Lucro | C22: 0.0511
A23: D | B23: Tributos Federais e Estaduais/Municipais | C23: =SUM(C24:C27) -> 0.045
A24: D.1 | B24: COFINS | C24: 0
A25: D.2 | B25: PIS | C25: 0
A26: D.3 | B26: CPRB - (com/sem desoneração) | C26: 0.045
A27: D.4 | B27: ISSQN | C27: 0
A28: Total | C28: =ROUND((1+C17)*(1+C21)*(1+C22)/(1-C23)-1,4) -> 0.163

Sheet MAT
D1: Obra | E1: Bancos | G1: BDI SINAPI | H1: BDI Proposta | I1: Encargos Sociais | N1: DESÁGIO s/ BDI | O1: DESÁGIO c/ BDI
D2: Itens de manutenção | E2: SINAPI - 07/2024 - Distrito Federal SBC - 07/2024 - Distrito Federal ORSE - 06/2024 - Sergipe SEINFRA - 028 - Ceará SETOP - 04/2024 - Minas Gerais CPOS/CDHU - 06/2024 - São Paulo FDE - 04/2024 - São Paulo AGETOP CIVIL - 04/2024 - Goiás SCO - 07/2024 - Rio de Janeiro | G2: 0.163 | H2: =BDI!$C$28 -> 0.163 | I2: Não Desonerado: embutido nos preços unitário dos insumos de mão de obra, de acordo com as bases. | N2: =ROUND((N5-I5)/N5,4) -> -0.0066 | O2: =ROUND((O5-J5)/O5,4) -> -0.0066
A3: Orçamento Sintético
A4: Item | B4: Código | C4: Banco | D4: Descrição | E4: Und | F4: Quant. | G4: Valor Unit Proposta s/ BDI | H4: Valor Unit Proposta c/ BDI | I4: Total s/ BDI | J4: Total c/ BDI | L4: Valor Unit Referencia s/ BDI | M4: Valor Unit Referencia c/ BDI | N4: Total s/ BDI | O4: Total c/ BDI
A5: TOTAL | I5: =I6+I12+I17+I51+I60+I83+I97+I144+I149+I154+I159+I163+I168+I173+I218+I225+I243 -> 575328.22 | J5: =J6+J12+J17+J51+J60+J83+J97+J144+J149+J154+J159+J163+J168+J173+J218+J225+J243 -> 669072.18 | N5: =N6+N12+N17+N51+N60+N83+N97+N144+N149+N154+N159+N163+N168+N173+N218+N225+N243 -> 571572.82 | O5: =O6+O12+O17+O51+O60+O83+O97+O144+O149+O154+O159+O163+O168+O173+O218+O225+O243 -> 664705.18
A6: 1.1 | D6: Tubo água fria | I6: =SUM(I7:I11) -> 2439 | J6: =SUM(J7:J11) -> 2836.5 | N6: =SUM(N7:N11) -> 2439 | O6: =SUM(O7:O11) -> 2836.5
A7: 1.1.1 | B7: 00009867 | C7: SINAPI | D7: TUBO PVC, SOLDAVEL, DE 20 MM, AGUA FRIA (NBR-5648) | E7: M | F7: 60 | G7: 3.43 | H7: =ROUND(G7*(1+$H$2),2) -> 3.99 | I7: =ROUND(G7*F7,2) -> 205.8 | J7: =ROUND(H7*F7,2) -> 239.4 | L7: 3.43 | M7: =ROUND(L7*(1+$G$2),2) -> 3.99 | N7: =ROUND(L7*$F7,2) -> 205.8 | O7: =ROUND(M7*$F7,2) -> 239.4
A8: 1.1.2 | B8: 00009868 | C8: SINAPI | D8: TUBO PVC, SOLDAVEL, DE 25 MM, AGUA FRIA (NBR-5648) | E8: M | F8: 60 | G8: 3.87 | H8: =ROUND(G8*(1+$H$2),2) -> 4.5 | I8: =ROUND(G8*F8,2) -> 232.2 | J8: =ROUND(H8*F8,2) -> 270 | L8: 3.87 | M8: =ROUND(L8*(1+$G$2),2) -> 4.5 | N8: =ROUND(L8*$F8,2) -> 232.2 | O8: =ROUND(M8*$F8,2) -> 270
A9: 1.1.3 | B9: 00009874 | C9: SINAPI | D9: TUBO PVC, SOLDAVEL, DE 40 MM, AGUA FRIA (NBR-5648) | E9: M | F9: 30 | G9: 13.11 | H9: 15.25 | I9: 393.3 | J9: 457.5 | L9: 13.11 | M9: 15.25 | N9: 393.3 | O9: 457.5
A10: 1.1.4 | B10: 00009875 | C10: SINAPI | D10: TUBO PVC, SOLDAVEL, DE 50 MM, AGUA FRIA (NBR-5648) | E10: M | F10: 30 | G10: 14.38 | H10: 16.72 | I10: 431.4 | J10: 501.6 | L10: 14.38 | M10: 16.72 | N10: 431.4 | O10: 501.6
A11: 1.1.5 | B11: 00009871 | C11: SINAPI | D11: TUBO PVC, SOLDAVEL, DE 75 MM, AGUA FRIA (NBR-5648) | E11: M | F11: 30 | G11: 39.21 | H11: 45.6 | I11: 1176.3 | J11: 1368 | L11: 39.21 | M11: 45.6 | N11: 1176.3 | O11: 1368
A12: 1.2 | D12: Tubo esgoto | I12: =SUM(I13:I16) -> 1581 | J12: =SUM(J13:J16) -> 1838.4 | N12: =SUM(N13:N16) -> 1581 | O12: =SUM(O13:O16) -> 1838.4
A13: 1.2.1 | B13: 00009835 | C13: SINAPI | D13: TUBO PVC SERIE NORMAL, DN 40 MM, PARA ESGOTO PREDIAL (NBR 5688) | E13: M | F13: 30 | G13: 5.61 | H13: 6.52 | I13: 168.3 | J13: 195.6 | L13: 5.61 | M13: =ROUND(L13*(1+$G$2),2) -> 6.52 | N13: 168.3 | O13: =ROUND(M13*$F13,2) -> 195.6
A14: 1.2.2 | B14: 00009838 | C14: SINAPI | D14: TUBO PVC SERIE NORMAL, DN 50 MM, PARA ESGOTO PREDIAL (NBR 5688) | E14: M | F14: 30 | G14: 9.26 | H14: 10.77 | I14: 277.8 | J14: 323.1 | L14: 9.26 | M14: 10.77 | N14: 277.8 | O14: =ROUND(M14*$F14,2) -> 323.1
A15: 1.2.3 | B15: 00009837 | C15: SINAPI | D15: TUBO PVC SERIE NORMAL, DN 75 MM, PARA ESGOTO PREDIAL (NBR 5688) | E15: M | F15: 30 | G15: 12.15 | H15: 14.13 | I15: 364.5 | J15: 423.9 | L15: 12.15 | M15: 14.13 | N15: 364.5 | O15: 423.9
A16: 1.2.4 | B16: 00009836 | C16: SINAPI | D16: TUBO PVC SERIE NORMAL, DN 100 MM, PARA ESGOTO PREDIAL (NBR 5688) | E16: M | F16: 60 | G16: 12.84 | H16: 14.93 | I16: 770.4 | J16: 895.8 | L16: 12.84 | M16: 14.93 | N16: 770.4 | O16: 895.8
A17: 1.3 | D17: Conexões água fria | I17: =SUM(I18:I50) -> 6377.45 | J17: =SUM(J18:J50) -> 7416.65 | N17: =SUM(N18:N50) -> 6377.45 | O17: =SUM(O18:O50) -> 7416.65
A18: 1.3.1 | B18: 005726 | C18: SBC | D18: PLUG PVC ROSCAVEL 3/4" | E18: UN | F18: 25 | G18: 1.72 | H18: 2 | I18: 43 | J18: 50 | L18: 1.72 | M18: 2 | N18: 43 | O18: =ROUND(M18*$F18,2) -> 50
A19: 1.3.2 | B19: 005725 | C19: SBC | D19: PLUG PVC ROSCAVEL 1/2" | E19: UN | F19: 25 | G19: 1.13 | H19: 1.31 | I19: 28.25 | J19: 32.75 | L19: 1.13 | M19: 1.31 | N19: 28.25 | O19: =ROUND(M19*$F19,2) -> 32.75
A20: 1.3.3 | B20: 00003542 | C20: SINAPI | D20: JOELHO PVC, SOLDAVEL, 90 GRAUS, 20 MM, COR MARROM, PARA AGUA FRIA PREDIAL | E20: UN | F20: 30 | G20: 0.55 | H20: 0.64 | I20: 16.5 | J20: 19.2 | L20: 0.55 | M20: 0.64 | N20: 16.5 | O20: 19.2
A21: 1.3.4 | B21: 00003529 | C21: SINAPI | D21: JOELHO PVC, SOLDAVEL, 90 GRAUS, 25 MM, COR MARROM, PARA AGUA FRIA PREDIAL | E21: UN | F21: 30 | G21: 0.68 | H21: 0.79 | I21: 20.4 | J21: 23.7 | L21: 0.68 | M21: 0.79 | N21: 20.4 | O21: 23.7
A22: 1.3.5 | B22: 00003515 | C22: SINAPI | D22: JOELHO PVC, SOLDAVEL, COM BUCHA DE LATAO, 90 GRAUS, 20 MM X 1/2", PARA AGUA FRIA PREDIAL | E22: UN | F22: 30 | G22: 6.07 | H22: 7.06 | I22: 182.1 | J22: 211.8 | L22: 6.07 | M22: 7.06 | N22: 182.1 | O22: 211.8
A23: 1.3.6 | B23: 00003524 | C23: SINAPI | D23: JOELHO PVC, SOLDAVEL, COM BUCHA DE LATAO, 90 GRAUS, 25 MM X 3/4", PARA AGUA FRIA PREDIAL | E23: UN | F23: 30 | G23: 7.51 | H23: 8.73 | I23: 225.3 | J23: 261.9 | L23: 7.51 | M23: 8.73 | N23: 225.3 | O23: 261.9
A24: 1.3.7 | B24: 00001955 | C24: SINAPI | D24: CURVA DE PVC 90 GRAUS, SOLDAVEL, 20 MM, COR MARROM, PARA AGUA FRIA PREDIAL | E24: UN | F24: 10 | G24: 1.97 | H24: 2.29 | I24: 19.7 | J24: 22.9 | L24: 1.97 | M24: 2.29 | N24: 19.7 | O24: 22.9
A25: 1.3.8 | B25: 00001956 | C25: SINAPI | D25: CURVA DE PVC 90 GRAUS, SOLDAVEL, 25 MM, COR MARROM, PARA AGUA FRIA PREDIAL | E25: UN | F25: 10 | G25: 3 | H25: 3.49 | I25: 30 | J25: 34.9 | L25: 3 | M25: 3.49 | N25: 30 | O25: 34.9
A26: 1.3.9 | B26: 00003499 | C26: SINAPI | D26: JOELHO, PVC SOLDAVEL, 45 GRAUS, 20 MM, COR MARROM, PARA AGUA FRIA PREDIAL | E26: UN | F26: 15 | G26: 1.05 | H26: 1.22 | I26: 15.75 | J26: 18.3 | L26: 1.05 | M26: 1.22 | N26: 15.75 | O26: 18.3
A27: 1.3.10 | B27: 00003500 | C27: SINAPI | D27: JOELHO, PVC SOLDAVEL, 45 GRAUS, 25 MM, COR MARROM, PARA AGUA FRIA PREDIAL | E27: UN | F27: 15 | G27: 1.4 | H27: 1.63 | I27: 21 | J27: 24.45 | L27: 1.4 | M27: 1.63 | N27: 21 | O27: 24.45
A28: 1.3.11 | B28: 00001926 | C28: SINAPI | D28: CURVA DE PVC 45 GRAUS, SOLDAVEL, 20 MM, COR MARROM, PARA AGUA FRIA PREDIAL | E28: UN | F28: 10 | G28: 2.04 | H28: 2.37 | I28: 20.4 | J28: 23.7 | L28: 2.04 | M28: 2.37 | N28: 20.4 | O28: 23.7
A29: 1.3.12 | B29: 00001927 | C29: SINAPI | D29: CURVA DE PVC 45 GRAUS, SOLDAVEL, 25 MM, COR MARROM, PARA AGUA FRIA PREDIAL | E29: UN | F29: 10 | G29: 2.28 | H29: 2.65 | I29: 22.8 | J29: 26.5 | L29: 2.28 | M29: 2.65 | N29: 22.8 | O29: 26.5
A30: 1.3.13 | B30: 00003854 | C30: SINAPI | D30: LUVA DE CORRER PARA TUBO SOLDAVEL, PVC, 20 MM, PARA AGUA FRIA PREDIAL | E30: UN | F30: 15 | G30: 9.88 | H30: 11.49 | I30: 148.2 | J30: 172.35 | L30: 9.88 | M30: 11.49 | N30: 148.2 | O30: 172.35
A31: 1.3.14 | B31: 00003873 | C31: SINAPI | D31: LUVA DE CORRER PARA TUBO SOLDAVEL, PVC, 25 MM, PARA AGUA FRIA PREDIAL | E31: UN | F31: 10 | G31: 11.5 | H31: 13.37 | I31: 115 | J31: 133.7 | L31: 11.5 | M31: 13.37 | N31: 115 | O31: 133.7
A32: 1.3.15 | B32: 00043838 | C32: SINAPI | D32: LUVA DE CORRER PARA TUBO SOLDAVEL, PVC, 40 MM, PARA AGUA FRIA PREDIAL | E32: UN | F32: 15 | G32: 26.39 | H32: 30.69 | I32: 395.85 | J32: 460.35 | L32: 26.39 | M32: 30.69 | N32: 395.85 | O32: 460.35
A33: 1.3.16 | B33: 00003847 | C33: SINAPI | D33: LUVA DE CORRER PARA TUBO SOLDAVEL, PVC, 50 MM, PARA AGUA FRIA PREDIAL | E33: UN | F33: 5 | G33: 26.61 | H33: 30.95 | I33: 133.05 | J33: 154.75 | L33: 26.61 | M33: 30.95 | N33: 133.05 | O33: 154.75
A34: 1.3.17 | B34: 00007138 | C34: SINAPI | D34: TE SOLDAVEL, PVC, 90 GRAUS, 20 MM, PARA AGUA FRIA PREDIAL (NBR 5648) | E34: UN | F34: 15 | G34: 0.99 | H34: 1.15 | I34: 14.85 | J34: 17.25 | L34: 0.99 | M34: 1.15 | N34: 14.85 | O34: 17.25
A35: 1.3.18 | B35: 00007139 | C35: SINAPI | D35: TE SOLDAVEL, PVC, 90 GRAUS, 25 MM, PARA AGUA FRIA PREDIAL (NBR 5648) | E35: UN | F35: 15 | G35: 1.12 | H35: 1.3 | I35: 16.8 | J35: 19.5 | L35: 1.12 | M35: 1.3 | N35: 16.8 | O35: 19.5
A36: 1.3.19 | B36: 00007141 | C36: SINAPI | D36: TE SOLDAVEL, PVC, 90 GRAUS, 40 MM, PARA AGUA FRIA PREDIAL (NBR 5648) | E36: UN | F36: 10 | G36: 8.59 | H36: 9.99 | I36: 85.9 | J36: 99.9 | L36: 8.59 | M36: 9.99 | N36: 85.9 | O36: 99.9
A37: 1.3.20 | B37: 00007142 | C37: SINAPI | D37: TE SOLDAVEL, PVC, 90 GRAUS,50 MM, PARA AGUA FRIA PREDIAL (NBR 5648) | E37: UN | F37: 10 | G37: 8.99 | H37: 10.46 | I37: 89.9 | J37: 104.6 | L37: 8.99 | M37: 10.46 | N37: 89.9 | O37: 104.6
A38: 1.3.21 | B38: 00007121 | C38: SINAPI | D38: TE PVC, SOLDAVEL, COM BUCHA DE LATAO NA BOLSA CENTRAL, 90 GRAUS, 20 MM X 1/2", PARA AGUA FRIA PREDIAL | E38: UN | F38: 15 | G38: 8.54 | H38: 9.93 | I38: 128.1 | J38: 148.95 | L38: 8.54 | M38: 9.93 | N38: 128.1 | O38: 148.95
A39: 1.3.22 | B39: 00007137 | C39: SINAPI | D39: TE PVC, SOLDAVEL, COM BUCHA DE LATAO NA BOLSA CENTRAL, 90 GRAUS, 25 MM X 1/2", PARA AGUA FRIA PREDIAL | E39: UN | F39: 15 | G39: 9.32 | H39: 10.84 | I39: 139.8 | J39: 162.6 | L39: 9.32 | M39: 10.84 | N39: 139.8 | O39: 162.6
A40: 1.3.23 | B40: 00007104 | C40: SINAPI | D40: TE DE REDUCAO, PVC, SOLDAVEL, 90 GRAUS, 25 MM X 20 MM, PARA AGUA FRIA PREDIAL | E40: UN | F40: 15 | G40: 3.57 | H40: 4.15 | I40: 53.55 | J40: 62.25 | L40: 3.57 | M40: 4.15 | N40: 53.55 | O40: 62.25
A41: 1.3.24 | B41: 00011763 | C41: SINAPI | D41: TORNEIRA DE BOIA CONVENCIONAL PARA CAIXA D | E41: UN | F41: 5 | G41: 251.65 | H41: 292.67 | I41: 1258.25 | J41: 1463.35 | L41: 251.65 | M41: 292.67 | N41: 1258.25 | O41: 1463.35
A42: 1.3.25 | B42: 00007588 | C42: SINAPI | D42: AUTOMATICO DE BOIA SUPERIOR / INFERIOR, *15* A / 250 V | E42: UN | F42: 10 | G42: 58 | H42: 67.45 | I42: 580 | J42: 674.5 | L42: 58 | M42: 67.45 | N42: 580 | O42: 674.5
A43: 1.3.26 | B43: 00000821 | C43: SINAPI | D43: BUCHA DE REDUCAO DE PVC, SOLDAVEL, LONGA, COM 75 X 50 MM, PARA AGUA FRIA PREDIAL | E43: UN | F43: 5 | G43: 17.59 | H43: 20.46 | I43: 87.95 | J43: 102.3 | L43: 17.59 | M43: 20.46 | N43: 87.95 | O43: 102.3
A44: 1.3.27 | B44: 00038023 | C44: SINAPI | D44: LUVA DE REDUCAO, SOLDAVEL, PVC, 50 X 25 MM, PARA AGUA FRIA PREDIAL | E44: UN | F44: 5 | G44: 5.8 | H44: 6.75 | I44: 29 | J44: 33.75 | L44: 5.8 | M44: 6.75 | N44: 29 | O44: 33.75
A45: 1.3.28 | B45: 00003868 | C45: SINAPI | D45: LUVA DE REDUCAO SOLDAVEL, PVC, 25 MM X 20 MM, PARA AGUA FRIA PREDIAL | E45: UN | F45: 10 | G45: 1.3 | H45: 1.51 | I45: 13 | J45: 15.1 | L45: 1.3 | M45: 1.51 | N45: 13 | O45: 15.1
A46: 1.3.29 | B46: 00006038 | C46: SINAPI | D46: REGISTRO DE PRESSAO PVC, ROSCAVEL, VOLANTE SIMPLES, DE 1/2" | E46: UN | F46: 10 | G46: 10.18 | H46: 11.84 | I46: 101.8 | J46: 118.4 | L46: 10.18 | M46: 11.84 | N46: 101.8 | O46: 118.4
A47: 1.3.30 | B47: 00011718 | C47: SINAPI | D47: REGISTRO DE PRESSAO PVC, ROSCAVEL, VOLANTE SIMPLES, DE 3/4" | E47: UN | F47: 10 | G47: 29.04 | H47: 33.77 | I47: 290.4 | J47: 337.7 | L47: 29.04 | M47: 33.77 | N47: 290.4 | O47: 337.7
A48: 1.3.31 | B48: 00000082 | C48: SINAPI | D48: ADAPTADOR PVC, SOLDAVEL, LONGO, COM FLANGE LIVRE, 75 MM X 2 1/2", PARA CAIXA D | E48: UN | F48: 5 | G48: 189.33 | H48: 220.19 | I48: 946.65 | J48: 1100.95 | L48: 189.33 | M48: 220.19 | N48: 946.65 | O48: 1100.95
A49: 1.3.32 | B49: 00000095 | C49: SINAPI | D49: ADAPTADOR PVC SOLDAVEL, COM FLANGE E ANEL DE VEDACAO, 20 MM X 1/2", PARA CAIXA D | E49: UN | F49: 10 | G49: 10.55 | H49: 12.27 | I49: 105.5 | J49: 122.7 | L49: 10.55 | M49: 12.27 | N49: 105.5 | O49: 122.7
A50: 1.3.33 | B50: 340311 | C50: PAINEL DE PREÇOS | D50: REFIL, MATERIAL: CARVÃO ATIVADO, APLICAÇÃO: FILTRO SOFT BY EVEREST | E50: UN | F50: 30 | G50: 33.29 | H50: =ROUND(G50*(1+$H$2),2) -> 38.72 | I50: =ROUND(G50*F50,2) -> 998.7 | J50: =ROUND(H50*F50,2) -> 1161.6 | L50: 33.29 | M50: =ROUND(L50*(1+$G$2),2) -> 38.72 | N50: =ROUND(L50*$F50,2) -> 998.7 | O50: =ROUND(M50*$F50,2) -> 1161.6
A51: 1.4 | D51: Conexões esgoto | I51: =SUM(I52:I59) -> 1920.15 | J51: =SUM(J52:J59) -> 2233.3 | N51: =SUM(N52:N59) -> 1920.15 | O51: =SUM(O52:O59) -> 2233.3
A52: 1.4.1 | B52: 00003670 | C52: SINAPI | D52: JUNCAO SIMPLES, PVC, 45 GRAUS, DN 100 X 100 MM, SERIE NORMAL PARA ESGOTO PREDIAL | E52: UN | F52: 5 | G52: 20.69 | H52: 24.06 | I52: 103.45 | J52: 120.3 | L52: 20.69 | M52: 24.06 | N52: =ROUND(L52*$F52,2) -> 103.45 | O52: =ROUND(M52*$F52,2) -> 120.3
A53: 1.4.2 | B53: 00010909 | C53: SINAPI | D53: JUNCAO DE REDUCAO INVERTIDA, PVC SOLDAVEL, 100 X 75 MM, SERIE NORMAL PARA ESGOTO PREDIAL | E53: UN | F53: 10 | G53: 19.12 | H53: 22.24 | I53: 191.2 | J53: 222.4 | L53: 19.12 | M53: 22.24 | N53: 191.2 | O53: =ROUND(M53*$F53,2) -> 222.4
A54: 1.4.3 | B54: 00003669 | C54: SINAPI | D54: JUNCAO DE REDUCAO INVERTIDA, PVC SOLDAVEL, 75 X 50 MM, SERIE NORMAL PARA ESGOTO PREDIAL | E54: UN | F54: 5 | G54: 11.74 | H54: 13.65 | I54: 58.7 | J54: 68.25 | L54: 11.74 | M54: 13.65 | N54: 58.7 | O54: 68.25
A55: 1.4.4 | B55: 00003659 | C55: SINAPI | D55: JUNCAO SIMPLES DE REDUCAO, PVC, DN 100 X 50 MM, SERIE NORMAL PARA ESGOTO PREDIAL | E55: UN | F55: 10 | G55: 16.12 | H55: 18.75 | I55: 161.2 | J55: 187.5 | L55: 16.12 | M55: 18.75 | N55: 161.2 | O55: 187.5
A56: 1.4.5 | B56: 00044945 | C56: SINAPI | D56: SIFAO / TUBO SINFONADO EXTENSIVEL/SANFONADO, UNIVERSAL/ SIMPLES, ENTRE *50 A 70* CM, DE PLASTICO BRANCO | E56: UN | F56: 25 | G56: 9 | H56: 10.47 | I56: 225 | J56: 261.75 | L56: 9 | M56: 10.47 | N56: 225 | O56: 261.75
A57: 1.4.6 | B57: 00006136 | C57: SINAPI | D57: SIFAO EM METAL CROMADO PARA PIA OU LAVATORIO, 1 X 1.1/2" | E57: UN | F57: 5 | G57: 163.45 | H57: 190.09 | I57: 817.25 | J57: 950.45 | L57: 163.45 | M57: 190.09 | N57: 817.25 | O57: 950.45
A58: 1.4.7 | B58: 00011741 | C58: SINAPI | D58: RALO SIFONADO CILINDRICO, PVC, 100 X 40 MM, COM GRELHA REDONDA BRANCA | E58: UN | F58: 15 | G58: 15.81 | H58: 18.39 | I58: 237.15 | J58: 275.85 | L58: 15.81 | M58: 18.39 | N58: 237.15 | O58: 275.85
A59: 1.4.8 | B59: 00004030 | C59: SINAPI | D59: VEU DE POLIESTER PARA IMPERMEABILIZACAO | E59: m² | F59: 20 | G59: 6.31 | H59: 7.34 | I59: 126.2 | J59: 146.8 | L59: 6.31 | M59: 7.34 | N59: 126.2 | O59: 146.8
A60: 2 | D60: Brocas, parafusos e ferragens | I60: =SUM(I61:I82) -> 11227.35 | J60: =SUM(J61:J82) -> 13062.9 | N60: =SUM(N61:N82) -> 11227.35 | O60: =SUM(O61:O82) -> 13062.9
A61: 2.1 | B61: 00011950/SINAPI | C61: ORSE | D61: Bucha de nylon sem aba s6, com parafuso de 4,20 x 40 mm em aco zincado com rosca soberba, cabeca chata e fenda phillips | E61: un | F61: 5000 | G61: 0.12 | H61: 0.14 | I61: 600 | J61: 700 | L61: 0.12 | M61: 0.14 | N61: =ROUND(L61*$F61,2) -> 600 | O61: =ROUND(M61*$F61,2) -> 700
A62: 2.2 | B62: 00007583/SINAPI | C62: ORSE | D62: Bucha de nylon sem aba s8, com parafuso de 4,80 x 50 mm em aco zincado com rosca soberba, cabeca chata e fenda phillips | E62: un | F62: 5000 | G62: 0.25 | H62: 0.29 | I62: 1250 | J62: 1450 | L62: 0.25 | M62: 0.29 | N62: 1250 | O62: =ROUND(M62*$F62,2) -> 1450
A63: 2.3 | B63: 00007568/SINAPI | C63: ORSE | D63: Bucha de nylon sem aba s10, com parafuso de 6,10 x 65 mm emaco zincado com rosca soberba, cabeca chata e fenda phillips | E63: un | F63: 5000 | G63: 0.36 | H63: 0.42 | I63: 1800 | J63: 2100 | L63: 0.36 | M63: 0.42 | N63: 1800 | O63: 2100
A64: 2.4 | B64: 00039442 | C64: SINAPI | D64: PARAFUSO DRY WALL, EM ACO ZINCADO, CABECA LENTILHA E PONTA AGULHA (LA), LARGURA 4,2 MM, COMPRIMENTO 13 MM | E64: UN | F64: 4000 | G64: 0.18 | H64: 0.21 | I64: 720 | J64: 840 | L64: 0.18 | M64: 0.21 | N64: 720 | O64: 840
A65: 2.5 | B65: 062033 | C65: SBC | D65: PARAFUSO ZINCADO AUTOBROCANTE FLANGEADO 4,2x19mm | E65: CENTO | F65: 40 | G65: 10 | H65: 11.63 | I65: 400 | J65: 465.2 | L65: 10 | M65: 11.63 | N65: 400 | O65: 465.2
A66: 2.6 | B66: 11901 | C66: ORSE | D66: Parafuso auto-atarraxante em aço inox - 4,2 x 32mm | E66: un | F66: 4000 | G66: 0.62 | H66: 0.72 | I66: 2480 | J66: 2880 | L66: 0.62 | M66: 0.72 | N66: 2480 | O66: 2880
A67: 2.7 | B67: 00005090 | C67: SINAPI | D67: CADEADO SIMPLES, CORPO EM LATAO MACICO, COM LARGURA DE 25 MM E ALTURA DE APROX 25 MM, HASTE CEMENTADA (NAO LONGA), EM ACO TEMPERADO COM DIAMETRO DE APROX 5,0 MM, INCLUINDO 2 CHAVES | E67: UN | F67: 5 | G67: 19.9 | H67: 23.14 | I67: 99.5 | J67: 115.7 | L67: 19.9 | M67: 23.14 | N67: 99.5 | O67: 115.7
A68: 2.8 | B68: 00043603 | C68: SINAPI | D68: CADEADO SIMPLES, CORPO EM LATAO MACICO, COM LARGURA DE 50 MM E ALTURA DE APROX 40 MM, HASTE CEMENTADA EM ACO TEMPERADO COM DIAMETRO DE APROX 8,0 MM, INCLUINDO 2 CHAVES | E68: UN | F68: 5 | G68: 42.32 | H68: 49.22 | I68: 211.6 | J68: 246.1 | L68: 42.32 | M68: 49.22 | N68: 211.6 | O68: 246.1
A69: 2.12 | B69: 007818 | C69: SBC | D69: FERRAMENTA - CONJUNTO BROCAS ACO RAPIDO 13 PECAS IRWIN | E69: UN | F69: 10 | G69: 184.95 | H69: 215.1 | I69: 1849.5 | J69: 2151 | L69: 184.95 | M69: 215.1 | N69: 1849.5 | O69: 2151
A70: 2.13 | B70: MATED-11888 | C70: SETOP | D70: BARRA ROSCADA DE AÇO (DIÂMETRO DA SEÇÃO: 1/4"[6MM]) | E70: m | F70: 50 | G70: 4.54 | H70: 5.28 | I70: 227 | J70: 264 | L70: 4.54 | M70: 5.28 | N70: 227 | O70: 264
A71: 2.14 | B71: 00039997 | C71: SINAPI | D71: PORCA ZINCADA, SEXTAVADA, DIAMETRO 1/4" | E71: UN | F71: 400 | G71: 0.3 | H71: 0.35 | I71: 120 | J71: 140 | L71: 0.3 | M71: 0.35 | N71: 120 | O71: 140
A72: 2.15 | B72: MATED-15972 | C72: SETOP | D72: BARRA ROSCADA DE AÇO (DIÂMETRO DA SEÇÃO: 3/8"[10MM]) | E72: m | F72: 50 | G72: 7.14 | H72: 8.3 | I72: 357 | J72: 415 | L72: 7.14 | M72: 8.3 | N72: 357 | O72: 415
A73: 2.16 | B73: 00004342 | C73: SINAPI | D73: PORCA ZINCADA, SEXTAVADA, DIAMETRO 3/8" | E73: UN | F73: 400 | G73: 0.22 | H73: =ROUND(G73*(1+$H$2),2) -> 0.26 | I73: =ROUND(G73*F73,2) -> 88 | J73: =ROUND(H73*F73,2) -> 104 | L73: 0.22 | M73: 0.26 | N73: 88 | O73: 104
A74: 2.17 | B74: 11469 | C74: ORSE | D74: Broca SDS plus IRWIN 6 x 110mm | E74: un | F74: 10 | G74: 12.57 | H74: 14.62 | I74: 125.7 | J74: 146.2 | L74: 12.57 | M74: 14.62 | N74: 125.7 | O74: 146.2
A75: 2.18 | B75: 7898 | C75: ORSE | D75: Broca SDS plus 12x260mm | E75: un | F75: 10 | G75: 50.17 | H75: 58.35 | I75: 501.7 | J75: 583.5 | L75: 50.17 | M75: 58.35 | N75: 501.7 | O75: 583.5
A76: 2.19 | B76: BPF-1 MERC | C76: Próprio | D76: Broca SDS plus 8 x 100 x 160 MM | E76: un | F76: 10 | G76: 13.79 | H76: 16.04 | I76: 137.9 | J76: 160.4 | L76: 13.79 | M76: 16.04 | N76: 137.9 | O76: 160.4
A77: 2.20 | B77: BPF-2 MERC | C77: Próprio | D77: Broca SDS plus 10 x 100 x 160 MM | E77: un | F77: 10 | G77: 15.8 | H77: 18.38 | I77: 158 | J77: 183.8 | L77: 15.8 | M77: 18.38 | N77: 158 | O77: 183.8
A78: 2.21 | B78: BPF-3 MERC | C78: Próprio | D78: Broca aço rápido 2 mm | E78: un | F78: 5 | G78: 1.66 | H78: 1.93 | I78: 8.3 | J78: 9.65 | L78: 1.66 | M78: =ROUND(L78*(1+$G$2),2) -> 1.93 | N78: 8.3 | O78: 9.65
A79: 2.22 | B79: BPF-4 MERC | C79: Próprio | D79: Broca aço rápido 2,5 mm | E79: un | F79: 5 | G79: 3.59 | H79: 4.18 | I79: 17.95 | J79: 20.9 | L79: 3.59 | M79: 4.18 | N79: 17.95 | O79: 20.9
A80: 2.23 | B80: BPF-5 MERC | C80: Próprio | D80: Broca aço rápido 3 mm | E80: un | F80: 5 | G80: 4 | H80: 4.65 | I80: 20 | J80: 23.25 | L80: 4 | M80: 4.65 | N80: 20 | O80: 23.25
A81: 2.24 | B81: BPF-6 MERC | C81: Próprio | D81: Broca aço rápido 3,5 mm | E81: un | F81: 5 | G81: 5.15 | H81: 5.99 | I81: 25.75 | J81: 29.95 | L81: 5.15 | M81: 5.99 | N81: 25.75 | O81: 29.95
A82: 2.25 | B82: BPF-7 MERC | C82: Próprio | D82: Broca aço rápido 4 mm | E82: un | F82: 5 | G82: 5.89 | H82: 6.85 | I82: 29.45 | J82: 34.25 | L82: 5.89 | M82: 6.85 | N82: 29.45 | O82: 34.25
A83: 3 | D83: Metais | I83: =SUM(I84:I96) -> 26751.65 | J83: =SUM(J84:J96) -> 31112.5 | N83: =SUM(N84:N96) -> 26751.65 | O83: =SUM(O84:O96) -> 31112.5
A84: 3.1 | B84: 008395 | C84: SBC | D84: DUCHA HIGIENICA FORUSI ABS SMALL 1856-C50 | E84: UN | F84: 50 | G84: 120.9 | H84: 140.61 | I84: 6045 | J84: 7030.5 | L84: 120.9 | M84: 140.61 | N84: =ROUND(L84*$F84,2) -> 6045 | O84: =ROUND(M84*$F84,2) -> 7030.5
A85: 3.2 | B85: 00011781 | C85: SINAPI | D85: VALVULA DE DESCARGA METALICA, BASE 1 1/4" E ACABAMENTO METALICO CROMADO | E85: UN | F85: 5 | G85: 302.74 | H85: 352.09 | I85: 1513.7 | J85: 1760.45 | L85: 302.74 | M85: 352.09 | N85: 1513.7 | O85: =ROUND(M85*$F85,2) -> 1760.45
A86: 3.4 | B86: 00000377 | C86: SINAPI | D86: ASSENTO SANITARIO DE PLASTICO, TIPO CONVENCIONAL | E86: UN | F86: 30 | G86: 44.9 | H86: 52.22 | I86: 1347 | J86: 1566.6 | L86: 44.9 | M86: 52.22 | N86: 1347 | O86: 1566.6
A87: 3.5 | B87: 00037400 | C87: SINAPI | D87: PAPELEIRA PLASTICA TIPO DISPENSER PARA PAPEL HIGIENICO ROLAO | E87: UN | F87: 10 | G87: 40.46 | H87: 47.05 | I87: 404.6 | J87: 470.5 | L87: 40.46 | M87: 47.05 | N87: 404.6 | O87: 470.5
A88: 3.6 | B88: 00037401 | C88: SINAPI | D88: TOALHEIRO PLASTICO TIPO DISPENSER PARA PAPEL TOALHA INTERFOLHADO | E88: UN | F88: 10 | G88: 40.46 | H88: 47.05 | I88: 404.6 | J88: 470.5 | L88: 40.46 | M88: 47.05 | N88: 404.6 | O88: 470.5
A89: 3.7 | B89: 00011758 | C89: SINAPI | D89: SABONETEIRA PLASTICA TIPO DISPENSER PARA SABONETE LIQUIDO COM RESERVATORIO 800 A 1500 ML | E89: UN | F89: 20 | G89: 38.87 | H89: 45.21 | I89: 777.4 | J89: 904.2 | L89: 38.87 | M89: 45.21 | N89: 777.4 | O89: 904.2
A90: 3.8 | B90: 00011681 | C90: SINAPI | D90: ENGATE/RABICHO FLEXIVEL PLASTICO (PVC OU ABS) BRANCO 1/2" X 40 CM | E90: UN | F90: 20 | G90: 6.86 | H90: 7.98 | I90: 137.2 | J90: 159.6 | L90: 6.86 | M90: 7.98 | N90: 137.2 | O90: 159.6
A91: 3.9 | B91: 00011684 | C91: SINAPI | D91: ENGATE / RABICHO FLEXIVEL INOX 1/2" X 40 CM | E91: UN | F91: 10 | G91: 41.02 | H91: 47.71 | I91: 410.2 | J91: 477.1 | L91: 41.02 | M91: 47.71 | N91: 410.2 | O91: 477.1
A92: 3.10 | B92: 00036796 | C92: SINAPI | D92: TORNEIRA METALICA CROMADA DE MESA, PARA LAVATORIO, TEMPORIZADA PRESSAO FECHAMENTO AUTOMATICO, BICA BAIXA | E92: UN | F92: 20 | G92: 139.35 | H92: 162.06 | I92: 2787 | J92: 3241.2 | L92: 139.35 | M92: 162.06 | N92: 2787 | O92: 3241.2
A93: 3.11 | B93: 2248 | C93: ORSE | D93: Torneira cromada de 1/2" para jardim/tanque, Standard Deca 1153.C39 ou similar | E93: un | F93: 10 | G93: 55.03 | H93: 64 | I93: 550.3 | J93: 640 | L93: 55.03 | M93: 64 | N93: 550.3 | O93: 640
A94: 3.12 | B94: 00011927 | C94: SINAPI | D94: ABRACADEIRA, GALVANIZADA/ZINCADA, ROSCA SEM FIM, PARAFUSO INOX, LARGURA FITA *12,6 A *14 MM, D = 2" A 2 1/2" | E94: UN | F94: 10 | G94: 7.7 | H94: 8.96 | I94: 77 | J94: 89.6 | L94: 7.7 | M94: 8.96 | N94: 77 | O94: 89.6
A95: 3.13 | B95: WC-1 MERC | C95: Próprio | D95: Válvula de mictório embutida em aço inox escovado. Ref.: Draco Eletrônica Indústria e Comércio Eireli - EPP. | E95: Unidade | F95: 5 | G95: 2234.53 | H95: 2598.76 | I95: 11172.65 | J95: 12993.8 | L95: 2234.53 | M95: 2598.76 | N95: 11172.65 | O95: 12993.8
A96: 3.14 | B96: MET-1 MERC | C96: Próprio | D96: Torneira latão tipo alavanca diam. 1/2" acabamento cromado para cafeteira industrial | E96: un | F96: 15 | G96: 75 | H96: 87.23 | I96: 1125 | J96: 1308.45 | L96: 75 | M96: 87.23 | N96: 1125 | O96: 1308.45
A97: 4 | D97: Utilitários | I97: =SUM(I98:I143) -> 34798.99 | J97: =SUM(J98:J143) -> 40468.16 | N97: =SUM(N98:N143) -> 34798.99 | O97: =SUM(O98:O143) -> 40468.16
A98: 4.1 | B98: 00037461 | C98: SINAPI | D98: MANGUEIRA CRISTAL TRANCADA, PVC COM REFORCO, COM PRESSAO DE TRABALHO (PT) 250 LBS/POL2, DE 3/4" X *2,8* MM | E98: M | F98: 100 | G98: 17.24 | H98: 20.05 | I98: 1724 | J98: 2005 | L98: 17.24 | M98: 20.05 | N98: =ROUND(L98*$F98,2) -> 1724 | O98: =ROUND(M98*$F98,2) -> 2005
A99: 4.2 | B99: 00000404 | C99: SINAPI | D99: FITA ISOLANTE DE BORRACHA AUTOFUSAO, USO ATE 69 KV (ALTA TENSAO) | E99: M | F99: 500 | G99: 1.67 | H99: 1.94 | I99: 835 | J99: 970 | L99: 1.67 | M99: 1.94 | N99: 835 | O99: =ROUND(M99*$F99,2) -> 970
A100: 4.3 | B100: 00004806 | C100: SINAPI | D100: TESTEIRA ANTIDERRAPANTE PARA PISO VINILICO *5 X 2,5* CM, E = 2 MM | E100: M | F100: 30 | G100: 19.64 | H100: 22.84 | I100: 589.2 | J100: 685.2 | L100: 19.64 | M100: 22.84 | N100: 589.2 | O100: 685.2
A101: 4.4 | B101: 042215 | C101: SBC | D101: FITA 3M COLANTE ANTIDERRAPANTE PARA DEGRAUS ESCADAS | E101: M | F101: 100 | G101: 2.64 | H101: 3.07 | I101: 264 | J101: 307 | L101: 2.64 | M101: 3.07 | N101: 264 | O101: 307
A102: 4.5 | B102: UTL-3 MERC | C102: Próprio | D102: Disco abrasivo de corte 115mm x 1mm x 22,23mm 4 1/2" x 3/64" x 7/8" | E102: un | F102: 50 | G102: 2.5 | H102: 2.91 | I102: 125 | J102: 145.5 | L102: 2.5 | M102: 2.91 | N102: 125 | O102: 145.5
A103: 4.6 | B103: 037128 | C103: SBC | D103: DISCO DIAMANTADO STAMACO 105mm FURO 20mm | E103: UN | F103: 30 | G103: 15.49 | H103: 18.01 | I103: 464.7 | J103: 540.3 | L103: 15.49 | M103: 18.01 | N103: 464.7 | O103: 540.3
A104: 4.7 | B104: 00012815 | C104: SINAPI | D104: FITA CREPE ROLO DE 25 MM X 50 M | E104: UN | F104: 150 | G104: 9.44 | H104: 10.98 | I104: 1416 | J104: 1647 | L104: 9.44 | M104: 10.98 | N104: 1416 | O104: 1647
A105: 4.8 | B105: 070105 | C105: SBC | D105: FITA 3M DUPLA FACE VHB 4905 12mmx20m PARA POLICARBONATO | E105: M | F105: 500 | G105: 1.82 | H105: 2.12 | I105: 910 | J105: 1060 | L105: 1.82 | M105: 2.12 | N105: 910 | O105: 1060
A106: 4.9 | B106: 00003148 | C106: SINAPI | D106: FITA VEDA ROSCA EM ROLOS DE 18 MM X 50 M (L X C) | E106: UN | F106: 50 | G106: 14.38 | H106: 16.72 | I106: 719 | J106: 836 | L106: 14.38 | M106: 16.72 | N106: 719 | O106: 836
A107: 4.10 | B107: 4.95.54 | C107: FDE | D107: MASSA CALAFETAR COMPOSTA POR BORRACHAS SINTÉTICAS CARGAS MINERAIS E PLASTIFICANTES NÃO SECATIVOS | E107: KG | F107: 10 | G107: 25.66 | H107: 29.84 | I107: 256.6 | J107: 298.4 | L107: 25.66 | M107: 29.84 | N107: 256.6 | O107: 298.4
A108: 4.11 | B108: MATED-8151 | C108: SETOP | D108: ADESIVO/SELANTE ELÁSTICO MONOCOMPONENTE (APLICAÇÃO: USO GERAL|BASE: POLIURETANO|EMBALAGEM: 310ML|DENSIDADE*: 1,35G/CM3)*VALORES REFERENCIAIS APROXIMADOS | E108: un | F108: 150 | G108: 36.84 | H108: 42.84 | I108: 5526 | J108: 6426 | L108: 36.84 | M108: 42.84 | N108: 5526 | O108: 6426
A109: 4.12 | B109: 00039961 | C109: SINAPI | D109: SILICONE ACETICO USO GERAL INCOLOR 280 G | E109: UN | F109: 50 | G109: 26.59 | H109: 30.92 | I109: 1329.5 | J109: 1546 | L109: 26.59 | M109: 30.92 | N109: 1329.5 | O109: 1546
A110: 4.13 | B110: 00020080 | C110: SINAPI | D110: ADESIVO PLASTICO PARA PVC, FRASCO COM 175 GR | E110: UN | F110: 50 | G110: 21.44 | H110: 24.93 | I110: 1072 | J110: 1246.5 | L110: 21.44 | M110: 24.93 | N110: 1072 | O110: 1246.5
A111: 4.14 | B111: 00004791 | C111: SINAPI | D111: ADESIVO ACRILICO DE BASE AQUOSA / COLA DE CONTATO | E111: KG | F111: 5 | G111: 48.85 | H111: 56.81 | I111: 244.25 | J111: 284.05 | L111: 48.85 | M111: 56.81 | N111: 244.25 | O111: 284.05
A112: 4.15 | B112: 00038123 | C112: SINAPI | D112: SELANTE TIPO VEDA CALHA PARA METAL E FIBROCIMENTO | E112: KG | F112: 5 | G112: 71.69 | H112: 83.38 | I112: 358.45 | J112: 416.9 | L112: 71.69 | M112: 83.38 | N112: 358.45 | O112: 416.9
A113: 4.16 | B113: 00004823 | C113: SINAPI | D113: MASSA PLASTICA PARA MARMORE/GRANITO | E113: KG | F113: 5 | G113: 37.52 | H113: 43.64 | I113: 187.6 | J113: 218.2 | L113: 37.52 | M113: 43.64 | N113: 187.6 | O113: 218.2
A114: 4.17 | B114: 00003777 | C114: SINAPI | D114: LONA PLASTICA PESADA PRETA, E = 150 MICRA | E114: m² | F114: 400 | G114: 1.61 | H114: 1.87 | I114: 644 | J114: 748 | L114: 1.61 | M114: 1.87 | N114: 644 | O114: 748
A115: 4.18 | B115: 00000013 | C115: SINAPI | D115: ESTOPA | E115: KG | F115: 5 | G115: 15.73 | H115: 18.29 | I115: 78.65 | J115: 91.45 | L115: 15.73 | M115: 18.29 | N115: 78.65 | O115: 91.45
A116: 4.19 | B116: 00007307 | C116: SINAPI | D116: FUNDO ANTICORROSIVO PARA METAIS FERROSOS (ZARCAO) | E116: L | F116: 18 | G116: 51.18 | H116: 59.52 | I116: 921.24 | J116: 1071.36 | L116: 51.18 | M116: 59.52 | N116: 921.24 | O116: 1071.36
A117: 4.20 | B117: 00000157 | C117: SINAPI | D117: ADESIVO ESTRUTURAL A BASE DE RESINA EPOXI PARA INJECAO EM TRINCAS, BICOMPONENTE, BAIXA VISCOSIDADE | E117: KG | F117: 5 | G117: 174.64 | H117: 203.11 | I117: 873.2 | J117: 1015.55 | L117: 174.64 | M117: 203.11 | N117: 873.2 | O117: 1015.55
A118: 4.21 | B118: UTL-1 MERC | C118: Próprio | D118: Adesivo instantâneo Ref.: TekBond | E118: 100g | F118: 15 | G118: 31.7 | H118: 36.87 | I118: 475.5 | J118: 553.05 | L118: 31.7 | M118: 36.87 | N118: 475.5 | O118: 553.05
A119: 4.22 | B119: 00000414 | C119: SINAPI | D119: ABRACADEIRA DE NYLON PARA AMARRACAO DE CABOS, COMPRIMENTO DE 100 X 2,5 MM | E119: UN | F119: 300 | G119: 0.06 | H119: 0.07 | I119: 18 | J119: 21 | L119: 0.06 | M119: 0.07 | N119: 18 | O119: 21
A120: 4.23 | B120: 00000410 | C120: SINAPI | D120: ABRACADEIRA DE NYLON PARA AMARRACAO DE CABOS, COMPRIMENTO DE 150 X *3,6* MM | E120: UN | F120: 400 | G120: 0.15 | H120: 0.17 | I120: 60 | J120: 68 | L120: 0.15 | M120: 0.17 | N120: 60 | O120: 68
A121: 4.24 | B121: 00000411 | C121: SINAPI | D121: ABRACADEIRA DE NYLON PARA AMARRACAO DE CABOS, COMPRIMENTO DE 200 X *4,6* MM | E121: UN | F121: 300 | G121: 0.2 | H121: 0.23 | I121: 60 | J121: 69 | L121: 0.2 | M121: 0.23 | N121: 60 | O121: 69
A122: 4.25 | B122: 00000408 | C122: SINAPI | D122: ABRACADEIRA DE NYLON PARA AMARRACAO DE CABOS, COMPRIMENTO DE 390 X *4,6* MM | E122: UN | F122: 150 | G122: 0.99 | H122: 1.15 | I122: 148.5 | J122: 172.5 | L122: 0.99 | M122: 1.15 | N122: 148.5 | O122: 172.5
A123: 4.26 | B123: 00011560 | C123: SINAPI | D123: MOLA HIDRAULICA AEREA, PARA PORTAS DE ATE 950 MM E PESO DE ATE 65 KG, COM CORPO EM ALUMINIO E BRACO EM ACO, SEM BRACO DE PARADA | E123: UN | F123: 10 | G123: 177.86 | H123: 206.85 | I123: 1778.6 | J123: 2068.5 | L123: 177.86 | M123: 206.85 | N123: 1778.6 | O123: 2068.5
A124: 4.27 | B124: 002606 | C124: SBC | D124: LIXA FERRO K246 GRAO 120 | E124: UN | F124: 45 | G124: 2.18 | H124: 2.54 | I124: 98.1 | J124: 114.3 | L124: 2.18 | M124: 2.54 | N124: 98.1 | O124: 114.3
A125: 4.28 | B125: 001256 | C125: SBC | D125: LIXA FERRO 60 | E125: UN | F125: 20 | G125: 2.27 | H125: 2.64 | I125: 45.4 | J125: 52.8 | L125: 2.27 | M125: 2.64 | N125: 45.4 | O125: 52.8
A126: 4.29 | B126: 012844 | C126: SBC | D126: LIXA D'AGUA 100 | E126: UN | F126: 30 | G126: 1.55 | H126: 1.8 | I126: 46.5 | J126: 54 | L126: 1.55 | M126: 1.8 | N126: 46.5 | O126: 54
A127: 4.30 | B127: 012872 | C127: SBC | D127: LIXA D'AGUA 150 | E127: UN | F127: 20 | G127: 1.75 | H127: 2.04 | I127: 35 | J127: 40.8 | L127: 1.75 | M127: 2.04 | N127: 35 | O127: 40.8
A128: 4.31 | B128: 00025966 | C128: SINAPI | D128: REDUTOR TIPO THINNER PARA ACABAMENTO | E128: L | F128: 5 | G128: 16.2 | H128: 18.84 | I128: 81 | J128: 94.2 | L128: 16.2 | M128: 18.84 | N128: 81 | O128: 94.2
A129: 4.32 | B129: 007267 | C129: SBC | D129: FITA PARA DEMARCACAO DE SOLO 3M 469 AMARELA 50mmx30m | E129: UN | F129: 10 | G129: 43.35 | H129: 50.42 | I129: 433.5 | J129: 504.2 | L129: 43.35 | M129: 50.42 | N129: 433.5 | O129: 504.2
A130: 4.33 | B130: 038004 | C130: SBC | D130: FITA ZEBRADA PARA SINALIZACAO 7cm x 100m | E130: M | F130: 500 | G130: 0.11 | H130: 0.13 | I130: 55 | J130: 65 | L130: 0.11 | M130: 0.13 | N130: 55 | O130: 65
A131: 4.34 | B131: 00039701 | C131: SINAPI | D131: FITA ADESIVA ASFALTICA ALUMINIZADA MULTIUSO, L = 10 CM, ROLO DE 10 M | E131: UN | F131: 25 | G131: 86.37 | H131: 100.45 | I131: 2159.25 | J131: 2511.25 | L131: 86.37 | M131: 100.45 | N131: 2159.25 | O131: 2511.25
A132: 4.35 | B132: 00000511 | C132: SINAPI | D132: PRIMER PARA MANTA ASFALTICA A BASE DE ASFALTO MODIFICADO DILUIDO EM SOLVENTE, APLICACAO A FRIO | E132: L | F132: 5 | G132: 20.14 | H132: 23.42 | I132: 100.7 | J132: 117.1 | L132: 20.14 | M132: 23.42 | N132: 100.7 | O132: 117.1
A133: 4.36 | B133: 00039699 | C133: SINAPI | D133: MANTA / LENCOL DE BORRACHA, SBR, ANTIRRUIDO, E = 5 MM | E133: m² | F133: 30 | G133: 17.45 | H133: 20.29 | I133: 523.5 | J133: 608.7 | L133: 17.45 | M133: 20.29 | N133: 523.5 | O133: 608.7
A134: 4.37 | B134: 00004224 | C134: SINAPI | D134: QUEROSENE | E134: L | F134: 1 | G134: 12.13 | H134: 14.11 | I134: 12.13 | J134: 14.11 | L134: 12.13 | M134: 14.11 | N134: 12.13 | O134: 14.11
A135: 4.38 | B135: UTL-2 MERC | C135: Próprio | D135: Desengripante spray lubrificante multiuso | E135: 300 ml | F135: 5 | G135: 17.17 | H135: =ROUND(G135*(1+$H$2),2) -> 19.97 | I135: =ROUND(G135*F135,2) -> 85.85 | J135: =ROUND(H135*F135,2) -> 99.85 | L135: 17.17 | M135: 19.97 | N135: 85.85 | O135: 99.85
A136: 4.39 | B136: 00014153 | C136: SINAPI | D136: FITA METALICA PERFURADA, L = *18* MM, ROLO DE 30 M, CARGA RECOMENDADA = *30* KGF | E136: UN | F136: 5 | G136: 60.05 | H136: 69.84 | I136: 300.25 | J136: 349.2 | L136: 60.05 | M136: 69.84 | N136: 300.25 | O136: 349.2
A137: 4.40 | B137: 6.41.12 | C137: FDE | D137: ELEMENTO FILTRANTE CUNO CARVAO/CELULOSE 360L/H | E137: UN | F137: 48 | G137: 93.18 | H137: =ROUND(G137*(1+$H$2),2) -> 108.37 | I137: =ROUND(G137*F137,2) -> 4472.64 | J137: =ROUND(H137*F137,2) -> 5201.76 | L137: 93.18 | M137: =ROUND(L137*(1+$G$2),2) -> 108.37 | N137: =ROUND(L137*$F137,2) -> 4472.64 | O137: =ROUND(M137*$F137,2) -> 5201.76
A138: 4.41 | B138: 6.41.13 | C138: FDE | D138: ELEMENTO FILTRANTE CUNO(AQUALAR)CARVAO/CEL 180 L/H | E138: UN | F138: 12 | G138: 68.62 | H138: 79.81 | I138: 823.44 | J138: 957.72 | L138: 68.62 | M138: 79.81 | N138: 823.44 | O138: 957.72
A139: 4.42 | B139: IEQ003150 | C139: SCO | D139: Cacamba de aco com 5m3, para retirada de entulho, inclusive transporte e descarga, aluguel | E139: un | F139: 12 | G139: 320 | H139: 372.16 | I139: 3840 | J139: 4465.92 | L139: 320 | M139: 372.16 | N139: 3840 | O139: 4465.92
A140: 4.43 | B140: MAT138020 | C140: SCO | D140: Tinta - Textura acrilica cor branca Coral ou similar | E140: gl | F140: 3 | G140: 46.5 | H140: 54.08 | I140: 139.5 | J140: 162.24 | L140: 46.5 | M140: 54.08 | N140: 139.5 | O140: 162.24
A141: 4.44 | B141: 2215 | C141: ORSE | D141: Tinta acrílica | E141: L | F141: 7.2 | G141: 13.71 | H141: 15.94 | I141: 98.71 | J141: 114.77 | L141: 13.71 | M141: 15.94 | N141: 98.71 | O141: 114.77
A142: 4.45 | B142: 00007311 | C142: SINAPI | D142: TINTA ESMALTE SINTETICO PREMIUM ACETINADO | E142: L | F142: 7.2 | G142: 49.01 | H142: 57 | I142: 352.87 | J142: 410.4 | L142: 49.01 | M142: 57 | N142: 352.87 | O142: 410.4
A143: 4.46 | B143: 00005318 | C143: SINAPI | D143: DILUENTE AGUARRAS | E143: L | F143: 0.9 | G143: 18.51 | H143: 21.53 | I143: 16.66 | J143: 19.38 | L143: 18.51 | M143: 21.53 | N143: 16.66 | O143: 19.38
A144: 5 | D144: Kit 1 (conjunto condulete para interruptor 1 tecla) | I144: =SUM(I145:I148) -> 2445 | J144: =SUM(J145:J148) -> 2844 | N144: =SUM(N145:N148) -> 2445 | O144: =SUM(O145:O148) -> 2844
A145: 5.1 | B145: 00039334 | C145: SINAPI | D145: CONDULETE EM PVC, TIPO "E", SEM TAMPA, DE 3/4" | E145: UN | F145: 100 | G145: 9.67 | H145: 11.25 | I145: =ROUND(G145*F145,2) -> 967 | J145: =ROUND(H145*F145,2) -> 1125 | L145: 9.67 | M145: =ROUND(L145*(1+$G$2),2) -> 11.25 | N145: =ROUND(L145*$F145,2) -> 967 | O145: =ROUND(M145*$F145,2) -> 1125
A146: 5.2 | B146: 017929 | C146: SBC | D146: ADAPTADOR CONDULETE TOP 3/4" | E146: UN | F146: 100 | G146: 2.2 | H146: 2.56 | I146: =ROUND(G146*F146,2) -> 220 | J146: =ROUND(H146*F146,2) -> 256 | L146: 2.2 | M146: 2.56 | N146: 220 | O146: 256
A147: 5.3 | B147: 00038112 | C147: SINAPI | D147: INTERRUPTOR SIMPLES 10A, 250V (MODULO COM ABAS) | E147: UN | F147: 100 | G147: 8.93 | H147: 10.39 | I147: 893 | J147: 1039 | L147: 8.93 | M147: 10.39 | N147: 893 | O147: 1039
A148: 5.4 | B148: 00039346 | C148: SINAPI | D148: TAMPA PARA CONDULETE, EM PVC, PARA 1 INTERRUPTOR | E148: UN | F148: 100 | G148: 3.65 | H148: 4.24 | I148: 365 | J148: 424 | L148: 3.65 | M148: 4.24 | N148: 365 | O148: 424
A149: 6 | D149: Kit 2 (conjunto condulete para interruptor 2 teclas) | I149: =SUM(I150:I153) -> 3457 | J149: =SUM(J150:J153) -> 4021 | N149: =SUM(N150:N153) -> 3457 | O149: =SUM(O150:O153) -> 4021
A150: 6.1 | B150: 00039334 | C150: SINAPI | D150: CONDULETE EM PVC, TIPO "E", SEM TAMPA, DE 3/4" | E150: UN | F150: 100 | G150: 9.67 | H150: 11.25 | I150: =ROUND(G150*F150,2) -> 967 | J150: =ROUND(H150*F150,2) -> 1125 | L150: 9.67 | M150: 11.25 | N150: 967 | O150: 1125
A151: 6.2 | B151: 017929 | C151: SBC | D151: ADAPTADOR CONDULETE TOP 3/4" | E151: UN | F151: 100 | G151: 2.2 | H151: 2.56 | I151: =ROUND(G151*F151,2) -> 220 | J151: =ROUND(H151*F151,2) -> 256 | L151: 2.2 | M151: 2.56 | N151: 220 | O151: 256
A152: 6.3 | B152: 00012129 | C152: SINAPI | D152: INTERRUPTOR 2 TECLAS SIMPLES (MODULO COM ABAS) | E152: UN | F152: 100 | G152: 9.5 | H152: 11.05 | I152: 950 | J152: 1105 | L152: 9.5 | M152: 11.05 | N152: 950 | O152: 1105
A153: 6.4 | B153: 018030 | C153: SBC | D153: TAMPA 2 MODULOS CONDULETE TOP 3/4" | E153: UN | F153: 100 | G153: 13.2 | H153: 15.35 | I153: 1320 | J153: 1535 | L153: 13.2 | M153: 15.35 | N153: 1320 | O153: 1535
A154: 7 | D154: Kit 3 (conjunto condulete para interruptor 3 teclas) | I154: =SUM(I155:I158) -> 3882 | J154: =SUM(J155:J158) -> 4516 | N154: =SUM(N155:N158) -> 3882 | O154: =SUM(O155:O158) -> 4516
A155: 7.1 | B155: 00039334 | C155: SINAPI | D155: CONDULETE EM PVC, TIPO "E", SEM TAMPA, DE 3/4" | E155: UN | F155: 100 | G155: 9.67 | H155: 11.25 | I155: =ROUND(G155*F155,2) -> 967 | J155: =ROUND(H155*F155,2) -> 1125 | L155: 9.67 | M155: 11.25 | N155: 967 | O155: 1125
A156: 7.2 | B156: 017929 | C156: SBC | D156: ADAPTADOR CONDULETE TOP 3/4" | E156: UN | F156: 100 | G156: 2.2 | H156: 2.56 | I156: =ROUND(G156*F156,2) -> 220 | J156: =ROUND(H156*F156,2) -> 256 | L156: 2.2 | M156: 2.56 | N156: 220 | O156: 256
A157: 7.3 | B157: I1267 | C157: SEINFRA | D157: INTERRUPTOR 3 TECLAS SIMPLES (MÓDULO COM ABAS) | E157: UN | F157: 100 | G157: 20.71 | H157: 24.09 | I157: 2071 | J157: 2409 | L157: 20.71 | M157: 24.09 | N157: 2071 | O157: 2409
A158: 7.4 | B158: 018036 | C158: SBC | D158: TAMPA 3 MODULOS CONDULETE TOP 3/4" | E158: UN | F158: 100 | G158: 6.24 | H158: 7.26 | I158: 624 | J158: 726 | L158: 6.24 | M158: 7.26 | N158: 624 | O158: 726
A159: 8 | D159: Kit 4 (conjunto condulete com placa cega) | I159: =SUM(I160:I162) -> 10285 | J159: =SUM(J160:J162) -> 11965 | N159: =SUM(N160:N162) -> 10285 | O159: =SUM(O160:O162) -> 11965
A160: 8.1 | B160: 00039334 | C160: SINAPI | D160: CONDULETE EM PVC, TIPO "E", SEM TAMPA, DE 3/4" | E160: UN | F160: 500 | G160: 9.67 | H160: 11.25 | I160: =ROUND(G160*F160,2) -> 4835 | J160: =ROUND(H160*F160,2) -> 5625 | L160: 9.67 | M160: 11.25 | N160: 4835 | O160: 5625
A161: 8.2 | B161: 017929 | C161: SBC | D161: ADAPTADOR CONDULETE TOP 3/4" | E161: UN | F161: 1000 | G161: 2.2 | H161: 2.56 | I161: =ROUND(G161*F161,2) -> 2200 | J161: =ROUND(H161*F161,2) -> 2560 | L161: 2.2 | M161: 2.56 | N161: 2200 | O161: 2560
A162: 8.3 | B162: 018025 | C162: SBC | D162: TAMPA CEGA CONDULETE 4"x2" | E162: UN | F162: 500 | G162: 6.5 | H162: 7.56 | I162: 3250 | J162: 3780 | L162: 6.5 | M162: 7.56 | N162: 3250 | O162: 3780
A163: 9 | D163: Kit 5 (conjunto condulete para tomada 10A) | I163: =SUM(I164:I167) -> 27890 | J163: =SUM(J164:J167) -> 32440 | N163: =SUM(N164:N167) -> 27890 | O163: =SUM(O164:O167) -> 32440
A164: 9.1 | B164: 00039334 | C164: SINAPI | D164: CONDULETE EM PVC, TIPO "E", SEM TAMPA, DE 3/4" | E164: UN | F164: 1000 | G164: 9.67 | H164: 11.25 | I164: =ROUND(G164*F164,2) -> 9670 | J164: =ROUND(H164*F164,2) -> 11250 | L164: 9.67 | M164: 11.25 | N164: 9670 | O164: 11250
A165: 9.2 | B165: 017929 | C165: SBC | D165: ADAPTADOR CONDULETE TOP 3/4" | E165: UN | F165: 2000 | G165: 2.2 | H165: 2.56 | I165: =ROUND(G165*F165,2) -> 4400 | J165: =ROUND(H165*F165,2) -> 5120 | L165: 2.2 | M165: 2.56 | N165: 4400 | O165: 5120
A166: 9.3 | B166: 00038101 | C166: SINAPI | D166: TOMADA 2P+T 10A, 250V ( MODULO COM ABAS) | E166: UN | F166: 1000 | G166: 10.17 | H166: 11.83 | I166: 10170 | J166: 11830 | L166: 10.17 | M166: 11.83 | N166: 10170 | O166: 11830
A167: 9.4 | B167: 00039352 | C167: SINAPI | D167: TAMPA PARA CONDULETE, EM PVC, PARA TOMADA HEXAGONAL | E167: UN | F167: 1000 | G167: 3.65 | H167: 4.24 | I167: 3650 | J167: 4240 | L167: 3.65 | M167: 4.24 | N167: 3650 | O167: 4240
A168: 10 | D168: Kit 6 ( conjunto condulete para tomada 20A) | I168: =SUM(I169:I172) -> 24584 | J168: =SUM(J169:J172) -> 28592 | N168: =SUM(N169:N172) -> 24584 | O168: =SUM(O169:O172) -> 28592
A169: 10.1 | B169: 00039334 | C169: SINAPI | D169: CONDULETE EM PVC, TIPO "E", SEM TAMPA, DE 3/4" | E169: UN | F169: 800 | G169: 9.67 | H169: 11.25 | I169: =ROUND(G169*F169,2) -> 7736 | J169: =ROUND(H169*F169,2) -> 9000 | L169: 9.67 | M169: 11.25 | N169: 7736 | O169: 9000
A170: 10.2 | B170: 017929 | C170: SBC | D170: ADAPTADOR CONDULETE TOP 3/4" | E170: UN | F170: 1600 | G170: 2.2 | H170: 2.56 | I170: =ROUND(G170*F170,2) -> 3520 | J170: =ROUND(H170*F170,2) -> 4096 | L170: 2.2 | M170: 2.56 | N170: 3520 | O170: 4096
A171: 10.3 | B171: 00038102 | C171: SINAPI | D171: TOMADA 2P+T 20A, 250V ( MODULO COM ABAS) | E171: UN | F171: 800 | G171: 13.01 | H171: 15.13 | I171: 10408 | J171: 12104 | L171: 13.01 | M171: 15.13 | N171: 10408 | O171: 12104
A172: 10.4 | B172: 00039352 | C172: SINAPI | D172: TAMPA PARA CONDULETE, EM PVC, PARA TOMADA HEXAGONAL | E172: UN | F172: 800 | G172: 3.65 | H172: 4.24 | I172: 2920 | J172: 3392 | L172: 3.65 | M172: 4.24 | N172: 2920 | O172: 3392
A173: 11 | D173: Itens elétricos sem kit | I173: =SUM(I174:I217) -> 210382.24 | J173: =SUM(J174:J217) -> 244631.92 | N173: =SUM(N174:N217) -> 210382.24 | O173: =SUM(O174:O217) -> 244631.92
A174: 11.1 | B174: 001253 | C174: SBC | D174: CABO PP CORDPLAST 2 CONDUTORES 450/750V 2,50mm2 | E174: M | F174: 1000 | G174: 6.05 | H174: 7.04 | I174: =ROUND(G174*F174,2) -> 6050 | J174: =ROUND(H174*F174,2) -> 7040 | L174: 6.05 | M174: 7.04 | N174: 6050 | O174: 7040
A175: 11.2 | B175: 004989 | C175: SBC | D175: FIO SUPERASTIC FLEX 450/750V 2,5mm2 CORES DIVERSAS | E175: M | F175: 10000 | G175: 2.48 | H175: 2.88 | I175: =ROUND(G175*F175,2) -> 24800 | J175: =ROUND(H175*F175,2) -> 28800 | L175: 2.48 | M175: 2.88 | N175: 24800 | O175: 28800
A176: 11.3 | B176: 003580 | C176: SBC | D176: FIO SUPERASTIC FLEX 450/750V 4,0mm2 CORES DIVERSAS | E176: M | F176: 1000 | G176: 4.01 | H176: 4.66 | I176: 4010 | J176: 4660 | L176: 4.01 | M176: 4.66 | N176: 4010 | O176: 4660
A177: 11.4 | B177: 00043973 | C177: SINAPI | D177: CABO DE REDE, PAR TRANCADO U/UTP, 4 PARES, CATEGORIA 6 (CAT 6), ISOLAMENTO PVC (CM) | E177: M | F177: 5000 | G177: 3.65 | H177: 4.24 | I177: 18250 | J177: 21200 | L177: 3.65 | M177: 4.24 | N177: 18250 | O177: 21200
A178: 11.5 | B178: 036462 | C178: SBC | D178: ADAPTADOR PARA TOMADA NOVO PADRAO NBR14.136 690661 PIAL | E178: UN | F178: 100 | G178: 21.6 | H178: 25.12 | I178: 2160 | J178: 2512 | L178: 21.6 | M178: 25.12 | N178: 2160 | O178: 2512
A179: 11.6 | B179: 00020111 | C179: SINAPI | D179: FITA ISOLANTE ADESIVA ANTICHAMA, USO ATE 750 V, EM ROLO DE 19 MM X 20 M | E179: UN | F179: 250 | G179: 12.25 | H179: 14.25 | I179: 3062.5 | J179: 3562.5 | L179: 12.25 | M179: 14.25 | N179: 3062.5 | O179: 3562.5
A180: 11.7 | B180: 004500 | C180: SBC | D180: INTERRUPTOR SIMPLES EMBUTIR 10A-250V COM PLACA PIAL | E180: UN | F180: 30 | G180: 23.99 | H180: 27.9 | I180: 719.7 | J180: 837 | L180: 23.99 | M180: 27.9 | N180: 719.7 | O180: 837
A181: 11.8 | B181: 00039390 | C181: SINAPI | D181: LUMINARIA LED REFLETOR RETANGULAR BIVOLT, LUZ BRANCA, 30 W | E181: UN | F181: 100 | G181: 26.13 | H181: 30.39 | I181: 2613 | J181: 3039 | L181: 26.13 | M181: 30.39 | N181: 2613 | O181: 3039
A182: 11.9 | B182: 004771 | C182: SBC | D182: LAMPADA LED SOLLAR BULBO 7W BRANCA BIVOLT | E182: UN | F182: 100 | G182: 19.9 | H182: 23.14 | I182: 1990 | J182: 2314 | L182: 19.9 | M182: 23.14 | N182: 1990 | O182: 2314
A183: 11.10 | B183: 00039387 | C183: SINAPI | D183: LAMPADA LED TUBULAR BIVOLT 18/20 W, BASE G13 | E183: UN | F183: 100 | G183: 9.58 | H183: 11.14 | I183: 958 | J183: 1114 | L183: 9.58 | M183: 11.14 | N183: 958 | O183: 1114
A184: 11.11 | B184: 7° SR - 14 | C184: Próprio | D184: Luz emergência led, 30 un, 3W, bivolt, autonomia minima 12hrs | E184: UN | F184: 50 | G184: 18.91 | H184: 21.99 | I184: 945.5 | J184: 1099.5 | L184: 18.91 | M184: 21.99 | N184: 945.5 | O184: 1099.5
A185: 11.12 | B185: 00039386 | C185: SINAPI | D185: LAMPADA LED TUBULAR BIVOLT 9/10 W, BASE G13 | E185: UN | F185: 500 | G185: 6.68 | H185: 7.77 | I185: 3340 | J185: 3885 | L185: 6.68 | M185: 7.77 | N185: 3340 | O185: 3885
A186: 11.13 | B186: 7° SR - 15 | C186: Próprio | D186: Refletor, alumínio injetado, tipo led, 100W, 220V, IP65 | E186: UN | F186: 20 | G186: 57.02 | H186: 66.31 | I186: 1140.4 | J186: 1326.2 | L186: 57.02 | M186: 66.31 | N186: 1140.4 | O186: 1326.2
A187: 11.14 | B187: 7° SR - 16 | C187: Próprio | D187: Refletor, alumínio, 4 unidades, tipo led, 200W, 220V, IP67 | E187: UN | F187: 20 | G187: 75.9 | H187: 88.27 | I187: 1518 | J187: 1765.4 | L187: 75.9 | M187: 88.27 | N187: 1518 | O187: 1765.4
A188: 11.15 | B188: 064446 | C188: SBC | D188: SUPORTE/SOQUETE PLASTICO ANTIVIBRATORIO PARA LAMPADA FLUORESCENTE | E188: UN | F188: 200 | G188: 2.5 | H188: 2.91 | I188: 500 | J188: 582 | L188: 2.5 | M188: 2.91 | N188: 500 | O188: 582
A189: 11.16 | B189: 7° SR - 17 | C189: Próprio | D189: Filtro de Linha, 110/220V, para 6 tomadas, 60Hz | E189: UN | F189: 100 | G189: 43.65 | H189: 50.76 | I189: 4365 | J189: 5076 | L189: 43.65 | M189: 50.76 | N189: 4365 | O189: 5076
A190: 11.17 | B190: 00039253 | C190: SINAPI | D190: ELETRODUTO/CONDULETE DE PVC RIGIDO, LISO, COR CINZA, DE 3/4", PARA INSTALACOES APARENTES (NBR 5410) | E190: M | F190: 1500 | G190: 16.95 | H190: 19.71 | I190: 25425 | J190: 29565 | L190: 16.95 | M190: 19.71 | N190: 25425 | O190: 29565
A191: 11.18 | B191: 00039255 | C191: SINAPI | D191: ELETRODUTO/CONDULETE DE PVC RIGIDO, LISO, COR CINZA, DE 1", PARA INSTALACOES APARENTES (NBR 5410) | E191: M | F191: 150 | G191: 24.6 | H191: 28.61 | I191: 3690 | J191: 4291.5 | L191: 24.6 | M191: 28.61 | N191: 3690 | O191: 4291.5
A192: 11.19 | B192: 002025 | C192: SBC | D192: BOX ALUMINIO RETO PARA ELETRODUTO 3/4" TRAMONTINA | E192: UN | F192: 500 | G192: 4.41 | H192: 5.13 | I192: 2205 | J192: 2565 | L192: 4.41 | M192: 5.13 | N192: 2205 | O192: 2565
A193: 11.20 | B193: 006895 | C193: SBC | D193: BOX ALUMINIO RETO PARA ELETRODUTO 1" TRAMONTINA | E193: UN | F193: 150 | G193: 5.82 | H193: 6.77 | I193: 873 | J193: 1015.5 | L193: 5.82 | M193: 6.77 | N193: 873 | O193: 1015.5
A194: 11.21 | B194: 003577 | C194: SBC | D194: INTERRUPTOR BIPOLAR 10A-250V LIZ TRAMONTINA | E194: UN | F194: 200 | G194: 19.3 | H194: 22.45 | I194: 3860 | J194: 4490 | L194: 19.3 | M194: 22.45 | N194: 3860 | O194: 4490
A195: 11.22 | B195: 000032 | C195: SBC | D195: INTERRUPTOR 3 TECLAS SIMPLES COM PLACA SERIE MODULARE FAME | E195: UN | F195: 50 | G195: 22.9 | H195: 26.63 | I195: 1145 | J195: 1331.5 | L195: 22.9 | M195: 26.63 | N195: 1145 | O195: 1331.5
A196: 11.23 | B196: 00010569 | C196: SINAPI | D196: CAIXA DE PASSAGEM / DERIVACAO / LUZ, OCTOGONAL 4 X4, EM ACO ESMALTADA, COM FUNDO MOVEL SIMPLES (FMS) | E196: UN | F196: 50 | G196: 2.69 | H196: 3.13 | I196: 134.5 | J196: 156.5 | L196: 2.69 | M196: 3.13 | N196: 134.5 | O196: 156.5
A197: 11.24 | B197: 00038096 | C197: SINAPI | D197: ESPELHO / PLACA DE 2 POSTOS 4" X 4", PARA INSTALACAO DE TOMADAS E INTERRUPTORES | E197: UN | F197: 50 | G197: 7.18 | H197: 8.35 | I197: 359 | J197: 417.5 | L197: 7.18 | M197: 8.35 | N197: 359 | O197: 417.5
A198: 11.25 | B198: 00038101 | C198: SINAPI | D198: TOMADA 2P+T 10A, 250V (APENAS MODULO) | E198: UN | F198: 100 | G198: 10.17 | H198: =ROUND(G198*(1+$H$2),2) -> 11.83 | I198: 1017 | J198: 1183 | L198: 10.17 | M198: 11.83 | N198: 1017 | O198: 1183
A199: 11.26 | B199: 00038092 | C199: SINAPI | D199: ESPELHO / PLACA DE 1 POSTO 4" X 2", PARA INSTALACAO DE TOMADAS E INTERRUPTORES | E199: UN | F199: 100 | G199: 2.99 | H199: 3.48 | I199: 299 | J199: 348 | L199: 2.99 | M199: 3.48 | N199: 299 | O199: 348
A200: 11.27 | B200: 00038099 | C200: SINAPI | D200: SUPORTE DE FIXACAO PARA ESPELHO / PLACA 4" X 2", PARA 1 MODULO, PARA INSTALACAO DE TOMADAS E INTERRUPTORES (SOMENTE SUPORTE) | E200: UN | F200: 100 | G200: 1.96 | H200: 2.28 | I200: 196 | J200: 228 | L200: 1.96 | M200: 2.28 | N200: 196 | O200: 228
... 55 more rows

Sheet EPI
A1: Item | B1: Profissional | C1: EPI | D1: Referência | E1: Custo Unitário (R$) | F1: Vida útil (dias) | G1: Vida útil (horas) | H1: Coefíciente de utilização | I1: Custo Horario (R$) | J1: Custo Mensal (R$) | L1: Soma | M1: Custo Mensal
A2: 1.1 | B2: Carpinteiro | C2: Uniforme comum | D2: SINAPI | E2: 277.38 | F2: 180 | G2: 1131.43 | H2: 1 | I2: =ROUND(E2/G2*H2,4) -> 0.2452 | J2: =ROUND(I2*30/7*44,2) -> 46.24 | L2: Carpinteiro | M2: =SUMIF(EPI[Profissional],L2,EPI[Custo Mensal (R$)]) -> 176.04
A3: 1.2 | B3: Carpinteiro | C3: Capacete | D3: SINAPI | E3: 16.31 | F3: 360 | G3: 2262.86 | H3: 1 | I3: 0.0072 | J3: 1.36 | L3: Eletricista | M3: =SUMIF(EPI[Profissional],L3,EPI[Custo Mensal (R$)]) -> 192.29
A4: 1.3 | B4: Carpinteiro | C4: Botas de couro cano curto | D4: SINAPI | E4: 78.27 | F4: 90 | G4: 565.71 | H4: 1 | I4: 0.1384 | J4: 26.1 | L4: Encanador | M4: =SUMIF(EPI[Profissional],L4,EPI[Custo Mensal (R$)]) -> 120.2
A5: 1.4 | B5: Carpinteiro | C5: Luvas de raspa cano curto | D5: SINAPI | E5: 14.67 | F5: 10 | G5: 73.33 | H5: 1 | I5: 0.2001 | J5: 37.73 | L5: Engenheiro | M5: =SUMIF(EPI[Profissional],L5,EPI[Custo Mensal (R$)]) -> 76.22
A6: 1.5 | B6: Carpinteiro | C6: Óculos contra impacto | D6: SINAPI | E6: 6.33 | F6: 60 | G6: 377.14 | H6: 1 | I6: 0.0168 | J6: 3.17 | L6: Encarregado | M6: =SUMIF(EPI[Profissional],L6,EPI[Custo Mensal (R$)]) -> 142.21
A7: 1.6 | B7: Carpinteiro | C7: Protetor auricular | D7: SINAPI | E7: 2.44 | F7: 20 | G7: 146.67 | H7: 0.6 | I7: 0.01 | J7: 1.89 | L7: Pintor | M7: =SUMIF(EPI[Profissional],L7,EPI[Custo Mensal (R$)]) -> 246.5
A8: 1.7 | B8: Carpinteiro | C8: Abafador de ruídos | D8: SINAPI | E8: 33.42 | F8: 90 | G8: 565.71 | H8: 0.5 | I8: 0.0295 | J8: 5.56 | L8: Servente | M8: =SUMIF(EPI[Profissional],L8,EPI[Custo Mensal (R$)]) -> 171.21
A9: 1.8 | B9: Carpinteiro | C9: Respirador descartável sem vávula | D9: SINAPI | E9: 1.82 | F9: 1 | G9: 7.33 | H9: 0.4 | I9: 0.0993 | J9: 18.73
A10: 1.9 | B10: Carpinteiro | C10: Protetor facial de acrílico | D10: SINAPI | E10: 44.2 | F10: 60 | G10: 377.14 | H10: 0.5 | I10: 0.0586 | J10: 11.05
A11: 1.10 | B11: Carpinteiro | C11: Avental de raspa | D11: SINAPI | E11: 48.43 | F11: 30 | G11: 188.57 | H11: 0.5 | I11: 0.1284 | J11: 24.21
A12: 2.1 | B12: Eletricista | C12: Uniforme comum (2 unidades) | D12: SINAPI | E12: 277.38 | F12: 180 | G12: 1131.43 | H12: 1 | I12: 0.2452 | J12: 46.24
A13: 2.2 | B13: Eletricista | C13: Capacete | D13: SINAPI | E13: 16.31 | F13: 360 | G13: 2262.86 | H13: 1 | I13: 0.0072 | J13: 1.36
A14: 2.3 | B14: Eletricista | C14: Botas de couro cano curto | D14: SINAPI | E14: 78.27 | F14: 90 | G14: 565.71 | H14: 1 | I14: 0.1384 | J14: 26.1
A15: 2.4 | B15: Eletricista | C15: Luvas de borracha - látex - cano curto | D15: SINAPI | E15: 4.99 | F15: 2 | G15: 14.67 | H15: 0.3 | I15: 0.102 | J15: 19.23
A16: 2.5 | B16: Eletricista | C16: Luvas de raspa cano curto | D16: SINAPI | E16: 14.67 | F16: 10 | G16: 73.33 | H16: 0.7 | I16: 0.14 | J16: 26.4
A17: 2.6 | B17: Eletricista | C17: Óculos contra impacto | D17: SINAPI | E17: 6.33 | F17: 60 | G17: 377.14 | H17: 1 | I17: 0.0168 | J17: 3.17
A18: 2.7 | B18: Eletricista | C18: Protetor auricular | D18: SINAPI | E18: 2.44 | F18: 20 | G18: 146.67 | H18: 0.6 | I18: 0.01 | J18: 1.89
A19: 2.8 | B19: Eletricista | C19: Cinto de segurança tipo paraquedista | D19: SINAPI | E19: 78.27 | F19: 180 | G19: 1131.43 | H19: 0.2 | I19: 0.0138 | J19: 2.6
A20: 2.9 | B20: Eletricista | C20: Trava quedas | D20: SINAPI | E20: 191.6 | F20: 90 | G20: 565.71 | H20: 0.2 | I20: 0.0677 | J20: 12.77
A21: 2.10 | B21: Eletricista | C21: Talabarte | D21: SINAPI | E21: 218.09 | F21: 90 | G21: 565.71 | H21: 0.2 | I21: 0.0771 | J21: 14.54
A22: 2.11 | B22: Eletricista | C22: Protetor facial de acrílico | D22: SINAPI | E22: 44.2 | F22: 60 | G22: 377.14 | H22: 0.5 | I22: 0.0586 | J22: 11.05
A23: 2.12 | B23: Eletricista | C23: Respirador descartável sem válvula | D23: SINAPI | E23: 1.82 | F23: 1 | G23: 7.33 | H23: 0.2 | I23: 0.0497 | J23: 9.37
A24: 2.13 | B24: Eletricista | C24: Luva de Alta Tensão | D24: SINAPI | E24: 421.95 | F24: 360 | G24: 2262.86 | H24: 0.5 | I24: 0.0932 | J24: 17.57
A25: 1 | B25: Encanador | C25: Uniforme comum (2 unidades) | D25: SINAPI | E25: 277.38 | F25: 180 | G25: 1131.43 | H25: 1 | I25: 0.2452 | J25: 46.24
A26: 2 | B26: Encanador | C26: Capacete | D26: SINAPI | E26: 16.31 | F26: 360 | G26: 2262.86 | H26: 1 | I26: 0.0072 | J26: 1.36
A27: 3 | B27: Encanador | C27: Botas de couro cano curto | D27: SINAPI | E27: 78.27 | F27: 90 | G27: 565.71 | H27: 0.6 | I27: =ROUND(E27/G27*H27,4) -> 0.083 | J27: 15.65
A28: 4 | B28: Encanador | C28: Botas de PVC cano médio | D28: SINAPI | E28: 46.96 | F28: 90 | G28: 565.71 | H28: 0.4 | I28: 0.0332 | J28: 6.26
A29: 5 | B29: Encanador | C29: Luvas de borracha - látex - cano curto | D29: SINAPI | E29: 4.99 | F29: 2 | G29: 14.67 | H29: 0.3 | I29: 0.102 | J29: 19.23
A30: 6 | B30: Encanador | C30: Luvas de raspa cano curto | D30: SINAPI | E30: 14.67 | F30: 10 | G30: 73.33 | H30: 0.7 | I30: 0.14 | J30: 26.4
A31: 7 | B31: Encanador | C31: Óculos contra impacto | D31: SINAPI | E31: 6.33 | F31: 60 | G31: 377.14 | H31: 1 | I31: 0.0168 | J31: 3.17
A32: 8 | B32: Encanador | C32: Protetor auricular | D32: SINAPI | E32: 2.44 | F32: 20 | G32: 146.67 | H32: 0.6 | I32: 0.01 | J32: 1.89
A33: 1 | B33: Engenheiro | C33: Uniforme comum (2 unidades) | D33: SINAPI | E33: 277.38 | F33: 180 | G33: 1131.43 | H33: 1 | I33: 0.2452 | J33: 46.24
A34: 2 | B34: Engenheiro | C34: Capacete | D34: SINAPI | E34: 16.31 | F34: 360 | G34: 2262.86 | H34: 1 | I34: 0.0072 | J34: 1.36
A35: 3 | B35: Engenheiro | C35: Botas de couro cano curto | D35: SINAPI | E35: 78.27 | F35: 90 | G35: 565.71 | H35: 1 | I35: 0.1384 | J35: 26.1
A36: 4 | B36: Engenheiro | C36: Protetor auricular | D36: SINAPI | E36: 2.44 | F36: 20 | G36: 146.67 | H36: 0.3 | I36: 0.005 | J36: 0.94
A37: 5 | B37: Engenheiro | C37: Óculos contra impacto | D37: SINAPI | E37: 6.33 | F37: 60 | G37: 377.14 | H37: 0.5 | I37: 0.0084 | J37: 1.58
A38: 1 | B38: Encarregado | C38: Uniforme comum (2 unidades) | D38: SINAPI | E38: 277.38 | F38: 180 | G38: 1131.43 | H38: 1 | I38: 0.2452 | J38: 46.24
A39: 2 | B39: Encarregado | C39: Capacete | D39: SINAPI | E39: 16.31 | F39: 360 | G39: 2262.86 | H39: 1 | I39: 0.0072 | J39: 1.36
A40: 3 | B40: Encarregado | C40: Botas de couro cano curto | D40: SINAPI | E40: 78.27 | F40: 90 | G40: 565.71 | H40: 0.7 | I40: 0.0968 | J40: 18.25
A41: 4 | B41: Encarregado | C41: Botas de PVC cano médio | D41: SINAPI | E41: 46.96 | F41: 90 | G41: 565.71 | H41: 0.3 | I41: 0.0249 | J41: 4.7
A42: 5 | B42: Encarregado | C42: Luvas de PVC cano médio forradas | D42: SINAPI | E42: 19.99 | F42: 5 | G42: 36.67 | H42: 0.3 | I42: 0.1635 | J42: =ROUND(I42*30/7*44,2) -> 30.83
A43: 6 | B43: Encarregado | C43: Luvas de raspa cano curto | D43: SINAPI | E43: 14.67 | F43: 10 | G43: 73.33 | H43: 0.7 | I43: 0.14 | J43: 26.4
A44: 7 | B44: Encarregado | C44: Óculos contra impacto | D44: SINAPI | E44: 6.33 | F44: 60 | G44: 377.14 | H44: 1 | I44: 0.0168 | J44: 3.17
A45: 8 | B45: Encarregado | C45: Protetor auricular | D45: SINAPI | E45: 2.44 | F45: 20 | G45: 146.67 | H45: 0.6 | I45: 0.01 | J45: 1.89
A46: 14 | B46: Encarregado | C46: Respirador descartável sem válvula | D46: SINAPI | E46: 1.82 | F46: 1 | G46: 7.33 | H46: 0.2 | I46: =ROUND(E46/G46*H46,4) -> 0.0497 | J46: 9.37
A47: 1 | B47: Pintor | C47: Uniforme comum (2 unidades) | D47: SINAPI | E47: 277.38 | F47: 180 | G47: 1131.43 | H47: 1 | I47: 0.2452 | J47: 46.24
A48: 2 | B48: Pintor | C48: Capacete | D48: SINAPI | E48: 16.31 | F48: 360 | G48: 2262.86 | H48: 1 | I48: 0.0072 | J48: 1.36
A49: 3 | B49: Pintor | C49: Botas de couro cano curto | D49: SINAPI | E49: 78.27 | F49: 90 | G49: 565.71 | H49: 1 | I49: 0.1384 | J49: 26.1
A50: 4 | B50: Pintor | C50: Luvas de borracha - látex - cano curto | D50: SINAPI | E50: 4.99 | F50: 2 | G50: 14.67 | H50: 1 | I50: 0.3401 | J50: 64.13
A51: 5 | B51: Pintor | C51: Avental de PVC | D51: SINAPI | E51: 27.9 | F51: 15 | G51: 110 | H51: 1 | I51: 0.2536 | J51: 47.82
A52: 6 | B52: Pintor | C52: Óculos contra impacto | D52: SINAPI | E52: 6.33 | F52: 60 | G52: 377.14 | H52: 1 | I52: 0.0168 | J52: 3.17
A53: 7 | B53: Pintor | C53: Respirador descartável sem válvula | D53: SINAPI | E53: 1.82 | F53: 1 | G53: 7.33 | H53: 0.5 | I53: 0.1241 | J53: 23.4
A54: 8 | B54: Pintor | C54: Máscara semifacial com 1 filtro | D54: SINAPI | E54: 33.9 | F54: 120 | G54: 754.29 | H54: 0.5 | I54: 0.0225 | J54: 4.24
A55: 9 | B55: Pintor | C55: Filtro para máscara semifacial | D55: SINAPI | E55: 21.9 | F55: 10 | G55: 73.33 | H55: 0.5 | I55: 0.1493 | J55: 28.15
A56: 10 | B56: Pintor | C56: Protetor auricular | D56: SINAPI | E56: 2.44 | F56: 20 | G56: 146.67 | H56: 0.6 | I56: 0.01 | J56: 1.89
A57: 1 | B57: Servente | C57: Uniforme comum (2 unidades) | D57: SINAPI | E57: 277.38 | F57: 180 | G57: 1131.43 | H57: 1 | I57: 0.2452 | J57: 46.24
A58: 2 | B58: Servente | C58: Capacete | D58: SINAPI | E58: 16.31 | F58: 360 | G58: 2262.86 | H58: 1 | I58: 0.0072 | J58: 1.36
A59: 3 | B59: Servente | C59: Botas de couro cano curto | D59: SINAPI | E59: 78.27 | F59: 90 | G59: 565.71 | H59: 0.7 | I59: 0.0968 | J59: 18.25
A60: 4 | B60: Servente | C60: Botas de PVC cano médio | D60: SINAPI | E60: 46.96 | F60: 90 | G60: 565.71 | H60: 0.3 | I60: 0.0249 | J60: 4.7
A61: 5 | B61: Servente | C61: Luvas de PVC cano médio forradas | D61: SINAPI | E61: 19.99 | F61: 5 | G61: 36.67 | H61: 0.3 | I61: 0.1635 | J61: 30.83
A62: 6 | B62: Servente | C62: Luvas de borracha - látex - cano curto | D62: SINAPI | E62: 4.99 | F62: 2 | G62: 14.67 | H62: 0.2 | I62: 0.068 | J62: 12.82
A63: 7 | B63: Servente | C63: Luvas de raspa cano curto | D63: SINAPI | E63: 14.67 | F63: 10 | G63: 73.33 | H63: 0.5 | I63: 0.1 | J63: 18.86
A64: 8 | B64: Servente | C64: Óculos contra impacto | D64: SINAPI | E64: 6.33 | F64: 60 | G64: 377.14 | H64: 0.7 | I64: 0.0117 | J64: 2.21
A65: 9 | B65: Servente | C65: Respirador descartável sem válvula | D65: SINAPI | E65: 1.82 | F65: 1 | G65: 7.33 | H65: 0.7 | I65: 0.1738 | J65: 32.77
A66: 10 | B66: Servente | C66: Protetor auricular | D66: SINAPI | E66: 2.44 | F66: 20 | G66: 146.67 | H66: 0.3 | I66: 0.005 | J66: 0.94
A67: 11 | B67: Servente | C67: Abafador de ruídos | D67: SINAPI | E67: 33.42 | F67: 90 | G67: 565.71 | H67: 0.2 | I67: 0.0118 | J67: 2.23

Sheet FER
A1: Item | B1: Profissional | C1: Ferramentas | D1: Referência | E1: Custo Unitário (R$) | F1: Vida útil (dias) | G1: Vida útil (horas) | H1: Coefíciente de utilização | I1: Custo Horario (R$) | J1: Custo Mensal (R$) | L1: Soma | M1: Custo Mensal
A2: 1.1 | B2: Carpinteiro | C2: Furadeira de impacto 1/2" - 600W | D2: SINAPI | E2: 398.99 | F2: 720 | G2: 4525.71 | H2: 0.5 | I2: =ROUND(E2/G2*H2,4) -> 0.0441 | J2: =ROUND(I2*30/7*44,2) -> 8.32 | L2: Carpinteiro | M2: =SUMIF(FER[Profissional],L2,FER[Custo Mensal (R$)]) -> 92.28
A3: 1.2 | B3: Carpinteiro | C3: Grampo de aperto rápido 18" | D3: SINAPI | E3: 111.77 | F3: 360 | G3: 2262.86 | H3: 0.3 | I3: 0.0148 | J3: 2.79 | L3: Eletricista | M3: =SUMIF(FER[Profissional],L3,FER[Custo Mensal (R$)]) -> 159.71
A4: 1.3 | B4: Carpinteiro | C4: Trena | D4: SINAPI | E4: 19.89 | F4: 360 | G4: 2262.86 | H4: 0.8 | I4: 0.007 | J4: 1.32 | L4: Encanador | M4: =SUMIF(FER[Profissional],L4,FER[Custo Mensal (R$)]) -> 59.27
A5: 1.4 | B5: Carpinteiro | C5: Martelo de pedreiro - 1 corte - cabo 20 cm - 1/2 kg | D5: SINAPI | E5: 60.43 | F5: 90 | G5: 565.71 | H5: 0.7 | I5: 0.0748 | J5: 14.11 | L5: Engenheiro | M5: =SUMIF(FER[Profissional],L5,FER[Custo Mensal (R$)]) -> 2.3
A6: 1.5 | B6: Carpinteiro | C6: Martelo de borracha | D6: SINAPI | E6: 21.9 | F6: 180 | G6: 1131.43 | H6: 0.5 | I6: 0.0097 | J6: 1.83 | L6: Encarregado | M6: =SUMIF(FER[Profissional],L6,FER[Custo Mensal (R$)]) -> 18.74
A7: 1.6 | B7: Carpinteiro | C7: Nível de bolha - alumínio - 35 cm | D7: SINAPI | E7: 39.9 | F7: 90 | G7: 565.71 | H7: 0.5 | I7: 0.0353 | J7: 6.66 | L7: Pintor | M7: =SUMIF(FER[Profissional],L7,FER[Custo Mensal (R$)]) -> 269.81
A8: 1.7 | B8: Carpinteiro | C8: Serrote 20 | D8: SINAPI | E8: 59.9 | F8: 90 | G8: 565.71 | H8: 0.3 | I8: 0.0318 | J8: 6 | L8: Servente | M8: =SUMIF(FER[Profissional],L8,FER[Custo Mensal (R$)]) -> 114.69
A9: 1.8 | B9: Carpinteiro | C9: Alicate diagonal para corte rente 6" | D9: SINAPI | E9: 43.31 | F9: 180 | G9: 1131.43 | H9: 0.2 | I9: 0.0077 | J9: 1.45
A10: 1.9 | B10: Carpinteiro | C10: Kit Chave de Fenda e Phillips | D10: SINAPI | E10: 113.91 | F10: 360 | G10: 2262.86 | H10: 0.4 | I10: 0.0201 | J10: 3.79
A11: 1.10 | B11: Carpinteiro | C11: Lápis de carpinteiro | D11: SINAPI | E11: 2.85 | F11: 2 | G11: 14.67 | H11: 0.8 | I11: 0.1554 | J11: 29.3
A12: 1.11 | B12: Carpinteiro | C12: Estilete 18 mm | D12: SINAPI | E12: 21.51 | F12: 30 | G12: 188.57 | H12: 0.5 | I12: 0.057 | J12: 10.75
A13: 1.12 | B13: Carpinteiro | C13: Régua de Alumínio - 2m | D13: SINAPI | E13: 60.63 | F13: 360 | G13: 2262.86 | H13: 0.3 | I13: 0.008 | J13: 1.51
A14: 1.13 | B14: Carpinteiro | C14: Esquadro 90° x 30 cm (12") | D14: SINAPI | E14: 35.83 | F14: 360 | G14: 2262.86 | H14: 0.5 | I14: 0.0079 | J14: 1.49
A15: 1.14 | B15: Carpinteiro | C15: Riscador com ponta de videa | D15: SINAPI | E15: 22.9 | F15: 360 | G15: 2262.86 | H15: 0.5 | I15: 0.0051 | J15: 0.96
A16: 1.15 | B16: Carpinteiro | C16: Formão chanfrado 1" | D16: SINAPI | E16: 29.9 | F16: 180 | G16: 1131.43 | H16: 0.4 | I16: 0.0106 | J16: 2
A17: 2.1 | B17: Eletricista | C17: Bolsa de lona para ferramentas 40 x 30 x 20 cm | D17: SINAPI | E17: 278.55 | F17: 180 | G17: 1131.43 | H17: 1 | I17: 0.2462 | J17: 46.43
A18: 2.2 | B18: Eletricista | C18: Alicate Profissional 8'' | D18: SINAPI | E18: 38.16 | F18: 180 | G18: 1131.43 | H18: 0.3 | I18: 0.0101 | J18: 1.9
A19: 2.3 | B19: Eletricista | C19: Alicate de Bico Longo de 6" | D19: SINAPI | E19: 29.18 | F19: 180 | G19: 1131.43 | H19: 0.3 | I19: 0.0077 | J19: 1.45
A20: 2.4 | B20: Eletricista | C20: Alicate diagonal para corte rente 6" | D20: SINAPI | E20: 43.31 | F20: 180 | G20: 1131.43 | H20: 0.3 | I20: 0.0115 | J20: 2.17
A21: 2.5 | B21: Eletricista | C21: Arco de serra | D21: SINAPI | E21: 30.82 | F21: 90 | G21: 565.71 | H21: 0.2 | I21: 0.0109 | J21: 2.06
A22: 2.6 | B22: Eletricista | C22: Alicate Climpador | D22: SINAPI | E22: 48.9 | F22: 180 | G22: 1131.43 | H22: 0.3 | I22: 0.013 | J22: 2.45
A23: 2.7 | B23: Eletricista | C23: Kit Chave de Fenda e Phillips | D23: SINAPI | E23: 113.91 | F23: 360 | G23: 2262.86 | H23: 0.4 | I23: 0.0201 | J23: 3.79
A24: 2.8 | B24: Eletricista | C24: Decapador de fio | D24: SINAPI | E24: 84.93 | F24: 180 | G24: 1131.43 | H24: 0.3 | I24: 0.0225 | J24: 4.24
A25: 2.9 | B25: Eletricista | C25: Alicate de pressão 11" | D25: SINAPI | E25: 71.5 | F25: 180 | G25: 1131.43 | H25: 0.3 | I25: 0.019 | J25: 3.58
A26: 2.10 | B26: Eletricista | C26: Chave inglesa 6'' | D26: SINAPI | E26: 36.96 | F26: 180 | G26: 1131.43 | H26: 0.3 | I26: 0.0098 | J26: 1.85
A27: 2.11 | B27: Eletricista | C27: Jogo de chave allen estrela ou hexagonal | D27: SINAPI | E27: 25.62 | F27: 180 | G27: 1131.43 | H27: 0.3 | I27: 0.0068 | J27: 1.28
A28: 2.12 | B28: Eletricista | C28: Detector de tensao | D28: SINAPI | E28: 42.9 | F28: 360 | G28: 2262.86 | H28: 0.2 | I28: 0.0038 | J28: 0.72
A29: 2.13 | B29: Eletricista | C29: Alicate amperímetro | D29: SINAPI | E29: 81.9 | F29: 360 | G29: 2262.86 | H29: 0.2 | I29: 0.0072 | J29: 1.36
A30: 2.14 | B30: Eletricista | C30: Lima redonda 8 | D30: SINAPI | E30: 28.9 | F30: 180 | G30: 1131.43 | H30: 0.3 | I30: 0.0077 | J30: 1.45
A31: 2.15 | B31: Eletricista | C31: Ferro de solda | D31: SINAPI | E31: 46.59 | F31: 180 | G31: 1131.43 | H31: 0.2 | I31: 0.0082 | J31: 1.55
A32: 2.16 | B32: Eletricista | C32: Furadeira de impacto 1/2" - 600W | D32: SINAPI | E32: 398.99 | F32: 720 | G32: 4525.71 | H32: 0.2 | I32: 0.0176 | J32: 3.32
A33: 2.17 | B33: Eletricista | C33: Trena | D33: SINAPI | E33: 19.89 | F33: 360 | G33: 2262.86 | H33: 0.5 | I33: 0.0044 | J33: 0.83
A34: 2.18 | B34: Eletricista | C34: Lixadeira elétrica angular | D34: SINAPI | E34: 965.02 | F34: 360 | G34: 2262.86 | H34: 0.3 | I34: 0.1279 | J34: 24.12
A35: 2.19 | B35: Eletricista | C35: Estilete 18 mm | D35: SINAPI | E35: 21.51 | F35: 30 | G35: 188.57 | H35: 0.3 | I35: 0.0342 | J35: 6.45
A36: 2.20 | B36: Eletricista | C36: Jogo de serra copo | D36: SINAPI | E36: 33.9 | F36: 180 | G36: 1131.43 | H36: 0.2 | I36: 0.006 | J36: 1.13
A37: 2.21 | B37: Eletricista | C37: Martelo de borracha | D37: SINAPI | E37: 21.9 | F37: 180 | G37: 1131.43 | H37: 0.2 | I37: 0.0039 | J37: 0.74
A38: 2.22 | B38: Eletricista | C38: Ponteiro aço liso 3/4" x 10" | D38: SINAPI | E38: 23.9 | F38: 30 | G38: 188.57 | H38: 0.2 | I38: 0.0253 | J38: 4.77
A39: 2.23 | B39: Eletricista | C39: Escada de abrir | D39: SINAPI | E39: 419.69 | F39: 180 | G39: 1131.43 | H39: 0.5 | I39: 0.1855 | J39: 34.98
A40: 2.24 | B40: Eletricista | C40: Talhadeira aço chato 10" | D40: SINAPI | E40: 24.9 | F40: 30 | G40: 188.57 | H40: 0.2 | I40: 0.0264 | J40: 4.98
A41: 2.25 | B41: Eletricista | C41: Lima quadrada 8" | D41: SINAPI | E41: 42.38 | F41: 180 | G41: 1131.43 | H41: 0.3 | I41: 0.0112 | J41: 2.11
A42: 3.1 | B42: Encanador | C42: Corta-tubos com capacidade de 6 - 42 mm | D42: SINAPI | E42: 46.9 | F42: 360 | G42: 2262.86 | H42: 0.3 | I42: 0.0062 | J42: 1.17
A43: 3.2 | B43: Encanador | C43: Arco de serra | D43: SINAPI | E43: 30.82 | F43: 90 | G43: 565.71 | H43: 0.3 | I43: 0.0163 | J43: 3.07
A44: 3.3 | B44: Encanador | C44: Chave de grifo de 24" | D44: SINAPI | E44: 95.42 | F44: 180 | G44: 1131.43 | H44: 0.3 | I44: 0.0253 | J44: 4.77
A45: 3.4 | B45: Encanador | C45: Chave fixa 19 X 22 | D45: SINAPI | E45: 20.9 | F45: 180 | G45: 1131.43 | H45: 0.2 | I45: 0.0037 | J45: 0.7
A46: 3.5 | B46: Encanador | C46: Chave inglesa 15" | D46: SINAPI | E46: 100.61 | F46: 180 | G46: 1131.43 | H46: 0.2 | I46: 0.0178 | J46: 3.36
A47: 3.6 | B47: Encanador | C47: Chave inglesa 10'' | D47: SINAPI | E47: 56.87 | F47: 180 | G47: 1131.43 | H47: 0.2 | I47: 0.0101 | J47: 1.9
A48: 3.7 | B48: Encanador | C48: Furadeira de impacto 1/2" - 600W | D48: SINAPI | E48: 398.99 | F48: 720 | G48: 4525.71 | H48: 0.2 | I48: 0.0176 | J48: 3.32
A49: 3.8 | B49: Encanador | C49: Maçarico de Solda | D49: SINAPI | E49: 135.86 | F49: 360 | G49: 2262.86 | H49: 0.2 | I49: 0.012 | J49: 2.26
A50: 3.9 | B50: Encanador | C50: Trena | D50: SINAPI | E50: 19.89 | F50: 360 | G50: 2262.86 | H50: 0.5 | I50: 0.0044 | J50: 0.83
A51: 3.10 | B51: Encanador | C51: Nível de bolha - alumínio - 35 cm | D51: SINAPI | E51: 39.9 | F51: 90 | G51: 565.71 | H51: 0.5 | I51: 0.0353 | J51: 6.66
A52: 3.11 | B52: Encanador | C52: Marreta 1/2 kg | D52: SINAPI | E52: 34.32 | F52: 90 | G52: 565.71 | H52: 0.2 | I52: 0.0121 | J52: 2.28
A53: 3.12 | B53: Encanador | C53: Lixadeira elétrica angular 7" - 2.200 W | D53: SINAPI | E53: 965.02 | F53: 720 | G53: 4525.71 | H53: 0.3 | I53: 0.064 | J53: 12.07
A54: 3.13 | B54: Encanador | C54: Linha de Pedreiro 100m | D54: SINAPI | E54: 12.35 | F54: 7 | G54: 51.33 | H54: 0.2 | I54: 0.0481 | J54: 9.07
A55: 3.14 | B55: Encanador | C55: Régua de Alumínio - 2m | D55: SINAPI | E55: 60.63 | F55: 360 | G55: 2262.86 | H55: 0.3 | I55: 0.008 | J55: 1.51
A56: 3.15 | B56: Encanador | C56: Talhadeira aço chato 10" | D56: SINAPI | E56: 24.9 | F56: 30 | G56: 188.57 | H56: 0.2 | I56: 0.0264 | J56: 4.98
A57: 3.16 | B57: Encanador | C57: Torno/morsa de bancada número 4 | D57: SINAPI | E57: 159 | F57: 720 | G57: 4525.71 | H57: 0.2 | I57: 0.007 | J57: 1.32
A58: 4.1 | B58: Engenheiro | C58: Trena | D58: SINAPI | E58: 19.89 | F58: 360 | G58: 2262.86 | H58: 0.5 | I58: 0.0044 | J58: 0.83
A59: 4.2 | B59: Engenheiro | C59: Esquadro 90° x 30 cm (12") | D59: SINAPI | E59: 35.83 | F59: 360 | G59: 2262.86 | H59: 0.2 | I59: 0.0032 | J59: 0.6
A60: 4.3 | B60: Engenheiro | C60: Prumo de Parede | D60: SINAPI | E60: 51.67 | F60: 360 | G60: 2262.86 | H60: 0.2 | I60: 0.0046 | J60: 0.87
A61: 4.4 | B61: Encarregado | C61: Trena | D61: SINAPI | E61: 19.89 | F61: 360 | G61: 2262.86 | H61: 0.8 | I61: 0.007 | J61: 1.32
A62: 4.5 | B62: Encarregado | C62: Martelo de borracha preto 450 g | D62: SINAPI | E62: 21.9 | F62: 180 | G62: 1131.43 | H62: 0.2 | I62: 0.0039 | J62: 0.74
A63: 4.6 | B63: Encarregado | C63: Nível de bolha - alumínio - 35 cm | D63: SINAPI | E63: 39.9 | F63: 90 | G63: 565.71 | H63: 0.2 | I63: =ROUND(E63/G63*H63,4) -> 0.0141 | J63: =ROUND(I63*30/7*44,2) -> 2.66
A64: 4.7 | B64: Encarregado | C64: Prumo de Parede | D64: SINAPI | E64: 51.67 | F64: 360 | G64: 2262.86 | H64: 0.3 | I64: 0.0069 | J64: 1.3
A65: 4.8 | B65: Encarregado | C65: Prumo de Centro | D65: SINAPI | E65: 45.32 | F65: 360 | G65: 2262.86 | H65: 0.3 | I65: 0.006 | J65: 1.13
A66: 4.9 | B66: Encarregado | C66: Esquadro 90° x 30 cm (12") | D66: SINAPI | E66: 35.83 | F66: 360 | G66: 2262.86 | H66: 0.2 | I66: 0.0032 | J66: 0.6
A67: 4.10 | B67: Encarregado | C67: Lápis de carpinteiro | D67: SINAPI | E67: 2.85 | F67: 2 | G67: 14.67 | H67: 0.3 | I67: 0.0583 | J67: 10.99
A68: 5.1 | B68: Pintor | C68: Escada de abrir, com 2 x 8 degraus (2,40m) | D68: SINAPI | E68: 419.69 | F68: 180 | G68: 1131.43 | H68: 0.3 | I68: 0.1113 | J68: 20.99
A69: 5.2 | B69: Pintor | C69: Escada de marinheiro em duralumínio, extensível | D69: SINAPI | E69: 1188.58 | F69: 360 | G69: 2262.86 | H69: 0.3 | I69: 0.1576 | J69: 29.72
A70: 5.3 | B70: Pintor | C70: Espátula de aço inox 10 cm cabo de madeira | D70: SINAPI | E70: 22.55 | F70: 30 | G70: 188.57 | H70: 0.4 | I70: 0.0478 | J70: 9.01
A71: 5.4 | B71: Pintor | C71: Espátula PVC lisa (tamanho médio) | D71: SINAPI | E71: 8.3 | F71: 30 | G71: 188.57 | H71: 0.2 | I71: 0.0088 | J71: 1.66
A72: 5.5 | B72: Pintor | C72: Desempenadeira Aço Dentada | D72: SINAPI | E72: 22.56 | F72: 30 | G72: 188.57 | H72: 0.2 | I72: 0.0239 | J72: 4.51
A73: 5.6 | B73: Pintor | C73: Desempenadeira Aço Lisa | D73: SINAPI | E73: 22.56 | F73: 30 | G73: 188.57 | H73: 0.4 | I73: 0.0479 | J73: 9.03
A74: 5.7 | B74: Pintor | C74: Desempenadeira para Lixa | D74: SINAPI | E74: 26.12 | F74: 30 | G74: 188.57 | H74: 0.3 | I74: 0.0416 | J74: 7.84
A75: 5.8 | B75: Pintor | C75: Desempenadeira PVC (tamanho médio) | D75: SINAPI | E75: 21.34 | F75: 30 | G75: 188.57 | H75: 0.2 | I75: 0.0226 | J75: 4.26
A76: 5.9 | B76: Pintor | C76: Furadeira de impacto 1/2" - 600W | D76: SINAPI | E76: 398.99 | F76: 360 | G76: 2262.86 | H76: 0.2 | I76: 0.0353 | J76: 6.66
A77: 5.10 | B77: Pintor | C77: Lixadeira elétrica angular 7" - 2.200 W - 5.000 RPM - 220 V | D77: SINAPI | E77: 965.02 | F77: 360 | G77: 2262.86 | H77: 0.3 | I77: 0.1279 | J77: 24.12
A78: 5.11 | B78: Pintor | C78: Escova de aço, com cabo, 4x15 fileiras de cerdas | D78: SINAPI | E78: 12.56 | F78: 60 | G78: 377.14 | H78: 0.2 | I78: 0.0067 | J78: 1.26
A79: 5.12 | B79: Pintor | C79: Fita adesiva (crepe) 25 mm x 50 m Ref. 3M ou similar | D79: SINAPI | E79: 9.47 | F79: 3 | G79: 22 | H79: 0.2 | I79: 0.0861 | J79: 16.24
A80: 5.13 | B80: Pintor | C80: Estilete 18 mm | D80: SINAPI | E80: 21.51 | F80: 30 | G80: 188.57 | H80: 0.2 | I80: 0.0228 | J80: 4.3
A81: 5.14 | B81: Pintor | C81: Lona plástica preta - 4 x 100 m - 12 kg | D81: SINAPI | E81: 1.6 | F81: 240 | G81: 1508.57 | H81: 0.5 | I81: 0.0005 | J81: 0.09
A82: 5.15 | B82: Pintor | C82: Estopa | D82: SINAPI | E82: 19.34 | F82: 30 | G82: 188.57 | H82: 0.5 | I82: 0.0513 | J82: 9.67
A83: 5.16 | B83: Pintor | C83: Balde 10 L | D83: SINAPI | E83: 12.84 | F83: 30 | G83: 188.57 | H83: 1 | I83: 0.0681 | J83: 12.84
A84: 5.17 | B84: Pintor | C84: Bandeja de pintura | D84: SINAPI | E84: 10.54 | F84: 30 | G84: 188.57 | H84: 0.35 | I84: 0.0196 | J84: 3.7
A85: 5.18 | B85: Pintor | C85: Misturador de tinta 100 mm x 60 cm | D85: SINAPI | E85: 50.62 | F85: 60 | G85: 377.14 | H85: 0.35 | I85: 0.047 | J85: 8.86
A86: 5.19 | B86: Pintor | C86: Pincel chato 1" cerdas sintéticas pretas | D86: SINAPI | E86: 4.39 | F86: 6 | G86: 44 | H86: 0.35 | I86: 0.0349 | J86: 6.58
A87: 5.20 | B87: Pintor | C87: Trincha 2" cerdas sintéticas pretas | D87: SINAPI | E87: 7.87 | F87: 6 | G87: 44 | H87: 0.35 | I87: 0.0626 | J87: 11.8
A88: 5.21 | B88: Pintor | C88: Rolo de lã de carneiro 23 cm c/ cabo | D88: SINAPI | E88: 37.22 | F88: 6 | G88: 44 | H88: 0.2 | I88: 0.1692 | J88: 31.91
A89: 5.22 | B89: Pintor | C89: Rolo de espuma poliéster 15 cm c/ cabo | D89: SINAPI | E89: 16.78 | F89: 6 | G89: 44 | H89: 0.2 | I89: 0.0763 | J89: 14.39
A90: 5.23 | B90: Pintor | C90: Rolo de espuma poliéster 9 cm c/ cabo | D90: SINAPI | E90: 5.9 | F90: 6 | G90: 44 | H90: 0.2 | I90: 0.0268 | J90: 5.05
A91: 5.24 | B91: Pintor | C91: Extensor de cabo de rolo 2 m | D91: SINAPI | E91: 52.55 | F91: 30 | G91: 188.57 | H91: 0.2 | I91: 0.0557 | J91: 10.5
A92: 5.25 | B92: Pintor | C92: Compressor de ar profissional 10 pés - 110 L | D92: SINAPI | E92: 2899 | F92: 720 | G92: 4525.71 | H92: 0.1 | I92: 0.0641 | J92: 12.09
A93: 5.26 | B93: Pintor | C93: Kit para compressor de ar com 5 peças | D93: SINAPI | E93: 163.75 | F93: 180 | G93: 1131.43 | H93: 0.1 | I93: 0.0145 | J93: 2.73
A94: 6.1 | B94: Servente | C94: Ponteiro aço liso 3/4" x 10" | D94: SINAPI | E94: 23.9 | F94: 30 | G94: 188.57 | H94: 0.3 | I94: 0.038 | J94: 7.17
A95: 6.2 | B95: Servente | C95: Talhadeira aço chato 10" | D95: SINAPI | E95: 24.9 | F95: 30 | G95: 188.57 | H95: 0.3 | I95: 0.0396 | J95: 7.47
A96: 6.3 | B96: Servente | C96: Marreta 1/2 kg - cabo de madeira | D96: SINAPI | E96: 34.32 | F96: 90 | G96: 565.71 | H96: 0.3 | I96: 0.0182 | J96: 3.43
A97: 6.4 | B97: Servente | C97: Pá quadrada com cabo de madeira em Y - 71 cm | D97: SINAPI | E97: 39.9 | F97: 120 | G97: 754.29 | H97: 0.8 | I97: 0.0423 | J97: 7.98
A98: 6.5 | B98: Servente | C98: Carrinho de Mão | D98: SINAPI | E98: 225.42 | F98: 180 | G98: 1131.43 | H98: 0.4 | I98: 0.0797 | J98: 15.03
A99: 6.6 | B99: Servente | C99: Carrinho Plataforma em madeira 1500 x 800 mm Cap: 600kg | D99: SINAPI | E99: 1448.99 | F99: 360 | G99: 2262.86 | H99: 0.4 | I99: 0.2561 | J99: 48.29
A100: 6.7 | B100: Servente | C100: Balde 10 L | D100: SINAPI | E100: 12.84 | F100: 30 | G100: 188.57 | H100: 1 | I100: 0.0681 | J100: 12.84
A101: 6.8 | B101: Servente | C101: Alicate Profissional 8'' | D101: SINAPI | E101: 38.16 | F101: 180 | G101: 1131.43 | H101: 0.2 | I101: 0.0067 | J101: 1.26
A102: 6.9 | B102: Servente | C102: Serrote 20 | D102: SINAPI | E102: 59.9 | F102: 90 | G102: 565.71 | H102: 0.2 | I102: 0.0212 | J102: 4
A103: 6.10 | B103: Servente | C103: Arco de serra | D103: SINAPI | E103: 30.82 | F103: 90 | G103: 565.71 | H103: 0.2 | I103: 0.0109 | J103: 2.06
A104: 6.11 | B104: Servente | C104: Martelo de borracha preto 450 g | D104: SINAPI | E104: 21.9 | F104: 180 | G104: 1131.43 | H104: 0.4 | I104: 0.0077 | J104: 1.45
A105: 6.12 | B105: Servente | C105: Enxada Estreita | D105: SINAPI | E105: 55.84 | F105: 180 | G105: 1131.43 | H105: 0.4 | I105: 0.0197 | J105: 3.71

Sheet PMO
A1: PLANO DE MANUTENÇÃO OPERAÇÃO E CONTROLE – FREQUENCIA DAS ATIVIDADES
A2: Item | B2: Descrição do item | C2: Diário | D2: Semanal | E2: Quinzenal | F2: Mensal | G2: Semestral | H2: Anual
A3: 1 | B3: HIDROSSANITÁRIOS
A4: 1.1 | B4: controlar a pressão e vazão de água nas torneira e louças, e verificação com ajustes dos funcionamentos das torneiras | C4: x
A5: 1.2 | B5: inspeção (e desobstrução quando necessário) as redes (tubulação, válvulas, registros e todas as conexões) hidráulica/esgoto/águas pluviais | C5: x
A6: 1.3 | B6: inspeção do estado de conservação dos assentos sanitários | C6: x
A7: 1.4 | B7: inspeção (e desobstrução quando necessário) das condições dos ralos de escoamento | C7: x
A8: 1.5 | B8: inspeção do funcionamento das válvulas de descarga | C8: x
A9: 1.6 | B9: inspeção (e desobstrução quando necessário) para verificar obstrução e vazamentos nas pias, vasos, drenos, torneiras, duchas higiênicas | C9: x
A10: 1.7 | B10: controle do gotejamento de água pelas gaxetas | D10: x
A11: 1.8 | B11: limpeza das caixas de gordura e proceder à remoção do material ali existente (proceder ao recolhimento de pó de café nas caixas de decantação) | D11: x
A12: 1.9 | B12: verificar e sanar possíveis vazamentos nas caixas de incêndio | D12: x
A13: 1.10 | B13: inspeção do funcionamento das chaves bóias de regulagem de água superiores e inferiores | D13: x
A14: 1.11 | B14: verificar e corrigir o nível de água da reserva técnica de emergência no reservatório de água | E14: x
A15: 1.12 | B15: verificação do estado geral e vazamentos nos hidrômetros | D15: x
A16: 1.13 | B16: inspeção dos filtros de água para possíveis vazamentos | D16: x
A17: 1.14 | B17: verificar o estado de conservação dos hidrantes de passeio quanto ao acesso: abertura da tampa, ferrugem, funcionamento do registro etc | E17: x
A18: 1.15 | B18: inspecionar e ajustar os registros de controle dos sprinklers | E18: x
A19: 1.16 | B19: executar remoção e desvio de tubulações de água, esgoto ou incêndio | F19: x
A20: 1.17 | B20: verificar o sistema de escoamento das coberturas e telhados, com revisão e limpeza dos telhados, dos sistemas de escoamento, das lajes e calhas | F20: x
A21: 1.18 | B21: limpeza das caixas de passagem, de areia e drenos de águas pluviais | F21: x
A22: 1.19 | B22: realizar limpeza geral e desinfecção dos reservatórios de água | G22: x
A23: 2 | B23: MEDIDAS PREVENTIVAS (comunicar quando houver a necessiadade de reparo, substiuição ou conserto de forma imediata)
A24: 2.1 | B24: inspecionar os vidros e espelhos trincados e/ou quebrados existentes nos banheiros que possam causar acidentes | C24: x
A25: 2.2 | B25: verificar a abertura e fechamento das caixas de incêndio | D25: x
A26: 2.3 | B26: inspecionar os puxadores, parafusos, trancas, trincos e dobradiças de portas e janelas (incluindo toda sua estrutura) com esquadrias/estrutura de ferro ou material similar | D26: x
A27: 2.4 | B27: verificar a situação de calçadas, rampas, escadas e demais elementos de acesso | F27: x
A28: 2.5 | B28: verificar os elementos táteis e fitas antiderrapantes | E28: x
A29: 2.6 | B29: verificar as placas de sinalização verticais e horizontais | E29: x
A30: 2.7 | B30: verificar o estado e funcionamento das portas de acesso aos edifícios e de áreas comuns internas (hall de elevadores, entrada de gabinetes e corredores) (principalmente porta corta-fogo) | E30: x
A31: 2.8 | B31: verificar o estado e funcionamento das cancelas de acesso à garagem e o estado das pinturas (piso, placas e paredes) | E31: x
A32: 2.9 | B32: verificar o estado das impermeabilizações e proteção mecânica das coberturas e estacionamentos | F32: x
A33: 2.10 | B33: inspecionar as tampas dos reservatórios (estado e vedação) | F33: x
A34: 2.11 | B34: inspeção portões, alambrados, grades, suportes de condensadoras, e demais elementos metálicos | F34: x
A35: 2.12 | B35: realizar testes nas áreas impermeabilizadas | G35: x
A36: 3 | B36: ELEMENTOS DE MADEIRA E SIMILARES
A37: 3.1 | B37: verificar e realizar ajustes em molas aéreas de portas de madeira | C37: x
A38: 3.2 | B38: verificar e ajustar as portas e esquadrias de madeira das edificações, inclusos seus batentes, alavancas de fechamento, guarnições de borracha e baguetes | C38: x
A39: 3.3 | B39: verificar e fixar os rodapés soltos | C39: x
A40: 3.4 | B40: inspeção e reapertos de acessórios, fechos, trincos, fechaduras e lubrificações em móveis | C40: x
A41: 3.5 | B41: verificar e ajustar todo o sistema de divisórias quanto aos fechamentos e alinhamento, inclusos portas, incluindo os clipes de fixação e proceder os ajustes necessários | D41: x
A42: 4 | B42: QUADROS DE DISTRIBUIÇÃO
A43: 4.1 | B43: Inspecionar Funcionamento dos disjuntores | F43: x
A44: 4.2 | B44: Verificar ocorrências de sobreaquecimento | F44: x
A45: 4.3 | B45: Checar lâmpadas de sinalização | D45: x
A46: 4.4 | B46: Verificar ajuste zero dos medidores | F46: x
A47: 4.5 | B47: Buscar ruídos e vibrações anormais | D47: x
A48: 4.6 | B48: Checar transformadores de medição de painel | F48: x
A49: 4.7 | B49: Inspecionar conexões dos cabos | D49: x
A50: 4.8 | B50: Verificar aberturas e fechamentos dos armários | F50: x
A51: 4.9 | B51: Medir e registrar correntes de fase do alimentador geral e circuitos derivados | D51: x
A52: 4.10 | B52: Controlar os desbalanceamentos de correntes entre fases | E52: x
A53: 4.11 | B53: Medir e registrar voltagens de linha e do neutro dos circuitos principais e derivados | D53: x
A54: 4.12 | B54: Ajustar dispositivos de comando dos disjuntores | G54: x
A55: 4.13 | B55: Lubrificar articulações dos disjuntores | G55: x
A56: 4.14 | B56: Lubrificar dobradiças das portas | E56: x
A57: 4.15 | B57: Efetuar limpeza do quadro com estopa embebida em solvente orgânico. | E57: x
A58: 4.16 | B58: Inspecionar câmaras de extinção dos disjuntores | H58: x
A59: 4.17 | B59: Polir contatos dos terminais | H59: x
A60: 4.18 | B60: Reapertar terminais de ligação | G60: x
A61: 4.19 | B61: Analisar calibração dos relês de proteção | H61: x
A62: 4.20 | B62: Medir e registrar resistência de aterramento | G62: x
A63: 4.21 | B63: Aferir instrumentos de medição de painel | H63: x
A64: 4.22 | B64: Desfazer todas as conexões, poli-las e reconectá-las | H64: x
A65: 4.23 | B65: Efetuar reaperto geral | H65: x
A66: 4.24 | B66: Medir e registrar resistência de isolamento dos cabos | H66: x
A67: 4.25 | B67: Limpar barramentos | G67: x
A68: 4.26 | B68: Efetuar limpeza geral com jato de ar comprimido | H68: x
A69: 4.27 | B69: Combater corrosão e retocar pintura do gabinete | H69: x
A70: 5 | B70: QUADROS DE TRANSFERÊNCIA AUTOMÁTICA
A71: 5.1 | B71: Inspecionar funcionamento de disjuntores, chaves, relês, etc. | D71: x
A72: 5.2 | B72: Verificar ocorrência de sobreaquecimento | F72: x
A73: 5.3 | B73: Buscar lâmpadas sinalizadoras com defeito | D73: x
A74: 5.4 | B74: Verificar ajuste zero de medidores | F74: x
A75: 5.5 | B75: Checar funcionamento de sistema de alarmes | D75: x
A76: 5.6 | B76: Buscar ruídos e vibrações anormais | F76: x
A77: 5.7 | B77: Inspecionar transformadores de medição | F77: x
A78: 5.8 | B78: Verificar conexão de cabos e fios | D78: x
A79: 5.9 | B79: Checar pressões nos contatos dos disjuntores e chaves | F79: x
A80: 5.10 | B80: Checar potenciômetros de ajuste de tensão | F80: x
A81: 5.11 | B81: Inspecionar regulador automático de tensão | F81: x
A82: 5.12 | B82: Verificar leituras do Amperímetro, voltímetro, frequencímetro, homerímetros, etc. | C82: x
A83: 5.13 | B83: Testar chaves reversora, de partida, comutadora etc. | F83: x
A84: 5.14 | B84: Lubrificar articulações de disjuntores e chaves | G84: x
A85: 5.15 | B85: Lubrificar dobradiças dos armários | G85: x
A86: 5.16 | B86: Efetuar limpeza do quadro com estopa embebida em solvente orgânico | G86: x
A87: 5.17 | B87: Inspecionar câmaras de extinção de disjuntores e chaves | G87: x
A88: 5.18 | B88: Polir contato dos disjuntores e chaves | G88: x
A89: 5.19 | B89: Reapertar terminais de ligação dos disjuntores, chaves e demais componentes | G89: x
A90: 5.20 | B90: Verificar excesso de arco por ocasião de manobras | G90: x
A91: 5.21 | B91: Checar operações dos relês de tempo, sobrecarga, falta de fase, e sensor de tensão | G91: x
A92: 5.22 | B92: Medir e registrar aterramento do painel e grupo, testando continuidade | F92: x
A93: 5.23 | B93: Aferir instrumentos de painel | G93: x
A94: 5.24 | B94: Desfazer todas as conexões, poli-las e reconectá-las | G94: x
A95: 5.25 | B95: Efetuar reaperto geral | F95: x
A96: 5.26 | B96: Medir e registrar resistência de isolamento dos cabos e disjuntores | F96: x
A97: 5.27 | B97: Limpar barramentos | G97: x
A98: 5.28 | B98: Efetuar limpeza geral com sopro de ar comprimido | G98: x
A99: 5.29 | B99: Fazer aplicações de produto químico. | G99: x
A100: 5.30 | B100: Combater corrosão e retocar pintura do quadro | G100: x
A101: 6 | B101: ILUMINAÇÃO E TOMADAS
A102: 6.1 | B102: Vistoriar todas as dependências para constatar se há lâmpadas apagadas, brilho arroxeado ou extremidade enegrecida, necessitando de substituição | C102: x
A103: 6.2 | B103: Antes de substituir qualquer lâmpada, inspecionar: contatos internos, fixação, soquetes, reator etc | C103: x
A104: 6.3 | B104: Inspecionar lâmpadas, refletores, luz de emergência etc., bem como interruptores, substituído as queimadas | C104: x
A105: 6.4 | B105: Corrigir fixação das tampas de caixas de passagem, tomadas e interruptores | D105: x
A106: 6.5 | B106: Medir e registrar nível de iluminação nos pavimentos | E106: x
A107: 6.6 | B107: Efetuar inspeção na rede de tomadas de piso | F107: x
A108: 6.7 | B108: Reapertar carcaças das tomadas | F108: x
A109: 6.8 | B109: Efetuar limpeza geral das lâmpadas e luminárias | G109: x
A110: 6.9 | B110: Reapertar parafusos de sustentação | F110: x
A111: 6.10 | B111: Inspecionar reatores e reapertá-los | D111: x
A112: 6.11 | B112: Inspecionar reatores bases e soquetes | D112: x
A113: 6.12 | B113: Verificar aterramento das calhas | F113: x
A114: 6.13 | B114: Vistoriar estado geral da fiação quanto ao aquecimento, isolamento, etc | F114: x
A115: 6.14 | B115: Inspecionar caixas de interruptores das lâmpadas | C115: x
A116: 6.15 | B116: Inspecionar rede de tomadas verificando base e soquetes, fiação, sobre aquecimento e curtos circuitos | C116: x
A117: 7 | B117: QUADROS GERAIS DE DISTRIBUIÇÃO
A118: 7.1 | B118: Verificar Funcionamento dos disjuntores | F118: x
A119: 7.2 | B119: Buscar ocorrências de sobreaquecimento | F119: x
A120: 7.3 | B120: Inspecionar lâmpadas de sinalização | E120: x
A121: 7.4 | B121: Buscar ruídos e vibrações anormais | E121: x
A122: 7.5 | B122: Checar transformadores de medição de painel | F122: x
A123: 7.6 | B123: Verificar conexões dos cabos | F123: x
A124: 7.7 | B124: Checar aberturas e fechamentos dos armários | F124: x
A125: 7.8 | B125: Medir e registrar correntes de fase do alimentador geral e circuitos derivados | F125: x
A126: 7.9 | B126: Controlar os desbalanços de correntes entre fases | F126: x
A127: 7.10 | B127: Medir e registrar voltagens de linha e do neutro dos circuitos principais e derivados | F127: x
A128: 7.11 | B128: Ajustar dispositivos de comando dos disjuntores | G128: x
A129: 7.12 | B129: Lubrificar articulações dos disjuntores | G129: x
A130: 7.13 | B130: Lubrificar dobradiças das portas | G130: x
A131: 7.14 | B131: Efetuar limpeza do quadro com estopa embebida em solvente orgânico. | G131: x
A132: 7.15 | B132: Inspecionar câmaras de extinção dos disjuntores | F132: x
A133: 8 | B133: PORTÕES
A134: 8.1 | B134: Verificar o funcionamento dos controles sem fio atentando para o funcionamento dos botões | F134: x
A135: 8.2 | B135: Verificar o funcionamento da central do comando dos equipamentos | F135: x
A136: 8.3 | B136: Verificar o funcionamento e a integridade dos imãs de curso de portões | F136: x
A137: 8.4 | B137: Verificar o estado dos trilhos e engrenagens atentando-se para ruídos anormais | F137: x
A138: 8.5 | B138: Verificar limpeza dos componentes eletrônicos com jatos de ar comprimido | F138: x
A139: 8.6 | B139: Conferir tempo de curso dos portões | F139: x
A140: 8.7 | B140: Verificar a corrente consumida pelo motor em funcionamento, registrar e analisar. | F140: x
A141: 8.8 | B141: Verificar o estado de conservação dos condutores elétricos de alimentação do motor | F141: x
A142: 8.9 | B142: Realizar reapertos nas interligações dos condutores elétricos de alimentação dos motores | F142: x
A143: 8.10 | B143: Verificar curso do portão em busca de movimentos anormais | F143: x
A144: 8.11 | B144: Realizar limpeza geral dos componentes internos e externos | G144: x
A145: 8.12 | B145: Remover lubrificantes antigos e aplicar nova lubrificação às engrenagens | G145: x
A146: 8.13 | B146: Verificar integridade da mola buscando por pontos de corrosão e outros danos superficiais | G146: x
A147: 8.14 | B147: Revisar o equipamento promovendo desmontagem e inspeção de todos os componentes | G147: x
A148: 9 | B148: EQUIPAMENTO UPS/NOBREAKS
A149: 9.1 | B149: Limpeza geral interna e externa | G149: x
A150: 9.2 | B150: Verificação de danos físicos (estrutura e pintura) | D150: x
A151: 9.3 | B151: Reaperto de parafusos, bornes de fixação e conexões elétricas | F151: x
A152: 9.4 | B152: Verificação geral, verificação do painel, versão de firmware, controle e display | D152: x
A153: 9.5 | B153: Ajuste de tensão, potência e frequência | G153: x
A154: 9.6 | B154: Verificação e aferição dos dados medidos com os informados pelo sistema de monitoramento dos equipamentos e display | G154: x
A155: 9.7 | B155: Verificação dos parâmetros essenciais, Inversor, placas em geral, placa controle, placa do carregador | D155: x
A156: 9.8 | B156: Testes funcionais e simulações de falta de energia | G156: x
A157: 9.9 | B157: Medições de tensão, resistência interna, flutuação, recarga e teste de descarga do bancos das baterias, reaperto das conexões, medição por elemento, limpeza e testes em geral | G157: x
A158: 9.10 | B158: Checagem das tensões e correntes de entrada e saída | G158: x
A159: 9.11 | B159: Testes de falta de rede, transferência manual / automática de carga do inversor para rede e vice-versa | G159: x
A160: 9.12 | B160: Anotação das tensões dos elementos em uma tabela de histórico das baterias | G160: x
A161: 9.13 | B161: Verificação da temperatura dos elementos | D161: x
A162: 9.14 | B162: Verificação da oxidação dos polos das conexões | D162: x
A163: 9.15 | B163: Teste de alarmes sonoros e display digital | D163: x
A164: 9.16 | B164: Verificação geral do painel dos Nobreaks | D164: x
A165: 9.17 | B165: Verificação geral da corrente do filtro do inversor | F165: x
A166: 9.18 | B166: Verificação do Hardware | D166: x
A167: 9.19 | B167: Teste de chave estática | G167: x
A168: 9.20 | B168: Teste de sincronismo | G168: x
A169: 9.21 | B169: Observação da forma de onda de saída | G169: x
A170: 9.22 | B170: Observação de funcionamento dos ventiladores | D170: x
A171: 9.23 | B171: Verificação das condições de aterramento e equipotencialização dos equipamentos | F171: x
A172: 9.24 | B172: Extração do Log de eventos para registro histórico e análise; | F172: x
A173: 9.25 | B173: Verificar funcionamento das portas comunicação e monitoramento; | F173: x
A174: 9.26 | B174: Elaborar e emitir relatório contendo os resultados de verificações e testes realizados na manutenção preventiva; | F174: x
A175: 9.27 | B175: Elaborar e emitir relatório de problemas encontrados e medidas necessárias para adequação. | F175: x
A176: 9.28 | B176: Realizar substituição de bateria (caso tenha mais de três anos) | G176: x
A177: 9.29 | B177: Realizar a substituição de ventiladores (conforme instrução do fabricante) | G177: x
A178: 9.30 | B178: Realizar a substituição de capacitores CC e CA (conforme instrução do fabricante) | G178: x
A179: 10 | B179: GRUPO MOTOR-GERADOR
A180: SISTEMA DE ARREFECIMENTO
A181: 10.1 | B181: Verificar e corrigir o nível do líquido de arrefecimento | C181: x
A182: 10.2 | B182: Verificar vestígios de vazamentos | E182: x
A183: 10.3 | B183: Verificar a colmeia do radiador (obstrução e vazamentos) | E183: x
A184: 10.4 | B184: Verificar o ventilador (trincas, rebites, cubo, pás soltas) | E184: x
A185: 10.5 | B185: Verificar estado e tensão das correias | E185: x
A186: 10.6 | B186: Verificar mangueiras e abraçadeiras do sistema | E186: x
A187: 10.7 | B187: Registrar a temperatura do líquido de arrefecimento | D187: x
A188: 10.8 | B188: Verificar vazamentos na bomba d´água | E188: x
A189: 10.9 | B189: Controlar e regular a necessidade da troca d´água e anticorrosivo | F189: x
A190: 10.10 | B190: Verificar integridade da ventoinha do radiador | F190: x
A191: 10.11 | B191: Verificar/limpar filtro de ar | F191: x
A192: 10.12 | B192: Verificar/limpar pré-filtro de ar | F192: x
A193: 10.13 | B193: Verificar/limpar gamela de retenção de pó | F193: x
A194: 10.14 | B194: Verificar no filtro de ar: tubos, mangueiras, abraçadeiras e limpar elemento do filtro | F194: x
A195: 10.15 | B195: Troca do filtro de ar (primário e secundário) | G195: x
A196: 10.16 | B196: Substituir o líquido de arrefecimento e aditivo. Caso seja utilizado só água, a substituição deverá ser feita a cada três meses | G196: x
A197: 10.17 | B197: Substituir mangueiras | H197: x
A198: 10.18 | B198: Inspecionar cubo do ventilador | H198: x
A199: SISTEMA DE LUBRIFICAÇÃO
A200: 10.19 | B200: Verificar e corrigir o nível do óleo lubrificante | F200: x
... 153 more rows

Sheet IMR
A1: Instrumento de Medição de Resultados - IMR
A2: Número do Contrato:
A3: Contratada:
A4: CNPJ:
A5: Mês/ano de Referência:
A6: Ocorrências 1 - Mão-de-Obra | B6: (pts):
A7: Ocorrências 2 - Materiais | B7: (pts):
A8: Desconto 1 - Mão de Obra | B8: (%):
A9: Desconto 2 - Materiais | B9: (%):
A10: Valor da medição | B10: (R$):
A11: Valor do desconto | B11: (R$):
A12: Valor da medição descontado | B12: (R$):
A14: INDICADOR 1: MÃO DE OBRA RESIDENTE
A15: Item | B15: Descrição do Item
A16: Finalidade | B16: Fornecer postos necessários à execução dos serviços essenciais ao funcionamento do edifício
A17: Meta a cumprir | B17: Disponibilizar postos de trabalho qualificados, responsáveis pela execução das rotinas apresentadas no PMO
A18: Instrumento de Medição | B18: Posto de trabalho
A19: Forma de acompanhamento | B19: Conferência das folhas de ponto e fiscalização técnica periodica
A20: Periodicidade | B20: Diária
A21: Mecanismo de Cálculo | B21: Todas as ocorrências serão registradas pelo fiscal do contrato, que notificará a Contratada, atribuindo pontos que serão acumulados
A22: Início da vigência | B22: Inicio do contrato
A23: Faixas de ajuste no pagamento | B23: Porcentagem de glosa por pontuação acumulada conforme somatória dos pontos do indicador
A24: Sanções | B24: Advertência e/ou glosa da fatura mensal.
A25: Observações | B25: Caso da Contratada somar 35 (trinta e cinco) pontos ficará facultada à Contratante a rescisão unilateral sem ônus financeiro do contrato
A27: Indicador 1 - Pontuação por Ocorrência
A28: Ocorrência | B28: Aferição | C28: Pontuação
A29: Deixar de fornecer cobertura para posto de trabalho (gloza na fatura correspondente) | B29: O fiscal formalizará o chamado através de correspondência eletrônica ao endereço fornecido pela empresa. | C29: 5/dia /profissional
A30: Deixar de efetuar o fornecimento de uniformes ou ferramentas | B30: O fiscal formalizará o chamado através de correspondência eletrônica ao endereço fornecido pela empresa. | C30: 1/dia /profissional
A31: Deixar de fornecer EPI | B31: O fiscal formalizará o chamado através de correspondência eletrônica ao endereço fornecido pela empresa. | C31: 3/dia /profissional
A32: Deixar de fornecer ferramentas e equipamentos | B32: O fiscal formalizará o chamado através de correspondência eletrônica ao endereço fornecido pela empresa. | C32: 2/dia /profissional
A33: Deixar de executar a demanda encaminhada através da Ordem de Serviços | B33: O fiscal formalizará o chamado através de correspondência eletrônica ao endereço fornecido pela empresa. | C33: 3/dia
A34: Atraso acima de 3 dias na execução da OS, sem justificativa formal apresentada | B34: O fiscal formalizará o chamado através de correspondência eletrônica ao endereço fornecido pela empresa. | C34: 7/dia
A35: Atraso acima de 3 dias na execução da OS, com justificativa formal apresentada | B35: O fiscal formalizará o chamado através de correspondência eletrônica ao endereço fornecido pela empresa. | C35: 1/dia
A36: Executar os serviços com materiais que não estejam em conformidade com o solicitado | B36: O fiscal formalizará o chamado através de correspondência eletrônica ao endereço fornecido pela empresa. | C36: 1
A37: Deixar de prestar esclarecimentos solicitados pela Contratante no prazo de 2 horas referente aos engenheiros e encarregados | B37: Os registros das solicitações de esclarecimentos serão individuais, formalizados através de correspondência eletrônica pelo fiscal ao endereço fornecido pela empresa. Cada fato ocorrido corresponderá uma ocorrência, podendo ocorrer o registro de várias ocorrências na mesma data. | C37: 5/hora (após o atraso)
A38: Deixar de responder ao fiscal dentro do prazo máximo de 15 minutos, por qualquer meio (referente aos engenheiros e encarregados) | B38: O fiscal registrará a ocorrência acompanhada de informações sobre o fato ocorrido e poderá requerer a substituição do empregado. | C38: 2/15min (após o atraso)
A39: Não atendimento à solicitação de susbtituição dos empregados alocados. | B39: Os registros das ocorrências serão individuais, ou seja, a cada fato ocorrido corresponderá uma ocorrência, podendo ocorrer o registro de várias ocorrências na mesma data. | C39: 1/dia /profissional
A40: Falta de cordialidade no trato com os servidores, colaboradores e contribuintes. | B40: O fiscal registrará a ocorrência acompanhada de informações sobre o fato ocorrido e poderá requerer a substituição do empregado. | C40: 0,5/dia /posto
A41: Não atendimento a qualquer outra obrigação prevista no edital e seus anexos não especificada nesta tabela. | B41: Os registros das ocorrências serão individuais, ou seja, a cada fato ocorrido corresponderá uma ocorrência, podendo ocorrer o registro de várias ocorrências na mesma data. | C41: 1.5
A42: Pontuação Total Registrada
A44: Indicador 1 - Porcentagem de Glosa por Pontuação Acumulada
A45: Pontuação Acumulada | B45: Glosa (%) | C45: Valor da glosa (%)
A46: 5 | B46: Não há glosa, apenas advertência
A47: 10 | B47: Glosa correspondente a 1% do valor faturado do mês de apuração da pontuação
A48: 15 | B48: Glosa correspondente a 2% do valor faturado do mês de apuração da pontuação
A49: 20 | B49: Glosa correspondente a 3% do valor faturado do mês de apuração da pontuação
A50: 25 | B50: Glosa correspondente a 4% do valor faturado do mês de apuração da pontuação.
A51: 30 | B51: Glosa correspondente a 7% do valor faturado do mês de apuração da pontuação
A52: 35 | B52: Glosa correspondente a 10% do valor faturado do mês de apuração da pontuação, acrescido de 1% para cada ponto extra
A53: Total Registrado
A55: INDICADOR 2: MATERIAIS E SERVIÇOS SUBCONTRATADOS
A56: Item | B56: Descrição do Item
A57: Finalidade | B57: Ações técnicas consideradas essenciais para a conservação e funcionamento do edifício.
A58: Meta a cumprir | B58: São materiais utilizados em serviços que englobam manutenção preventiva, corretiva e preditiva verificada vistorias diárias, semanais, quinzenais, mensais, semestrais e anuais nos prédios.
A59: Instrumento de Medição | B59: Verificação in loco do fiscal do contrato e relatos escritos de usuários, via correio eletrônico
A60: Forma de acompanhamento | B60: Vistoria, relatórios e reuniões com o fiscal de contrato
A61: Periodicidade | B61: Diária, semanal, quinzenal, mensal, semestral e anual, conform PMOC
A62: Mecanismo de Cálculo | B62: Todas as ocorrências serão registradas pelo fiscal do contrato, que notificará a Contratada, atribuindo pontos que serão acumulados
A63: Início da vigência | B63: Inicio do contrato
A64: Faixas de ajuste no pagamento | B64: Porcentagem de glosa por pontuação acumulada conforme somatória dos pontos do indicador
A65: Sanções | B65: Advertência e/ou glosa da fatura mensal.
A66: Observações | B66: Caso da Contratada somar 35 (trinta e cinco) pontos ficará facultada à Contratante a rescisão unilateral sem ônus financeiro do contrato
A68: Indicador 2 - Pontuação por Ocorrência
A69: Ocorrência | B69: Aferição | C69: Pontuação
A70: Não fornecer o material dentro do prazo especificado em ordem de serviço. | B70: Os registros das ocorrências pelo fiscal serão individuais, ou seja, a cada fato ocorrido corresponderá uma ocorrência, podendo ocorrer o registro de várias ocorrências na mesma data | C70: 4 para cada dia de atraso
A71: Entregar material fora das especificações apresentadas na assinatura do contrato | B71: Os registros das ocorrências pelo fiscal serão individuais, ou seja, a cada fato ocorrido corresponderá uma ocorrência, podendo ocorrer o registro de várias ocorrências na mesma data | C71: 3 para cada tipo de material
A72: Não atender ao fiscal quanto à solicitação de remoção de material estocado dentro do prédio | B72: Os registros das ocorrências pelo fiscal serão individuais, ou seja, a cada fato ocorrido corresponderá uma ocorrência, podendo ocorrer o registro de várias ocorrências na mesma data | C72: 4 para cada tipo de material
A73: Estocar material em área do edifício que não seja a autorizada pelo fiscal | B73: Os registros das ocorrências pelo fiscal serão individuais, ou seja, a cada fato ocorrido corresponderá uma ocorrência, podendo ocorrer o registro de várias ocorrências na mesma data | C73: 1 para cada hora
A74: Deixar de apresentar os relatórios comprovando a utilização do material | B74: Os registros das ocorrências pelo fiscal serão individuais, ou seja, a cada fato ocorrido corresponderá uma ocorrência, podendo ocorrer o registro de várias ocorrências na mesma data | C74: 2 para cada item não comprovado
A75: Deixar de de prestar esclarecimentos solicitados comprovando o descarte correto de entulho | B75: Os registros das ocorrências pelo fiscal serão individuais, ou seja, a cada fato ocorrido corresponderá uma ocorrência, podendo ocorrer o registro de várias ocorrências na mesma data | C75: 5 para cada dia não respondido
A76: Deixar de prestar esclarecimentos solicitados no prazo de 2 horas | B76: Os registros das ocorrências pelo fiscal serão individuais, ou seja, a cada fato ocorrido corresponderá uma ocorrência, podendo ocorrer o registro de várias ocorrências na mesma data | C76: 1
A77: Não atender às Normas de Sustentabilidade quanto ao descarte de material | B77: Os registros das ocorrências pelo fiscal serão individuais, ou seja, a cada fato ocorrido corresponderá uma ocorrência, podendo ocorrer o registro de várias ocorrências na mesma data | C77: 7,5 para cada dia
A78: Não atendimento a qualquer outra obrigação prevista no edital e seus anexos não especificada nesta tabela | B78: Os registros das ocorrências pelo fiscal serão individuais, ou seja, a cada fato ocorrido corresponderá uma ocorrência, podendo ocorrer o registro de várias ocorrências na mesma data | C78: 0,5 para cada ocorrência
A79: Pontuação Total Registrada
A81: Indicador 2 - Porcentagem de Glosa por Pontuação Acumulada
A82: Pontuação Acumulada | B82: Glosa (%) | C82: Valor da glosa (%)
A83: 5 | B83: Não há glosa, apenas advertência
A84: 10 | B84: Glosa correspondente a 1% do valor faturado do mês de apuração da pontuação
A85: 15 | B85: Glosa correspondente a 2% do valor faturado do mês de apuração da pontuação
A86: 20 | B86: Glosa correspondente a 3% do valor faturado do mês de apuração da pontuação
A87: 25 | B87: Glosa correspondente a 4% do valor faturado do mês de apuração da pontuação.
A88: 30 | B88: Glosa correspondente a 5% do valor faturado do mês de apuração da pontuação
A89: 35 | B89: Glosa correspondente a 5% do valor faturado do mês de apuração da pontuação, acrescido de 1% para cada ponto extra
A90: Total Registrado

Sheet OS
A1: CODEVASF
A2: ORDEM DE SERVIÇO/FORNECIMENTO DE PEÇAS E MATERIAIS/OS | I2: Nº xx/xxxx
A3: Contrato nº 00/0000 | G3: MÊS: xxxxxxxxx
A4: PROCESSO Nº | H4: Empresa: xxxxxxxxxx CNPJ: xxxxxxxxxxx
A5: Procedência:
A6: Solicitante:
A7: Local do serviço:
A9: Descrição do serviço:
A10: Item | B10: Insumo/Material | G10: Unid | H10: Quant. | I10: Custo (R$)
I11: Unitário | J11: Total
A12: 1
A13: 2
A14: .
A15: .
A16: .
B29: Soma Parcial
B30: BDI Insunos/Materiais | G30: %
B31: Soma Total (Soma Parcial + BDI)
A32: Elaboração/Emissão :
A33: Aprovação:
